Workbook

Sheet Mandals (hidden)
Z1: =Code!$B$2 -> Nellore District | AA1: 5
B2: Adilabad | C2: Anathapuram | D2: Chittoor District | E2: West godavari District | F2: Guntur District | G2: Hyderabad District | H2: kaddapah District | I2: Kareemnagar District | J2: Khammam District | K2: Krishan District | L2: Kurnool District | M2: Mahaboobnagar District | N2: Medak District | O2: Nalgonda District | P2: Nizamabad District | Q2: Nellore District | R2: Prakasam District | S2: Ranga reddy District | T2: Sreekakulam District | U2: Visakhapatnam District | V2: Vizianagaram District | W2: Warangal District | X2: West godavari District | Y2: S.No | Z2: Districts | AA2: =LOOKUP(AA1,Y3:Y68,AA3:AA68) -> Balayapalli
A3: 1 | B3: Adilabad | C3: Agali | D3: B Kothakota | E3: Achanta | F3: Achampeta | H3: Atlur | I3: Bheemadevarpalle | J3: Aswapuram | K3: A Konduru | L3: Adoni | M3: Achampeta | N3: Alladurg | O3: Alair | P3: Armur | Q3: Allur | R3: Addanki | S3: Balanagar | T3: Amadalavalasa | U3: Anakapalli | V3: Badangi | W3: Atmakur | X3: Achanta | Y3: 1 | Z3: Adilabad | AA3: =HLOOKUP($Z$1,$B$2:$X$68,AB3,FALSE) -> Allur | AB3: 2
A4: 2 | B4: Narnoor | C4: Amadagur | D4: Baireddi Palle | E4: Akiveedu | F4: Amaravathi | H4: B Kodur | I4: Boinpalle | J4: Aswaraopeta | K4: Agiripalle | L4: Allagadda | M4: Addakal | N4: Andole | O4: Anumula | P4: Balkonda | Q4: Ananthasagaram | R4: Ardhaveedu | S4: Bantaram | T4: Battili | U4: Anandapuram | V4: Balajipeta | W4: Bachannapeta | X4: Akiveedu | Y4: 2 | Z4: Anathapuram | AA4: Ananthasagaram | AB4: 3
A5: 3 | B5: Bela | C5: Amarapuram | D5: Bangarupalem | E5: Attili | F5: Amruthalur | H5: Badvel | I5: Chandurthi | J5: Bayyaram | K5: Avanigadda | L5: Alur | M5: Aiza | N5: Chegunta | O5: Atmakur | P5: Banswada | Q5: Anumasamudrampeta | R5: Ballikuruva | S5: Basheerabad | T5: Bhamini | U5: Ananthagiri | V5: Bhoghapuram | W5: Bhupalpalle | X5: Attili | Y5: 3 | Z5: Chittoor District | AA5: Anumasamudrampeta | AB5: 4
A6: 4 | B6: Boath | C6: Anantapur | D6: Buchinaidu Khandriga | E6: Bheemavaram | F6: Bapatla | H6: Brahmamgarimattam | I6: Choppadandi | J6: Bhadrachalam | K6: Bantumilli | L6: Aspari | M6: Alampur | N6: Chinna Kodur | O6: Atmakur | P6: Bheemgal | Q6: Atmakur | R6: Bestavaripeta | S6: Chevella | T6: Burja | U6: Araku Valley | V6: Bobbili | W6: Chennaraopet | X6: Bheemavaram | Y6: 4 | Z6: West godavari District | AA6: Atmakur | AB6: 5
A7: 5 | B7: Dilawarpur | C7: Atmakur | D7: Chandragiri | E7: Bhimadole | F7: Bellamkonda | H7: Chakrayapet | I7: Dharmapuri | J7: Bonakal | K7: Bapulapadu | L7: Atmakur | M7: Amangal | N7: Doultabad | O7: Bhuvanagiri | P7: Bhiknur | Q7: Balayapalli | R7: Chadrasekara Puram | S7: Dharur | T7: Etcherla | U7: Atchutapuram | V7: Bondapalle | W7: Cheriyal | X7: Bhimadole | Y7: 5 | Z7: Guntur District | AA7: Balayapalli | AB7: 6
A8: 6 | B8: Jainad | C8: Bathalapalle | D8: Chinnagottigallu | E8: Buttayagudem | F8: Bhattiprolu | H8: Chapad | I8: Dharmaram | J8: Burgampadu | K8: Challapalli | L8: Banaganapalle | M8: Amrabad | N8: Dubbak | O8: Bibinagar | P8: Bichkunda | Q8: Bogole | R8: Chimakurthi | S8: Domah | T8: Ganguvari Singadam | U8: Bheemunipatnam | V8: Chintalavalasa | W8: Chityal | X8: Buttayagudem | Y8: 6 | Z8: Hyderabad District | AA8: Bogole | AB8: 7
A9: 7 | B9: Kaddampeddur | C9: Beluguppa | D9: Chittoor | E9: Chagallu | F9: Bollapalle | H9: Chennur | I9: Ellanthakunta | J9: Chandrugonda | K9: Chandarlapadu | L9: Bandi Atmakur | M9: Atmakur | N9: Eddumailaram | O9: Bommalaramaram | P9: Birkoor | Q9: Buchireddipalem | R9: Chinaganjam | S9: Gandeed | T9: Kaligapatnam | U9: Butchayyapeta | V9: Cheepurupalle | W9: Devaruppula | X9: Chagallu | Y9: 7 | Z9: Kaddapah District | AA9: Buchireddipalem | AB9: 8
A10: 8 | B10: Khanpur | C10: Bommanahal | D10: Chowdepalle | E10: Chintalapudi | F10: Chebrole | H10: ChinnaChowk | I10: Gambhiraopet | J10: Cherla | K10: Chatrai | L10: Bethamcherla | M10: Balanagar | N10: Gajwel | O10: Chandam Pet | P10: Bodhan | Q10: Chejerla | R10: Chirala | S10: Ghatkesar | T10: Hiramandalam | U10: Cheedikada | V10: Dattirajeru | W10: Dharmasagar | X10: Chintalapudi | Y10: 8 | Z10: Kareemnagar District | AA10: Chejerla | AB10: 9
A11: 9 | B11: Kuntala | C11: Brahmasamudram | D11: Gangadhara Nellore | E11: Denduluru | F11: Cherukupalle | H11: Chinnamandem | I11: Gangadhara | J11: Chinthakani | K11: G Konduru | L11: Bugganipalle | M11: Balmoor | N11: Hathnoora | O11: Chandur | P11: Dhar Palle | Q11: Chillakur | R11: Cumbum | S11: Hayathnagar | T11: Ichchapuram | U11: Chintapalle | V11: Denkada | W11: Dornakal | X11: Denduluru | Y11: 9 | Z11: Khammam District | AA11: Chillakur | AB11: 10
A12: 10 | B12: Mamda | C12: Bukkapatnam | D12: Gangavaram | E12: Devarapalle | F12: Chilakaluripet | H12: Chintha Kommadinne | I12: Gollapalle | J12: Chintur | K12: Gampalagudem | L12: C.Belagal | M12: Bhoothpur | N12: Jagdevpur | O12: Chilkur | P12: Dich Palle | Q12: Chittamur | R12: Darsi | S12: Ibrahimpatam | T12: Jalumuru | U12: Chodavaram | V12: Gajapathinagaram | W12: Duggondi | X12: Devarapalle | Y12: 10 | Z12: Krishan District | AA12: Chittamur | AB12: 11
A13: 11 | B13: Rebbana | C13: Bukkarayasamudram | D13: Gudi Palle | E13: Dwaraka Tirumala | F13: Dachepalle | H13: Chitvel | I13: Husnabad | J13: Dammapeta | K13: Gannavaram | L13: Chagalamarri | M13: Bijinapalle | N13: Jharasangam | O13: Chintha Palle | P13: Domakonda | Q13: Dagadarthi | R13: Donakonda | S13: Kandukur | T13: Kanchili | U13: Devarapalle | V13: Gantyada | W13: Eturnagaram | X13: Dwaraka Tirumala | Y13: 11 | Z13: Kurnool District | AA13: Dagadarthi | AB13: 12
A14: 12 | B14: Talamadugu | C14: Chenne Kothapalle | D14: Gudipala | E14: Eluru | F14: Duggirala | H14: Cuddapah | I14: Huzurabad | J14: Dummugudem | K14: Ghantasala | L14: Chippagiri | M14: Bomraspeta | N14: Jinnaram | O14: Chityala | P14: Gandhari | Q14: Dakkili | R14: Dornala | S14: Keesara | T14: Kaviti | U14: Dumbriguda | V14: Garividi | W14: Geesugonda | X14: Eluru | Y14: 12 | Z14: Mahaboobnagar District | AA14: Dakkili | AB14: 13
A15: 13 | B15: Tiryani | C15: Chilamathur | D15: Gurramkonda | E15: Ganapavaram | F15: Durgi | H15: Duvvur | I15: Ibrahimpatnam | J15: Enkuru | K15: Gudivada | L15: Devanakonda | M15: Chinna Chinta Kunta | N15: Kalher | O15: Chivvemla | P15: Jakranpalle | Q15: Doravarisatram | R15: Giddaluru | S15: Kulkacharla | T15: Kotabommili | U15: Gajuwaka | V15: Garugubilli | W15: Ghanapur | X15: Ganapavaram | Y15: 13 | Z15: Medak District | AA15: Doravarisatram | AB15: 14
A16: 14 | B16: Asifabad | C16: D.Hirchal | D16: Irala | E16: Gopalapuram | F16: Edlapadu | H16: Galiveedu | I16: Jagtial | J16: Garla | K16: Gudlavalleru | L16: Dhone | M16: Damaragidda | N16: Kohir | O16: Choutuppal | P16: Jukkal | Q16: Duttalur | R16: Gudluru | S16: Maheswaram | T16: Kothuru | U16: Gangaraju Madugula | V16: Gummalakshmipuram | W16: Ghanpur(Stn) | X16: Gopalapuram | Y16: 14 | Z16: Nalgonda District | AA16: Duttalur | AB16: 15
A17: 15 | B17: Bellampalle | C17: Dharmavaram | D17: K V P Puram | E17: Iragavaram | F17: Guntur | H17: Gopavaram | I17: Jammikunta | J17: Gundala | K17: Gudur | L17: Dornipadu | M17: Devarkadara | N17: Kondapak | O17: Dameracherla | P17: Kamareddy | Q17: Gudur | R17: Hanumanthunipadu | S17: Malkajgiri | T17: Laveru | U17: Golugonda | V17: Gurla | W17: Govindaraopet | X17: Iragavaram | Y17: 15 | Z17: Nizamabad District | AA17: Gudur | AB17: 16
A18: 16 | B18: Chennur | C18: Gandlapenta | D18: Kalakada | E18: Jangareddigudem | F18: Gurazala | H18: Jammalamadugu • | I18: Julapalle | J18: Julurpad | K18: Ibrahimpatnam | L18: Gadivemula | M18: Dhanwada | N18: Kondapur | O18: Devarakonda | P18: Kammar Palle | Q18: Indukurpet | R18: Inkollu | S18: Manchal | T18: Mandasa | U18: Gudem Kothaveedhi | V18: Jami | W18: Gudur | X18: Jangareddigudem | Y18: 16 | Z18: Nellore District | AA18: Indukurpet | AB18: 17
A19: 17 | B19: Gudihathnur | C19: Garladinne | D19: Kalikiri | E19: Jeelugumilli | F19: Ipuru | H19: Kalasapadu | I19: Kamalapur | J19: Kalluru | K19: Jaggayyapeta | L19: Gonegandla | M19: Dharur | N19: Kowdipalle | O19: Garide Palle | P19: Kotgiri | Q19: Jaladanki | R19: Janakavaram Panguluru | S19: Marpalle | T19: Meilaputti | U19: Hukumpeta | V19: Jiyyamma Valasa | W19: Hanamkonda | X19: Jeelugumilli | Y19: 17 | Z19: Prakasam District | AA19: Jaladanki | AB19: 18
A20: 18 | B20: Jainoor | C20: Gooty | D20: Kambhamvaripalle | E20: Kalla | F20: Kakumanu | H20: Kamalapuram | I20: Kamanpur | J20: Karepalli | K20: Kaikalur | L20: Gospadu | M20: Doulatabad | N20: Kulcharam | O20: Gundala | P20: Lingampet | Q20: Kaligiri | R20: Kandukur | S20: Medchal | T20: Nandigam | U20: K Kotapadu | V20: Komarada | W20: Hasanparthy | X20: Kalla | Y20: 18 | Z20: Ranga reddy District | AA20: Kaligiri | AB20: 19
A21: 19 | B21: Kagaz Nagar | C21: Gorantla | D21: Karvetinagar | E21: Kamavarapukota | F21: Karempudi | H21: Khajipet | I21: Karimnagar | J21: Khammam Rural | K21: Kalidindi | L21: Gudur | M21: Farooqnagar | N21: Manoor | O21: Gundla Palle | P21: Machareddy | Q21: Kaluvoya | R21: Kanigiri | S21: Moinabad | T21: Narasannapeta | U21: Kasimkota | V21: Kothavalasa | W21: Jangaon | X21: Kamavarapukota | Y21: 19 | Z21: Sreekakulam District | AA21: Kaluvoya | AB21: 20
A22: 20 | B22: Kotapalle | C22: Gudibanda | D22: Kuppam | E22: Kovvur | F22: Karlapalem | H22: Kodur | I22: Kataram | J22: Khammam Urban | K22: Kanchika Cherla | L22: Halaharvi | M22: Gadwal | N22: Medak | O22: Gurrampode | P22: Madnur | Q22: Kavali | R22: Karamchedu | S22: Mominpet | T22: Palakonda | U22: Kotauratla | V22: Kurupam | W22: Kesamudram | X22: Kovvur | Y22: 20 | Z22: Visakhapatnam District | AA22: Kavali | AB22: 21
A23: 21 | B23: Laxmanchanda | C23: Gummagatta | D23: Kurabalakota | E23: Koyyalagudem | F23: Kollipara | H23: Kondapuram | I23: Kathlapur | J23: Konijerla | K23: Kankipadu | L23: Holagunda | M23: Ghanpur | N23: Mirdoddi | O23: Huzurnagar | P23: Makloor | Q23: Kodavalur | R23: Komarolu | S23: Nawabpet | T23: Palasa | U23: Koyyuru | V23: Lakkavarapukota | W23: Khanapur | X23: Koyyalagudem | Y23: 21 | Z23: Vizianagaram District | AA23: Kodavalur | AB23: 22
A24: 22 | B24: Mancherial | C24: Guntakal | D24: Mandanpalle | E24: Lingapalem | F24: Kollur | H24: Lakkireddipalle • | I24: Kesavapatnam | J24: Kothagudem | K24: Koduru | L24: Jupadu Bungalow | M24: Ghattu | N24: Mulug | O24: Jaji Reddi Gudem | P24: Mortad | Q24: Kondapuram | R24: Konakanamitla | S24: Pargi | T24: Pathapatnam | U24: Madugula | V24: Makkuva | W24: Kodakandla | X24: Lingapalem | Y24: 22 | Z24: Warangal District | AA24: Kondapuram | AB24: 23
A25: 23 | B25: Nennal | C25: Hindupur | D25: Mulakalacheruvu | E25: Mogalthur | F25: Krosuru | H25: Lingala | I25: Kodimial | J25: Kukunoor | K25: Kruthivennu | L25: Kallur | M25: Gopalpeta | N25: Munpalle | O25: Kangal | P25: Naga Reddipet | Q25: Kota | R25: Kondapi | S25: Peddemul | T25: Polaki | U25: Makavarapalem | V25: Mentada | W25: Kothagudem | X25: Mogalthur | Y25: 23 | Z25: West godavari District | AA25: Kota | AB25: 24
A26: 24 | B26: Sarangapur | C26: Kadiri | D26: Nagalapuram | E26: Nallajerla | F26: Machavaram | H26: Muddanur | I26: Koheda | J26: Kunavaram | K26: Machilipatnam | L26: Kodumur | M26: Hanwada | N26: Nanganur | O26: Kattangoor | P26: Nandipet | Q26: Kovur | R26: Korisapadu | S26: Pudur | T26: Ponduru | U26: Munagapaka | V26: Merakamudidam | W26: Kuravi | X26: Nallajerla | Y26: 24 | AA26: Kovur | AB26: 25
A27: 25 | B27: Tamsi | C27: Kalyandurg | D27: Nagari | E27: Narasapuram | F27: Macherla | H27: Mylavaram | I27: Konaraopeta | J27: Kusumanchi | K27: Mandavalli | L27: Koilkuntla | M27: Itikyal | N27: Narayankhed | O27: Kethepalle | P27: Navipet | Q27: Manubolu | R27: Kothapatnam | S27: Quthbullapur | T27: Rajam | U27: Munchingiputtu | V27: Nellimarla | W27: Lingala Ghanpur | X27: Narasapuram | Y27: 25 | AA27: Manubolu | AB27: 26
A28: 26 | B28: Utnur | C28: Kambadur | D28: Narayanavanam | E28: Nidadavole | F28: Mangalagiri | H28: Mydukur | I28: Koratla | J28: Madhira | K28: Mopidevi | L28: Kolimigundla | M28: Jadcherla | N28: Narsapur | O28: Kodad | P28: Nizam Sagar | Q28: Marripadu | R28: Kurichedu | S28: Rajendranagar | T28: Ranastalam | U28: Nakkapalli | V28: Pachipenta | W28: Maddur | X28: Nidadavole | Y28: 26 | AA28: Marripadu | AB28: 27
A29: 27 | B29: Bazarhathnoor | C29: Kanaganapalle | D29: Nimmanapalle | E29: Nidamarru | F29: Medikonduru | H29: Nandalur | I29: Mahadevpur | J29: Manuguru | K29: Movva | L29: Kosigi | M29: Kalwakurthy | N29: Nyalkal | O29: M Turkapalle | P29: Nizamabad | Q29: Muthukur | R29: Lingasamudram | S29: Saroornagar | T29: Regidiamadalavalasa | U29: Narsipatnam | V29: Parvathipuram | W29: Mahabubabad | X29: Nidamarru | Y29: 27 | AA29: Muthukur | AB29: 28
A30: 28 | B30: Bhainsa | C30: Kanekal | D30: Nindra | E30: Palacole | F30: Muppalla | H30: Obulavaripalle | I30: Malharrao | J30: Mudigonda | K30: Mudinepalli | L30: Kothapalle | M30: Keshampeta | N30: Papannapet | O30: Marri Guda | P30: Pitlam | Q30: Naidupeta | R30: Maddipadu | S30: Serilingampalle | T30: Santhabommali | U30: Nathavaram | V30: Pusapatirega | W30: Mangapet | X30: Palacole | Y30: 28 | AA30: Naidupeta | AB30: 29
A31: 29 | B31: Dahegaon | C31: Kothacheruvu | D31: Pakala | E31: Palakoderu | F31: Nadendla | H31: Peddamudium • | I31: Mallapur | J31: Mulakalapalle | K31: Musunuru | L31: Kowthalam | M31: Kodair | N31: Patancheru | O31: Mattampalle | P31: Ranjal | Q31: Nellore | R31: Markapur | S31: Shabad | T31: Santhakaviti | U31: Paderu | V31: Ramabhadrapuram | W31: Maripeda | X31: Palakoderu | Y31: 29 | AA31: Nellore | AB31: 30
A32: 30 | B32: Ichoda | C32: Kudair | D32: Palamaner | E32: Pedapadu | F32: Nagaram | H32: Penagaluru | I32: Mallial | J32: Nelakondapalle | K32: Mylavaram | L32: Krishnagiri | M32: Kodangal | N32: Pulkal | O32: Mellachervu | P32: Sadasivanagar | Q32: Ojili | R32: Marripudi | S32: Shamirpet | T32: Saravakota | U32: Padmanabham | V32: Salur | W32: Mogullapalle | X32: Pedapadu | Y32: 30 | AA32: Ojili | AB32: 31
A33: 31 | B33: Jaipur | C33: Kundurpi | D33: Palasamudram | E33: Pedavegi | F33: Nakarikallu | H33: Pendlimarri | I33: Manakondur | J33: Palawancha | K33: Nagayalanka | L33: Kurnool | M33: Koilkonda | N33: Raikode | O33: Miryalaguda | P33: Sirkonda | Q33: Pellakur | R33: Martur | S33: Shamshabad | T33: Sarubujjili | U33: Paravada | V33: Seethanagaram | W33: Mulug | X33: Pedavegi | Y33: 31 | AA33: Pellakur | AB33: 32
A34: 32 | B34: Kasipet | C34: Lepakshi | D34: Pedda Panjani | E34: Pentapadu | F34: Narasaraopeta | H34: Porumamilla | I34: Manthani | J34: Penuballi | K34: Nandigama | L34: Maddikera East | M34: Kollapur | N34: Ramachandrapuram | O34: Mothey | P34: Tadwai | Q34: Podlakur | R34: Mundlamuru | S34: Shankarpalle | T34: Seethampeta | U34: Payakaraopeta | V34: Srungavarapukota | W34: Nallabelly | X34: Pentapadu | Y34: 32 | AA34: Podlakur | AB34: 33
A35: 33 | B35: Kouthala | C35: Mudigubba | D35: Peddamandyam | E35: Penugonda | F35: Nizampatnam | H35: Proddutur | I35: Medipalle | J35: Pinapaka | K35: Nandivada | L35: Mahanandi | M35: Kondurg | N35: Ramayampet | O35: Mothkur | P35: Varni | Q35: Rapur | R35: Naguluppalapadu | S35: Tandur | T35: Sompeta | U35: Pedabayalu | V35: Therlam | W35: Narmetta | X35: Penugonda | Y35: 33 | AA35: =HLOOKUP($Z$1,$B$2:$X$68,AB35,FALSE) -> Rapur | AB35: 34
A36: 34 | B36: Lohesra | C36: Nallacheruvu | D36: Peddathippasamudram | E36: Penumantra | F36: Nuzendla | H36: Pulivendla | I36: Metpalle | J36: Sathupalle | K36: Nuzvid | L36: Mantralayam | M36: Kosgi | N36: Regode | O36: Munagala | P36: Velpur | Q36: Sangam | R36: Ongole | S36: Uppal | T36: Srikakulam | U36: Pedagantyada | V36: Vepada | W36: Narsampet | X36: Penumantra | Y36: 34 | AA36: Sangam | AB36: 35
A37: 35 | B37: Mandamarri | C37: Nallamada | D37: Penumuru | E37: Peravali | F37: Pedakakani | H37: Pullampeta | I37: Mustabad | J37: Singareni | K37: Pamarru | L37: Midthur | M37: Kothakota | N37: Sadasivpet | O37: Munugode | P37: Yeda Palle | Q37: Seetharamapuram | R37: Pamur | S37: Vikarabad | T37: Tekkali | U37: Pendurthi | V37: Vizianagaram | W37: Narsimhulapet | X37: Peravali | Y37: 35 | AA37: Seetharamapuram | AB37: 36
A38: 36 | B38: Neradigonda | C38: Nambulipulikunta | D38: Pichatur | E38: Poduru | F38: Pedakurapadu | H38: Railway Koduru • | I38: Mutharam Mahadevpur | J38: Thallada | K38: Pamidimukkala | L38: Nandavaram | M38: Kothur | N38: Sangareddy | O38: Nadigudem | P38: Yellareddy | Q38: Sullurpeta | R38: Parchur | S38: Yacharam | T38: Vajrapukothuru | U38: Rambilli | W38: Nekkonda | X38: Poduru | Y38: 36 | AA38: Sullurpeta | AB38: 37
A39: 37 | B39: Sirpur (T) | C39: Narpala | D39: Pileru | E39: Polavaram | F39: Phirangipuram | H39: Rajampet | I39: Mutharam Manthani | J39: Thirumalayapalem | K39: Pedana | L39: Nandi Kotkur | M39: Lingal | N39: Shankarampet (A) | O39: Nakrekal | Q39: Sydapuram | R39: Pedaaraveedu | S39: Yelal | T39: Vangara | U39: Ravikamatham | W39: Nellikudur | X39: Polavaram | Y39: 37 | AA39: Sydapuram | AB39: 38
A40: 38 | B40: Tandur | C40: Obuladevaracheruvu | D40: Pulicherla | E40: T Narasapuram | F40: Piduguralla | H40: Raju Palem | I40: Odela | J40: Vararamachandrapuram | K40: Pedaparupudi | L40: Nandyal | M40: Maddur | N40: Shankarampet (R) | O40: Nalgonda | Q40: Tada | R40: Pedacherlopalle | T40: Veeraghattam | U40: Rolugunta | W40: Palakurthi | X40: T Narasapuram | Y40: 38 | AA40: Tada | AB40: 39
A41: 39 | B41: Vemanpalle | C41: Pamidi | D41: Punganur | E41: Tadepalligudem | F41: Pittalavanipalem | H41: Ramapuram | I41: Peddapalle | J41: Velairpad | K41: Penamaluru | L41: Orvakal | M41: Madgul | N41: Shivampet | O41: Nampalle | Q41: Thotapalligudur | R41: Podili | U41: S Rayavaram | W41: Parkal | X41: Tadepalligudem | Y41: 39 | AA41: Thotapalligudur | AB41: 40
A42: 40 | B42: Bejjur | C42: Parigi | D42: Puthalapattu | E42: Tanuku | F42: Ponnur | H42: Rayachoti | I42: Pegadapalle | J42: Vemsoor | K42: Penuganchiprolu | L42: Owk | M42: Maganoor | N42: Siddipet | O42: Narayanapur | Q42: Udayagiri | R42: Ponnaluru | U42: Sabbavaram | W42: Parvathagiri | X42: Tanuku | Y42: 40 | AA42: Udayagiri | AB42: 41
A43: 41 | B43: Bheemini | C43: Peddapappur | D43: Puttur | E43: Thallapudi | F43: Prathipadu | H43: S Mydukur | I43: Raikal | J43: Venkatapuram | K43: Reddigudem | L43: Pagidyala | M43: Mahbubnagar | N43: Tekmal | O43: Narketpalle | Q43: Vakadu | R43: Pullalacheruvu | U43: Visakhapatnam | W43: Raghunatha Palle | X43: Thallapudi | Y43: 41 | AA43: Vakadu | AB43: 42
A44: 42 | B44: Dandepalle | C44: Peddavadugur | D44: Rama Kuppam | E44: Undi | F44: Rajupalem | H44: Sambepalle | I44: Ramadugu | J44: Wazeed | K44: Thotlavalluru | L44: Pamulapadu | M44: Makthal | N44: Tupran | O44: Nered Cherla | Q44: Varikuntapadu | R44: Racherla | U44: Visakhapatnam(U) | W44: Raiparthy | X44: Undi | Y44: 42 | AA44: Varikuntapadu | AB44: 43
A45: 43 | B45: Inderavelly | C45: Penu Konda | D45: Ramachandrapuram | E45: Undrajavaram | F45: Rentacrintala | H45: Sidhout | I45: Ramagundam | J45: Wyra | K45: Tiruvuru | L45: Panyam | M45: Maldakal | N45: Wargal | O45: Nidamanur | Q45: Venkatachalam | R45: Santhamaguluru | U45: Yelamanchili | W45: Regonda | X45: Undrajavaram | Y45: 43 | AA45: Venkatachalam | AB45: 44
A46: 44 | B46: Jannaram | C46: Putlur | D46: Ramasamudram | E46: Unguturu | F46: Repalle | H46: Simhadripuram • | I46: Saidapur | J46: Yellandu | K46: Unguturu | L46: Pattikanda | M46: Manopadu | N46: Yeldurthy | O46: Nuthankal | Q46: Venkatagiri | R46: Santhanuthlapadu | W46: Sangem | X46: Unguturu | Y46: 44 | AA46: Venkatagiri | AB46: 45
A47: 45 | B47: Kerameri | C47: Puttaparthi | D47: Renigunta | E47: Veeravasaram | F47: Rompicherla | H47: T Sundupalle | I47: Sarangapur | J47: Yerrupalem | K47: Vatsavai | L47: Peapally | M47: Midjil | N47: Zahirabad | O47: Pedda Adiserlapalle | Q47: Vidavalur | R47: Singarayakonda | W47: Shayampet | X47: Veeravasaram | Y47: 45 | AA47: Vidavalur | AB47: 46
A48: 46 | B48: Kubeer | C48: Ramagiri | D48: Rompicherla | E48: Yelamanchili | F48: Sattenapalle | H48: Thandur | I48: Sirsilla | K48: Veerullapadu | L48: Pedda Kadubur | M48: Nagar Kurnool | O48: Peddavura | Q48: Vinjamur | R48: Tangutur | W48: Tadvai | X48: Yelamanchili | Y48: 46 | AA48: Vinjamur | AB48: 47
A49: 47 | B49: Luxettipet | C49: Raptadu | D49: Santhi Puram | F49: Savalyapuram | H49: Vallur | I49: Srirampur | K49: Vijayawada Rural | L49: Rudravaram | M49: Narayanpet | O49: Penpahad | R49: Tarlapadu | W49: Thorrur | Y49: 47 | AA49: 0 | AB49: 48
A50: 48 | B50: Mudhole | C50: Roddam | D50: Satyavedu | F50: Tadikonda | H50: Veeraballe | I50: Sultanabad | K50: Vijayawada Urban | L50: Sanjamala | M50: Narva | O50: Pochampalle | R50: Thallur | W50: Venkatapur | Y50: 48 | AA50: 0 | AB50: 49
A51: 49 | B51: Nirmal | C51: Rolla | D51: Sodam | F51: Tenali | H51: Veerapunayunipalle • | I51: Thimmapur | K51: Vissannapet | L51: Sirvel | M51: Nawabpet | O51: Rajapet | R51: Tripuranthakam | W51: Wardhannapet | Y51: 49 | AA51: 0 | AB51: 50
A52: 50 | B52: Sirpur (U) | C52: Settur | D52: Somala | F52: Thadepalle | H52: Vempalle | I52: Veenavanka | K52: Vuyyuru | L52: Srisailam | M52: Pangal | O52: Ramannapeta | R52: Ulavapadu | W52: Zaffergadh | Y52: 50 | AA52: 0 | AB52: 51
A53: 51 | B53: Tanur | C53: Singanamala | D53: Srikalahasti | F53: Thullur | H53: Vemula | I53: Velgatoor | L53: Tuggali | M53: Pebbair | O53: Saligouraram | R53: Veligandla | Y53: 51 | AA53: 0 | AB53: 52
A54: 52 | B54: Wankdi | C54: Somandepalle | D54: Srirangarajapuram | F54: Tsundur | H54: Vontimitta | I54: Vemulawada | L54: Uyyalawada | M54: Peddakothapalle | O54: Suryapet | R54: Vetapalem | Y54: 52 | AA54: 0 | AB54: 53
A55: 53 | C55: Tadimarri | D55: Thamballapalle | F55: Vatticherukuru | H55: Yerraguntla | I55: Yella Reddi Peta | L55: Veldurthi | M55: Peddamandadi | O55: Thipparthi | R55: Voletivaripalem | Y55: 53 | AA55: 0 | AB55: 54
A56: 54 | C56: Tadpatri | D56: Thavanampalle | F56: Veldurthi | L56: Velgodu | M56: Tadoor | O56: Thirumalagiri | R56: Yeddanapudi | Y56: 54 | AA56: 0 | AB56: 55
A57: 55 | C57: Talupula | D57: Thottambedu | F57: Vemuru | L57: Yemmiganur | M57: Talakondapalle | O57: Thripuraram | R57: Yerragondapalem | Y57: 55 | AA57: 0 | AB57: 56
A58: 56 | C58: Tanakal | D58: Tirupati Rural | F58: Vinukonda | M58: Telkapalle | O58: Thunga Thurthi | R58: Zarugumilli | Y58: 56 | AA58: 0 | AB58: 57
A59: 57 | C59: Uravakonda | D59: Tirupati Urban | M59: Thimmajipeta | O59: Valigonda | Y59: 57 | AA59: 0 | AB59: 58
A60: 58 | C60: Vajrakarur | D60: Vadamalapeta | M60: Uppununthala | O60: Vemulapalle | Y60: 58 | AA60: 0 | AB60: 59
A61: 59 | C61: Vidapanakal | D61: Varadaiahpalem | M61: Utkoor | O61: Yadagirigutta | Y61: 59 | AA61: 0 | AB61: 60
A62: 60 | C62: Yadiki | D62: Vayalpad | M62: Vangoor | Y62: 60 | AA62: 0 | AB62: 61
A63: 61 | C63: Yellanur | D63: Veduru Kuppam | M63: Veepangandla | Y63: 61 | AA63: 0 | AB63: 62
A64: 62 | D64: Venkatagiri Kota | M64: Veldanda | Y64: 62 | AA64: 0 | AB64: 63
A65: 63 | D65: Vijaya Puram | M65: Waddepalle | Y65: 63 | AA65: 0 | AB65: 64
A66: 64 | D66: Yadamari | M66: Wanaparthy | Y66: 64 | AA66: 0 | AB66: 65
A67: 65 | D67: Yerpedu | Y67: 65 | AA67: =HLOOKUP($Z$1,$B$2:$X$68,AB67,FALSE) -> 0 | AB67: 66
A68: 66 | D68: Yerravaripalem | Y68: 66 | AA68: =HLOOKUP($Z$1,$B$2:$X$68,AB68,FALSE) -> 0 | AB68: 67

Sheet Code (hidden)
B1: 16 | AM1: 10 | AN1: 2 | AO1: 17 | AP1: 9
B2: =VLOOKUP(B1,Mandals!Y3:Z25,2) -> Nellore District | AM2: Halyf Pay Leave | AO2: Loss of Pay | BG2: Start date | BK2: Start date | BM2: End date
U3: 30 | V3: 31 | W3: =VLOOKUP(V3,U5:V84,2) -> 15700 | AA3: 18 | AC3: 2 | AD3: =VLOOKUP(AC3,AC5:AD7,2) -> 15 | AE3: 2 | AG3: 4 | AH3: =VLOOKUP(AG3,AG5:AH12,2) -> 60 | AI3: 2 | AJ3: =VLOOKUP(AI3,AI5:AJ10,2) -> 20 | AK3: 2 | AL3: =VLOOKUP(AK3,AK5:AL7,2) -> 20 | AM3: 2 | AN3: =LOOKUP(AM3,AM4:AN5) -> Not Applicale | AO3: 2 | AP3: =LOOKUP(AO3,AO4:AP5) -> Not Applicale | BG3: 6 | BH3: 8 | BM3: 7 | BN3: 9
P4: 19 | Q4: 18 | R4: =LOOKUP(Q4,Q5:Q70,R5:R70) -> Kamalapuram • | U4: 1 | V4: 1 | W4: 9 | X4: =VLOOKUP(W4,W5:X16,2) -> 2010-11-01 | Y4: 1 | Z4: =VLOOKUP(Y4,Y5:Z8,2) -> 0.1 | AA4: RPS 2005 | AC4: EARNED LEAVE | AE4: PHC | AG4: gis | AI4: EWF | AK4: SWF | AM4: 1 | AN4: Applicable | AO4: 1 | AP4: Applicable | BG4: Half pay | BH4: Loss of pay | BK4: Half pay | BL4: Loss of pay | BM4: Half pay | BN4: Loss of pay
A5: List of Mandals in Nellore District | C5: List of Mandals in Chittoor District | E5: List of Mandals in Prakasam District | F5: List of Mandals in Guntur District | G5: List of Mandals in Cuddapah District | H5: List of Mandals in Anantapur District | I5: List of Mandals in Kurnool District | J5: List of Mandals in Visakhapatnam District | K5: List of Mandals in Vizianagaram District | L5: List of Mandals in Adilabad District | O5: 1 | P5: Adilabad District | Q5: 1 | R5: =IF(B1=1," ",IF(B1=2,B6,IF(B1=3,D6,IF(B1=4,E6,IF(B1=5,F6,G6))))) -> Atlur • | U5: 1 | V5: 6700 | W5: 1 | X5: 2010-03-01 | Y5: 1 | Z5: 0.1 | AA5: 1 | AB5: 5470 | AC5: 1 | AD5: =IF(AD8="Applicable",AF8," ") -> 0 | AE5: 1 | AF5: YES | AG5: 1 | AH5: 0 | AI5: 1 | AJ5: 0 | AK5: 1 | AL5: 0 | AM5: 2 | AN5: Not Applicale | AO5: 2 | AP5: Not Applicale | BG5: =IF(AN$3="Applicable",AM18," ") ->  | BH5: =IF(AP$3="Applicable",AM18," ") ->  | BI5: 1 | BK5: 1 | BL5: 1 | BM5: =IF(AN$3="Applicable",AM18," ") ->  | BN5: =IF(AP$3="Applicable",AM18," ") -> 
A6: 1 | B6: Allur | C6: 1 | D6: B Kothakota | E6: Addanki | F6: Achampeta | G6: Atlur • | H6: Agali • Amadagur • Amarapuram • Anantapur • Atmakur • Bathalapalle • Beluguppa • Bommanahal • Brahmasamudram • Bukkapatnam • Bukkarayasamudram • Chenne Kothapalle • Chilamathur • D.Hirchal • Dharmavaram • Gandlapenta • Garladinne • Gooty • Gorantla • Gudibanda • Gummagatta • Guntakal • Hindupur • Kadiri • Kalyandurg • Kambadur • Kanaganapalle • Kanekal • Kothacheruvu • Kudair • Kundurpi • Lepakshi • Madakasira • Mudigubba • Nallacheruvu • Nallamada • Nambulipulikunta • Narpala • Obuladevaracheruvu • Pamidi • Parigi • Peddapappur • Peddavadugur • Penu Konda • Putlur • Puttaparthi • Ramagiri • Raptadu • Rayadurg • Roddam • Rolla • Settur • Singanamala • Somandepalle • Tadimarri • Tadpatri • Talupula • Tanakal • Uravakonda • Vajrakarur • Vidapanakal • Yadiki • Yellanur | I6: Adoni • Allagadda • Alur • Aspari • Atmakur • Banaganapalle • Bandi Atmakur • Bethamcherla • Bugganipalle • C.Belagal • Chagalamarri • Chippagiri • Devanakonda • Dhone • Dornipadu • Gadivemula • Gonegandla • Gospadu • Gudur • Halaharvi • Holagunda • Jupadu Bungalow • Kallur • Kodumur • Koilkuntla • Kolimigundla • Kosigi • Kothapalle • Kowthalam • Krishnagiri • Kurnool • Maddikera East • Mahanandi • Mantralayam • Midthur • Nandavaram • Nandi Kotkur • Nandyal • Orvakal • Owk • Pagidyala • Pamulapadu • Panyam • Pattikanda • Peapally • Pedda Kadubur • Rudravaram • Sanjamala • Sirvel • Srisailam • Tuggali • Uyyalawada • Veldurthi (Kurnool District) • Velgodu • Yemmiganur | J6: Anakapalli | K6: Badangi • Balajipeta • Bhoghapuram • Bobbili • Bondapalle • Chintalavalasa • Cheepurupalle • Dattirajeru • Denkada • Gajapathinagaram • Gantyada • Garividi • Garugubilli • Gummalakshmipuram • Gurla • Jami • Jiyyamma Valasa • Komarada • Kothavalasa • Kurupam • Lakkavarapukota • Makkuva • Mentada • Merakamudidam • Nellimarla • Pachipenta • Parvathipuram • Pusapatirega • Ramabhadrapuram • Salur • Seethanagaram (Vizianagaram District) • Srungavarapukota • Therlam • Vepada • Vizianagaram | L6: Adilabad • Bela • Boath • Dilawarpur • Jainad • Kaddampeddur • Khanpur • Kuntala • Mamda • Narnoor • Rebbana • Talamadugu • Tiryani • Asifabad • Bellampalle • Chennur • Gudihathnur • Jainoor • Kagaz Nagar • Kotapalle • Laxmanchanda • Mancherial • Nennal • Sarangapur • Tamsi • Utnur • Bazarhathnoor • Bhainsa • Dahegaon • Ichoda • Jaipur • Kasipet • Kouthala • Lohesra • Mandamarri • Neradigonda • Sirpur (T) • Tandur • Vemanpalle • Bejjur • Bheemini • Dandepalle • Inderavelly • Jannaram • Kerameri • Kubeer • Luxettipet • Mudhole • Nirmal • Sirpur (U) • Tanur • Wankdi | Q6: 2 | R6: =IF(B1=1," ",IF(B1=2,B7,IF(B1=3,D7,IF(B1=4,E7,IF(B1=5,F7,G7))))) -> B Kodur | U6: 2 | V6: 6900 | W6: 2 | X6: 2010-04-01 | Y6: 2 | Z6: 0.125 | AA6: 2 | AB6: 5605 | AC6: 2 | AD6: =IF(AD8="Applicable",AF9," ") -> 15 | AE6: 2 | AF6: NO | AG6: 2 | AH6: 15 | AI6: 2 | AJ6: 20 | AK6: 2 | AL6: 20 | AM6: 2 | AN6: =IF(AN$3="Applicable",AM18," ") ->  | AO6: 1 | AP6: =IF(AP$3="Applicable",AM18," ") ->  | AT6: 1 | AU6: =LOOKUP(AT6,AT7:AT15,AU7:AU15) -> 0 | BG6: =IF(AN$3="Applicable",AM19," ") ->  | BH6: =IF(AP$3="Applicable",AM19," ") ->  | BI6: 1 | BJ6: 2010 | BK6: =IF(AN$3="Applicable",BJ6," ") ->  | BL6: =IF(AP$3="Applicable",BJ6," ") ->  | BM6: =IF(AN$3="Applicable",AM19," ") ->  | BN6: =IF(AP$3="Applicable",AM19," ") -> 
A7: 2 | B7: Ananthasagaram | C7: 2 | D7: Baireddi Palle | E7: Ardhaveedu | F7: Amaravathi | G7: B Kodur | J7: • Anandapuram • | O7: 2 | P7: SPSR Nellore District | Q7: 3 | R7: =IF(B1=1," ",IF(B1=2,B8,IF(B1=3,D8,IF(B1=4,E8,IF(B1=5,F8,G8))))) -> • Badvel | U7: 3 | V7: 7100 | W7: 3 | X7: 2010-05-01 | Y7: 3 | Z7: 0.2 | AA7: 3 | AB7: 5750 | AC7: 3 | AD7: =IF(AD8="Applicable",AF10," ") -> 30 | AG7: 3 | AH7: 30 | AI7: 3 | AJ7: 50 | AK7: 3 | AL7: 50 | AN7: =IF(AN$3="Applicable",AM19," ") ->  | AP7: =IF(AP$3="Applicable",AM19," ") ->  | AT7: 1 | AU7: 0 | BI7: 2 | BJ7: 2011 | BK7: =IF(AN$3="Applicable",BJ7," ") ->  | BL7: =IF(AP$3="Applicable",BJ7," ") -> 
A8: 3 | B8: Anumasamudrampeta | C8: 3 | D8: Bangarupalem | E8: Ballikuruva | F8: Amruthalur | G8: • Badvel | J8: Ananthagiri • Araku Valley • Atchutapuram • Bheemunipatnam • Butchayyapeta • Cheedikada • Chintapalle • Chodavaram • Devarapalle • Dumbriguda • Gajuwaka • Gangaraju Madugula • Golugonda • Gudem Kothaveedhi • Hukumpeta • K Kotapadu • Kasimkota • Kotauratla • Koyyuru • Madugula • Makavarapalem • Munagapaka • Munchingiputtu • Nakkapalli • Narsipatnam • Nathavaram • Paderu • Padmanabham • Paravada • Payakaraopeta • Pedabayalu • Pedagantyada • Pendurthi • Rambilli • Ravikamatham • Rolugunta • S Rayavaram • Sabbavaram • Visakhapatnam • Visakhapatnam(U) • Yelamanchili | O8: 3 | P8: Chittoor District | Q8: 4 | R8: =IF(B1=1," ",IF(B1=2,B9,IF(B1=3,D9,IF(B1=4,E9,IF(B1=5,F9,G9))))) -> • Brahmamgarimattam | U8: 4 | V8: 7300 | W8: 4 | X8: 2010-06-01 | Y8: 4 | Z8: 0.3 | AA8: 4 | AB8: 5895 | AC8: 1 | AD8: =LOOKUP(AC8,AC9:AC10,AD9:AD10) -> Applicable | AF8: 0 | AG8: 4 | AH8: 60 | AI8: 4 | AJ8: 150 | AT8: 2 | AU8: 400 | BJ8: Year | BK8: =LOOKUP(BK5,BI6:BI7,BK6:BK7) ->  | BL8: =LOOKUP(BL5,BI6:BI7,BL6:BL7) -> 
A9: 4 | B9: Atmakur | C9: 4 | D9: Buchinaidu Khandriga | E9: Bestavaripeta | F9: Bapatla | G9: • Brahmamgarimattam | O9: 2 | P9: East Godavari District | Q9: 5 | R9: =IF(B1=1," ",IF(B1=2,B10,IF(B1=3,D10,IF(B1=4,E10,IF(B1=5,F10,G10))))) -> • Chakrayapet | U9: 5 | V9: 7520 | W9: 5 | X9: 2010-07-01 | AA9: 5 | AB9: 6040 | AC9: 1 | AD9: Applicable | AF9: 15 | AG9: 5 | AH9: 75 | AI9: 5 | AJ9: 200 | AT9: 3 | AU9: 800
A10: 5 | B10: Balayapalli | C10: 5 | D10: Chandragiri | E10: Chadrasekara Puram | F10: Bellamkonda | G10: • Chakrayapet | O10: 6 | P10: Guntur District | Q10: 6 | R10: =IF(B1=1," ",IF(B1=2,B11,IF(B1=3,D11,IF(B1=4,E11,IF(B1=5,F11,G11))))) -> • Chapad • | U10: 6 | V10: 7740 | W10: 6 | X10: 2010-08-01 | AA10: 6 | AB10: 6195 | AC10: 2 | AD10: Not Applicale | AF10: 30 | AG10: 6 | AH10: 120 | AI10: 6 | AJ10: 300 | AT10: 4 | AU10: 1200
A11: 6 | B11: Bogole | C11: 6 | D11: Chinnagottigallu | E11: Chimakurthi | F11: Bhattiprolu | G11: • Chapad • | O11: 7 | P11: Hyderabad District | Q11: 7 | R11: =IF(B1=1," ",IF(B1=2,B12,IF(B1=3,D12,IF(B1=4,E12,IF(B1=5,F12,G12))))) -> Chennur | U11: 7 | V11: 7960 | W11: 7 | X11: 2010-09-01 | Y11: 1 | Z11: =VLOOKUP(Y11,Y12:Z16,2) -> 0 | AA11: 7 | AB11: 6350 | AG11: 7 | AH11: 150 | AT11: 5 | AU11: 1600
A12: 7 | B12: Buchireddipalem | C12: 7 | D12: Chittoor | E12: Chinaganjam | F12: Bollapalle | G12: Chennur | O12: 8 | P12: Kareemnagar District | Q12: 8 | R12: =IF(B1=1," ",IF(B1=2,B13,IF(B1=3,D13,IF(B1=4,E13,IF(B1=5,F13,G13))))) -> • ChinnaChowk | U12: 8 | V12: 8200 | W12: 8 | X12: 2010-10-01 | Y12: 1 | Z12: 0 | AA12: 8 | AB12: 6505 | AC12: 3 | AD12: =LOOKUP(AC12,AC14:AD16) -> ZPPF | AG12: 8 | AH12: 200 | AT12: 6 | AU12: 1000
A13: 8 | B13: Chejerla | C13: 8 | D13: Chowdepalle | E13: Chirala | F13: Chebrole | G13: • ChinnaChowk | O13: 9 | P13: Khammam District | Q13: 9 | R13: =IF(B1=1," ",IF(B1=2,B14,IF(B1=3,D14,IF(B1=4,E14,IF(B1=5,F14,G14))))) -> • Chinnamandem | U13: 9 | V13: 8440 | W13: 9 | X13: 2010-11-01 | Y13: 2 | Z13: 0.1 | AA13: 9 | AB13: 6675 | AC13: ZPPF/GPF/CPS | AT13: 7 | AU13: 2000
A14: 9 | B14: Chillakur | C14: 9 | D14: Gangadhara Nellore | E14: Cumbum | F14: Cherukupalle | G14: • Chinnamandem | O14: 10 | P14: Krishna District | Q14: 10 | R14: =IF(B1=1," ",IF(B1=2,B15,IF(B1=3,D15,IF(B1=4,E15,IF(B1=5,F15,G15))))) -> • Chintha Kommadinne | U14: 10 | V14: 8680 | W14: 10 | X14: 2010-12-01 | Y14: 3 | Z14: 0.125 | AA14: 10 | AB14: 6845 | AC14: 1 | AD14: CPS | AT14: 8 | AU14: 3000
A15: 10 | B15: Chittamur | C15: 10 | D15: Gangavaram | E15: Darsi | F15: Chilakaluripet | G15: • Chintha Kommadinne | O15: 11 | P15: Kurnool District | Q15: 11 | R15: =IF(B1=1," ",IF(B1=2,B16,IF(B1=3,D16,IF(B1=4,E16,IF(B1=5,F16,G16))))) -> • Chitvel | U15: 11 | V15: 8940 | W15: 11 | X15: 2011-01-01 | Y15: 4 | Z15: 0.2 | AA15: 11 | AB15: 7015 | AC15: 2 | AD15: GPF | AJ15: earned L | AK15: 7 | AL15: =LOOKUP(AK15,AE18:AE29,AL18:AL29) -> 2010-09-01 | AM15: =MATCH(AK15,AF18:AF29) ->  | AN15: =AK15+2 -> 9 | AT15: 9 | AU15: 4000
A16: 11 | B16: Dagadarthi | C16: 11 | D16: Gudi Palle | E16: Donakonda | F16: Dachepalle | G16: • Chitvel | O16: 12 | P16: Mahboobnagar District | Q16: 12 | R16: =IF(B1=1," ",IF(B1=2,B17,IF(B1=3,D17,IF(B1=4,E17,IF(B1=5,F17,G17))))) -> • Cuddapah | U16: 12 | V16: 9200 | W16: 12 | X16: 2011-02-01 | Y16: 5 | Z16: 0.3 | AA16: 12 | AB16: 7200 | AC16: 3 | AD16: ZPPF | AX16: Revised PF
A17: 12 | B17: Dakkili | C17: 12 | D17: Gudipala | E17: Dornala | F17: Duggirala | G17: • Cuddapah | O17: 13 | P17: Medak District | Q17: 13 | R17: =IF(B1=1," ",IF(B1=2,B18,IF(B1=3,D18,IF(B1=4,E18,IF(B1=5,F18,G18))))) -> • Duvvur • | U17: 13 | V17: 9460 | AA17: 13 | AB17: 7385 | AC17: 1 | AE17: 4 | AF17: =VLOOKUP(AE17,AE18:AF29,2) ->  | AG17: 8/16/24 scale | AI17: date | AJ17: 1 | AK17: =LOOKUP(AJ17,AE18:AE19,AK18:AK19) ->  | AO17: 6 | AQ17: =Data!Y30 -> 0 | AR17: apgli | AS17: =Data!T30 -> 0 | AX17: 4 | BG17: Start date | BI17: End date | BM17: End date
A18: 13 | B18: Doravarisatram | C18: 13 | D18: Gurramkonda | E18: Giddaluru | F18: Durgi | G18: • Duvvur • | O18: 14 | P18: Nalgonda District | Q18: 14 | R18: =IF(B1=1," ",IF(B1=2,B19,IF(B1=3,D19,IF(B1=4,E19,IF(B1=5,F19,G19))))) -> Galiveedu • | U18: 14 | V18: 9740 | AA18: 14 | AB18: 7570 | AC18: 1 | AD18: =IF(AH18="Applicable",AC18," ") ->  | AE18: 1 | AF18: =IF(AH18="Applicable",X5," ") ->  | AG18: 2 | AH18: =LOOKUP(AG18,AG19:AH20) -> Not Applicale | AI18: 31 | AJ18: =IF(AH18="Applicable",AM18," ") ->  | AK18: =IF(AH18="Applicable",AN18," ") ->  | AL18: =IF(OR(AD3=30,AD3=15),AQ18," ") -> 2010-03-01 | AM18: Jan | AN18: 2010 | AO18: 1 | AP18: =IF(AQ17>0,AQ18," ") ->  | AQ18: 2010-03-01 | AR18: ='SALARY TABLE'!U5 -> 0 | AT18: =IF(AO18>=AO17,AQ17,AS17) -> 0 | AU18: =AS17 -> 0 | AV18: =IF(AT18=0,AU18,AT18) -> 0 | AX18: 2010-03-01 | AZ18: =$AA$3 -> 18 | BA18: =LOOKUP(AZ18,AZ19:AZ83,BA19:BA83) -> 8385 | BB18: =LOOKUP(BA18,BA20:BA84,BB20:BB84) -> 15280 | BG18: Half pay | BH18: Loss of pay | BI18: Half pay | BJ18: Loss of pay
A19: 14 | B19: Duttalur | C19: 14 | D19: Irala | E19: Gudluru | F19: Edlapadu | G19: Galiveedu • | O19: 15 | P19: Nizamabad District | Q19: 15 | R19: =IF(B1=1," ",IF(B1=2,B20,IF(B1=3,D20,IF(B1=4,E20,IF(B1=5,F20,G20))))) -> Gopavaram • | U19: 15 | V19: 10020 | AA19: 15 | AB19: 7770 | AC19: 2 | AD19: =IF(AH18="Applicable",AC19," ") ->  | AE19: 2 | AF19: =IF(AH18="Applicable",X6," ") ->  | AG19: 1 | AH19: Applicable | AI19: 28 | AJ19: =IF(AH18="Applicable",AM19," ") ->  | AK19: =IF(AH18="Applicable",AN19," ") ->  | AL19: =IF(OR(AD3=30,AD3=15),AQ19," ") -> 2010-04-01 | AM19: Feb | AN19: 2011 | AO19: 2 | AP19: =IF(AQ17>0,AQ19," ") ->  | AQ19: 2010-04-01 | AR19: ='SALARY TABLE'!U6 -> 0 | AT19: =IF(AO19>=AO17,AQ17,AS17) -> 0 | AU19: =AU18 -> 0 | AV19: =IF(AT19=0,AU19,AT19) -> 0 | AX19: 2010-04-01 | BA19: 0 | BB19: SGT | BC19: SA | BD19: HM | BE19: 1 | BF19: Secondary Grade Teacher | BG19: =IF($AN$3="Applicable",AC18," ") ->  | BH19: =IF($AP$3="Applicable",AC18," ") ->  | BI19: =IF($AN$3="Applicable",AC18," ") ->  | BJ19: =IF($AP$3="Applicable",AC18," ") ->  | BM19: Half pay | BN19: Loss of pay
A20: 15 | B20: Gudur | C20: 15 | D20: K V P Puram | E20: Hanumanthunipadu | F20: Guntur | G20: Gopavaram • | O20: 16 | P20: Prakasham District | Q20: 16 | R20: =IF(B1=1," ",IF(B1=2,B21,IF(B1=3,D21,IF(B1=4,E21,IF(B1=5,F21,G21))))) -> Jammalamadugu • | U20: 16 | V20: 10300 | AA20: 16 | AB20: 7970 | AC20: 3 | AD20: =IF(AH18="Applicable",AC20," ") ->  | AE20: 3 | AF20: =IF(AH18="Applicable",X7," ") ->  | AG20: 2 | AH20: Not Applicale | AI20: 31 | AJ20: =IF(AH18="Applicable",AM20," ") ->  | AL20: =IF(OR(AD3=30,AD3=15),AQ20," ") -> 2010-05-01 | AM20: Mar | AO20: 3 | AP20: =IF(AQ17>0,AQ20," ") ->  | AQ20: 2010-05-01 | AR20: ='SALARY TABLE'!U7 -> 0 | AT20: =IF(AO20>=AO17,AQ17,AS17) -> 0 | AU20: 0 | AV20: 0 | AX20: 2010-05-01 | AY20: 5470 | AZ20: 1 | BA20: 5470 | BB20: 10900 | BC20: 14860 | BD20: 18030 | BE20: 2 | BF20: School Assistant | BH20: =IF($AP$3="Applicable",AC19," ") ->  | BI20: =IF($AN$3="Applicable",AC19," ") ->  | BJ20: =IF($AP$3="Applicable",AC19," ") ->  | BK20: 1 | BM20: 1 | BN20: 1
A21: 16 | B21: Indukurpet | C21: 16 | D21: Kalakada | E21: Inkollu | F21: Gurazala | G21: Jammalamadugu • | O21: 17 | P21: Ranga Reddy District | Q21: 17 | R21: =IF(B1=1," ",IF(B1=2,B22,IF(B1=3,D22,IF(B1=4,E22,IF(B1=5,F22,G22))))) -> Kalasapadu • | U21: 17 | V21: 10600 | AA21: 17 | AB21: 8170 | AC21: 4 | AD21: =IF(AH18="Applicable",AC21," ") ->  | AE21: 4 | AF21: =IF(AH18="Applicable",X8," ") ->  | AI21: 30 | AJ21: =IF(AH18="Applicable",AM21," ") ->  | AL21: =IF(OR(AD3=30,AD3=15),AQ21," ") -> 2010-06-01 | AM21: Apr | AO21: 4 | AP21: =IF(AQ17>0,AQ21," ") ->  | AQ21: 2010-06-01 | AR21: ='SALARY TABLE'!U8 -> 0 | AT21: =IF(AO21>=AO17,AQ17,AS17) -> 0 | AU21: 0 | AV21: 0 | AX21: 2010-06-01 | AY21: 5605 | AZ21: 2 | BA21: 5605 | BB21: 10900 | BC21: 14860 | BD21: 18030 | BE21: 3 | BF21: HM | BK21: 1 | BL21: 2010 | BM21: =IF(AN$3="Applicable",BL21," ") ->  | BN21: =IF(AP$3="Applicable",BL21," ") -> 
A22: 17 | B22: Jaladanki | C22: 17 | D22: Kalikiri | E22: Janakavaram Panguluru | F22: Ipuru | G22: Kalasapadu • | O22: 18 | P22: Sreekakulam District | Q22: 18 | R22: =IF(B1=1," ",IF(B1=2,B23,IF(B1=3,D23,IF(B1=4,E23,IF(B1=5,F23,G23))))) -> Kamalapuram • | U22: 18 | V22: 10900 | AA22: 18 | AB22: 8385 | AC22: 5 | AD22: =IF(AH18="Applicable",AC22," ") ->  | AE22: 5 | AF22: =IF(AH18="Applicable",X9," ") ->  | AG22: Stepup | AI22: 31 | AJ22: =IF(AH18="Applicable",AM22," ") ->  | AL22: =IF(OR(AD3=30,AD3=15),AQ22," ") -> 2010-07-01 | AM22: May | AO22: 5 | AP22: =IF(AQ17>0,AQ22," ") ->  | AQ22: 2010-07-01 | AR22: ='SALARY TABLE'!U9 -> 0 | AT22: =IF(AO22>=AO17,AQ17,AS17) -> 0 | AU22: 0 | AV22: 0 | AX22: 2010-07-01 | AY22: 5750 | AZ22: 3 | BA22: 5750 | BB22: 10900 | BC22: 14860 | BD22: 18030 | BK22: 2 | BL22: 2011 | BM22: =IF(AN$3="Applicable",BL22," ") ->  | BN22: =IF(AP$3="Applicable",BL22," ") -> 
A23: 18 | B23: Kaligiri | C23: 18 | D23: Kambhamvaripalle | E23: Kandukur | F23: Kakumanu | G23: Kamalapuram • | O23: 19 | P23: Vishakapatnam District | Q23: 19 | R23: =IF(B1=1," ",IF(B1=2,B24,IF(B1=3,D24,IF(B1=4,E24,IF(B1=5,F24,G24))))) -> Khajipet • | U23: 19 | V23: 11200 | AA23: 19 | AB23: 8600 | AC23: 6 | AD23: =IF(AH18="Applicable",AC23," ") ->  | AE23: 6 | AF23: =IF(AH18="Applicable",X10," ") ->  | AG23: 2 | AH23: =LOOKUP(AG23,AG24:AH25) -> Not Applicale | AI23: 30 | AJ23: =IF(AH18="Applicable",AM23," ") ->  | AL23: =IF(OR(AD3=30,AD3=15),AQ23," ") -> 2010-08-01 | AM23: Jun | AO23: 6 | AP23: =IF(AQ17>0,AQ23," ") ->  | AQ23: 2010-08-01 | AR23: ='SALARY TABLE'!U10 -> 0 | AT23: =IF(AO23>=AO17,AQ17,AS17) -> 0 | AU23: 0 | AV23: 0 | AX23: 2010-08-01 | AY23: 5895 | AZ23: 4 | BA23: 5895 | BB23: 10900 | BC23: 14860 | BD23: 18030 | BL23: Year | BM23: =LOOKUP(BM20,BK21:BK22,BM21:BM22) ->  | BN23: =LOOKUP(BN20,BK21:BK22,BN21:BN22) -> 
A24: 19 | B24: Kaluvoya | C24: 19 | D24: Karvetinagar | E24: Kanigiri | F24: Karempudi | G24: Khajipet • | O24: 20 | P24: Vizianagaram District | Q24: 20 | R24: =IF(B1=1," ",IF(B1=2,B25,IF(B1=3,D25,IF(B1=4,E25,IF(B1=5,F25,G25))))) -> Kodur • | U24: 20 | V24: 11530 | AA24: 20 | AB24: 8815 | AC24: 7 | AD24: =IF(AH18="Applicable",AC24," ") ->  | AE24: 7 | AF24: =IF(AH18="Applicable",X11," ") ->  | AG24: 1 | AH24: Applicable | AI24: 31 | AJ24: =IF(AH18="Applicable",AM24," ") ->  | AL24: =IF(OR(AD3=30,AD3=15),AQ24," ") -> 2010-09-01 | AM24: Jul | AO24: 7 | AP24: =IF(AQ17>0,AQ24," ") ->  | AQ24: 2010-09-01 | AR24: ='SALARY TABLE'!U11 -> 0 | AT24: =IF(AO24>=AO17,AQ17,AS17) -> 0 | AU24: 0 | AV24: 0 | AX24: 2010-09-01 | AY24: 6040 | AZ24: 5 | BA24: 6040 | BB24: 11200 | BC24: 14860 | BD24: 18030
A25: 20 | B25: Kavali | C25: 20 | D25: Kuppam | E25: Karamchedu | F25: Karlapalem | G25: Kodur • | P25: Warangal District | Q25: 21 | R25: =IF(B1=1," ",IF(B1=2,B26,IF(B1=3,D26,IF(B1=4,E26,IF(B1=5,F26,G26))))) -> Kondapuram • | U25: 21 | V25: 11860 | AA25: 21 | AB25: 9050 | AC25: 8 | AD25: =IF(AH18="Applicable",AC25," ") ->  | AE25: 8 | AF25: =IF(AH18="Applicable",X12," ") ->  | AG25: 2 | AH25: Not Applicale | AI25: 31 | AJ25: =IF(AH18="Applicable",AM25," ") ->  | AL25: =IF(OR(AD3=30,AD3=15),AQ25," ") -> 2010-10-01 | AM25: Aug | AO25: 8 | AP25: =IF(AQ17>0,AQ25," ") ->  | AQ25: 2010-10-01 | AR25: ='SALARY TABLE'!U12 -> 0 | AT25: =IF(AO25>=AO17,AQ17,AS17) -> 0 | AU25: 0 | AV25: 0 | AX25: 2010-10-01 | AY25: 6195 | AZ25: 6 | BA25: 6195 | BB25: 11530 | BC25: 14860 | BD25: 18030
A26: 21 | B26: Kodavalur | C26: 21 | D26: Kurabalakota | E26: Komarolu | F26: Kollipara | G26: Kondapuram • | O26: 22 | P26: West Godavari District | Q26: 22 | R26: =IF(B1=1," ",IF(B1=2,B27,IF(B1=3,D27,IF(B1=4,E27,IF(B1=5,F27,G27))))) -> Lakkireddipalle • | U26: 22 | V26: 12190 | AA26: 22 | AB26: 9285 | AC26: 9 | AD26: =IF(AH18="Applicable",AC26," ") ->  | AE26: 9 | AF26: =IF(AH18="Applicable",X13," ") ->  | AG26: 8 | AH26: 4 | AI26: 30 | AJ26: =IF(AH18="Applicable",AM26," ") ->  | AL26: =IF(OR(AD3=30,AD3=15),AQ26," ") -> 2010-11-01 | AM26: Sep | AO26: 9 | AP26: =IF(AQ17>0,AQ26," ") ->  | AQ26: 2010-11-01 | AR26: ='SALARY TABLE'!U13 -> 0 | AT26: =IF(AO26>=AO17,AQ17,AS17) -> 0 | AU26: 0 | AV26: 0 | AX26: 2010-11-01 | AY26: 6350 | AZ26: 7 | BA26: 6350 | BB26: 11530 | BC26: 14860 | BD26: 18030
A27: 22 | B27: Kondapuram | C27: 22 | D27: Mandanpalle | E27: Konakanamitla | F27: Kollur | G27: Lakkireddipalle • | O27: 23 | P27: YSR Kadapa District | Q27: 23 | R27: =IF(B1=1," ",IF(B1=2,B28,IF(B1=3,D28,IF(B1=4,E28,IF(B1=5,F28,G28))))) -> Lingala • | U27: 23 | V27: 12550 | AA27: 23 | AB27: 9520 | AC27: 10 | AD27: =IF(AH18="Applicable",AC27," ") ->  | AE27: 10 | AF27: =IF(AH18="Applicable",X14," ") ->  | AI27: 31 | AJ27: =IF(AH18="Applicable",AM27," ") ->  | AL27: =IF(OR(AD3=30,AD3=15),AQ27," ") -> 2010-12-01 | AM27: Oct | AO27: 10 | AP27: =IF(AQ17>0,AQ27," ") ->  | AQ27: 2010-12-01 | AR27: ='SALARY TABLE'!U14 -> 0 | AT27: =IF(AO27>=AO17,AQ17,AS17) -> 0 | AU27: 0 | AV27: 0 | AX27: 2010-12-01 | AY27: 6505 | AZ27: 8 | BA27: 6505 | BB27: 11860 | BC27: 14860 | BD27: 18030
A28: 23 | B28: Kota | C28: 23 | D28: Mulakalacheruvu | E28: Kondapi | F28: Krosuru | G28: Lingala • | Q28: 24 | R28: =IF(B1=1," ",IF(B1=2,B29,IF(B1=3,D29,IF(B1=4,E29,IF(B1=5,F29,G29))))) -> Muddanur • | U28: 24 | V28: 12910 | AA28: 24 | AB28: 9775 | AC28: 11 | AD28: =IF(AH18="Applicable",AC28," ") ->  | AE28: 11 | AF28: =IF(AH18="Applicable",X15," ") ->  | AI28: 30 | AJ28: =IF(AH18="Applicable",AM28," ") ->  | AL28: =IF(OR(AD3=30,AD3=15),AQ28," ") -> 2011-01-01 | AM28: Nov | AO28: 11 | AP28: =IF(AQ17>0,AQ28," ") ->  | AQ28: 2011-01-01 | AR28: ='SALARY TABLE'!U15 -> 0 | AT28: =IF(AO28>=AO17,AQ17,AS17) -> 0 | AU28: 0 | AV28: 0 | AX28: 2011-01-01 | AY28: 6675 | AZ28: 9 | BA28: 6675 | BB28: 12190 | BC28: 14860 | BD28: 18030 | BK28: 1 | BL28: 2010-01-01 | BM28: 31 | BN28: =BM28 -> 1900-01-31 | BP28: 40179 | BQ28: =BP29-BP28 -> 31
A29: 24 | B29: Kovur | C29: 24 | D29: Nagalapuram | E29: Korisapadu | F29: Machavaram | G29: Muddanur • | Q29: 25 | R29: =IF(B1=1," ",IF(B1=2,B30,IF(B1=3,D30,IF(B1=4,E30,IF(B1=5,F30,G30))))) -> Mylavaram • | U29: 25 | V29: 13270 | AA29: 25 | AB29: 10030 | AC29: 12 | AD29: =IF(AH18="Applicable",AC29," ") ->  | AE29: 12 | AF29: =IF(AH18="Applicable",X16," ") ->  | AG29: 1 | AH29: =LOOKUP(AG29,AG30:AG31,AH30:AH31) ->  | AI29: 31 | AJ29: =IF(AH18="Applicable",AM29," ") ->  | AL29: =IF(OR(AD3=30,AD3=15),AQ29," ") -> 2011-02-01 | AM29: Dec | AO29: 12 | AP29: =IF(AQ17>0,AQ29," ") ->  | AQ29: 2011-02-01 | AR29: ='SALARY TABLE'!U16 -> 0 | AT29: =IF(AO29>=AO17,AQ17,AS17) -> 0 | AU29: 0 | AV29: 0 | AX29: 2011-02-01 | AY29: 6845 | AZ29: 10 | BA29: 6845 | BB29: 12550 | BC29: 14860 | BD29: 18030 | BK29: 2 | BL29: 2010-02-01 | BM29: 28 | BN29: =BM29 -> 1900-01-28 | BP29: 40210 | BQ29: =BP30-BP29 -> 28
A30: 25 | B30: Manubolu | C30: 25 | D30: Nagari | E30: Kothapatnam | F30: Macherla | G30: Mylavaram • | O30: 1 | P30: Not applicable | Q30: 26 | R30: =IF(B1=1," ",IF(B1=2,B31,IF(B1=3,D31,IF(B1=4,E31,IF(B1=5,F31,G31))))) -> Mydukur • | U30: 26 | V30: 13660 | AA30: 26 | AB30: 10285 | AC30: 13 | AD30: =IF(AH18="Applicable",AC30," ") ->  | AE30: 8/16/24 scale | AG30: 1 | AH30: =IF(AH23="Applicable",AN18," ") ->  | AI30: 1 | AJ30: =LOOKUP(AI30,AI31:AI32,AJ31:AJ32) ->  | AL30: PHC | AY30: 7015 | AZ30: 11 | BA30: 7015 | BB30: 12910 | BC30: 14860 | BD30: 18030 | BK30: 3 | BL30: 2010-03-01 | BM30: 31 | BN30: 1900-01-31 | BP30: 40238 | BQ30: 31
A31: 26 | B31: Marripadu | C31: 26 | D31: Narayanavanam | E31: Kurichedu | F31: Mangalagiri | G31: Mydukur • | O31: 2 | P31: SPSR Nellore District | Q31: 27 | R31: =IF(B1=1," ",IF(B1=2,B32,IF(B1=3,D32,IF(B1=4,E32,IF(B1=5,F32,G32))))) -> Nandalur • | U31: 27 | V31: 14050 | AA31: 27 | AB31: 10565 | AC31: 14 | AD31: =IF(AH18="Applicable",AC31," ") ->  | AE31: Date | AF31: =DATE(AK17,AE17,AC17) ->  | AG31: 2 | AH31: =IF(AH23="Applicable",AN19," ") ->  | AI31: 1 | AJ31: =IF(AE3=1,AL31," ") ->  | AL31: Vacation Post | AY31: 7200 | AZ31: 12 | BA31: 7200 | BB31: 13270 | BC31: 14860 | BD31: 18030 | BK31: 4 | BL31: 2010-04-01 | BM31: 30 | BN31: 1900-01-30 | BP31: 40269 | BQ31: 30
A32: 27 | B32: Muthukur | C32: 27 | D32: Nimmanapalle | E32: Lingasamudram | F32: Medikonduru | G32: Nandalur • | O32: 3 | P32: Chittoor District | Q32: 28 | R32: =IF(B1=1," ",IF(B1=2,B33,IF(B1=3,D33,IF(B1=4,E33,IF(B1=5,F33,G33))))) -> Obulavaripalle • | U32: 28 | V32: 14440 | W32: 1 | X32: 24.824 | Y32: =X32 -> 24.824 | AA32: 28 | AB32: 10845 | AC32: 15 | AD32: =IF(AH18="Applicable",AC32," ") ->  | AF32: =DATE(AK17,AE17,1) ->  | AI32: 2 | AJ32: =IF(AE3=1,AL32," ") ->  | AL32: Non Vacation Post | AO32: 1 | AP32: =LOOKUP(AX17,AO18:AO29,AX18:AX29) -> 2010-06-01 | AQ32: =Data!Y28 -> 0 | AR32: PF | AS32: =Data!T28 -> 0 | AY32: 7385 | AZ32: 13 | BA32: 7385 | BB32: 13660 | BC32: 14860 | BD32: 18030 | BK32: 5 | BL32: 2010-05-01 | BM32: 31 | BN32: 1900-01-31 | BP32: 40299 | BQ32: 31
A33: 28 | B33: Naidupeta | C33: 28 | D33: Nindra | E33: Maddipadu | F33: Muppalla | G33: Obulavaripalle • | O33: 4 | P33: Prakasham District | Q33: 29 | R33: =IF(B1=1," ",IF(B1=2,B34,IF(B1=3,D34,IF(B1=4,E34,IF(B1=5,F34,G34))))) -> Peddamudium • | U33: 29 | V33: 14860 | W33: 2 | X33: 24.824 | Y33: =X33 -> 24.824 | AA33: 29 | AB33: 11125 | AC33: 16 | AD33: =IF(AH18="Applicable",AC33," ") ->  | AF33: =LOOKUP(AE17,AE18:AE29,AI18:AI29) -> 30 | AH33: =IF($AH$23="Applicable",AM18," ") ->  | AO33: 1 | AP33: =IF(AQ32>0,AQ33," ") ->  | AQ33: 2010-03-01 | AR33: ='SALARY TABLE'!R5 -> 0 | AT33: =IF(AO33>=AO32,AQ32,AS32) -> 0 | AU33: =AS32 -> 0 | AV33: =IF(AT33=0,AU33,AT33) -> 0 | AY33: 7570 | AZ33: 14 | BA33: 7570 | BB33: 14050 | BC33: 14860 | BD33: 18030 | BK33: 6 | BL33: 2010-06-01 | BM33: 30 | BN33: 1900-01-30 | BP33: 40330 | BQ33: 30
A34: 29 | B34: Nellore | C34: 29 | D34: Pakala | E34: Markapur | F34: Nadendla | G34: Peddamudium • | O34: 5 | P34: Guntur District | Q34: 30 | R34: =IF(B1=1," ",IF(B1=2,B35,IF(B1=3,D35,IF(B1=4,E35,IF(B1=5,F35,G35))))) -> Penagaluru • | U34: 30 | V34: 15280 | W34: 3 | X34: 24.824 | Y34: =X34 -> 24.824 | AA34: 30 | AB34: 11440 | AC34: 17 | AD34: =IF(AH18="Applicable",AC34," ") ->  | AE34: Days | AF34: =AF33-AC17+1 -> 30 | AH34: =IF($AH$23="Applicable",AM19," ") ->  | AO34: 2 | AP34: =IF(AQ32>0,AQ34," ") ->  | AQ34: 2010-04-01 | AR34: ='SALARY TABLE'!R6 -> 0 | AT34: =IF(AO34>=AO32,AQ32,AS32) -> 0 | AU34: =AU33 -> 0 | AV34: =IF(AT34=0,AU34,AT34) -> 0 | AY34: 7770 | AZ34: 15 | BA34: 7770 | BB34: 14440 | BC34: 14860 | BD34: 18030 | BK34: 7 | BL34: 2010-07-01 | BM34: 31 | BN34: 1900-01-31 | BP34: 40360 | BQ34: 31
A35: 30 | B35: Ojili | C35: 30 | D35: Palamaner | E35: Marripudi | F35: Nagaram | G35: Penagaluru • | O35: 6 | P35: YSR Kadapa District | Q35: 31 | R35: =IF(B1=1," ",IF(B1=2,B36,IF(B1=3,D36,IF(B1=4,E36,IF(B1=5,F36,G36))))) -> Pendlimarri • | U35: 31 | V35: 15700 | W35: 4 | X35: 9.416 | Y35: 16.264 | AA35: 31 | AB35: 11755 | AC35: 18 | AD35: =IF(AH18="Applicable",AC35," ") ->  | AF35: =LOOKUP(AF32,'SALARY TABLE'!B55:B68,'SALARY TABLE'!C55:C68) ->  | AJ35: Vacation | AK35: N-V | AO35: 3 | AP35: =IF(AQ32>0,AQ35," ") ->  | AQ35: 2010-05-01 | AR35: ='SALARY TABLE'!R7 -> 0 | AT35: =IF(AO35>=AO32,AQ32,AS32) -> 0 | AU35: 0 | AV35: 0 | AY35: 7970 | AZ35: 16 | BA35: 7970 | BB35: 14860 | BC35: 14860 | BD35: 18030 | BK35: 8 | BL35: 2010-08-01 | BM35: 31 | BN35: 1900-01-31 | BP35: 40391 | BQ35: 31
A36: 31 | B36: Pellakur | C36: 31 | D36: Palasamudram | E36: Martur | F36: Nakarikallu | G36: Pendlimarri • | Q36: 32 | R36: =IF(B1=1," ",IF(B1=2,B37,IF(B1=3,D37,IF(B1=4,E37,IF(B1=5,F37,G37))))) -> Porumamilla • | U36: 32 | V36: 16150 | W36: 5 | X36: 9.416 | Y36: 16.264 | AA36: 32 | AB36: 12070 | AC36: 19 | AD36: =IF(AH18="Applicable",AC36," ") ->  | AF36: =LOOKUP(AF35,'SALARY TABLE'!B48:CC48,'SALARY TABLE'!B49:CC49) ->  | AI36: ='SALARY TABLE'!I57 -> 15700 | AJ36: =IF(AE3=1,IF(ROUND(AI36*10%,0)<650,ROUND(AI36*10%,0),650),0) -> 0 | AK36: =IF(AE3=1,IF(ROUND(AI36*10%,0)<650,ROUND(AI36*10%,0),650),0) -> 0 | AL36: =IF(AI30=1,AJ36,AK36) -> 0 | AO36: 4 | AP36: =IF(AQ32>0,AQ36," ") ->  | AQ36: 2010-06-01 | AR36: ='SALARY TABLE'!R8 -> 0 | AT36: =IF(AO36>=AO32,AQ32,AS32) -> 0 | AU36: 0 | AV36: 0 | AY36: 8170 | AZ36: 17 | BA36: 8170 | BB36: 14860 | BC36: 14860 | BD36: 18030 | BK36: 9 | BL36: 2010-09-01 | BM36: 30 | BN36: 1900-01-30 | BP36: 40422 | BQ36: 30
A37: 32 | B37: Podlakur | C37: 32 | D37: Pedda Panjani | E37: Mundlamuru | F37: Narasaraopeta | G37: Porumamilla • | Q37: 33 | R37: =IF(B1=1," ",IF(B1=2,B38,IF(B1=3,D38,IF(B1=4,E38,IF(B1=5,F38,G38))))) -> Proddutur • | U37: 33 | V37: 16600 | W37: 6 | X37: 9.416 | Y37: 16.264 | AA37: 33 | AB37: 12385 | AC37: 20 | AD37: =IF(AH18="Applicable",AC37," ") ->  | AF37: =AF36-AF35 ->  | AI37: ='SALARY TABLE'!I58 -> 15700 | AJ37: =IF(AE3=1,IF(ROUND(AI37*10%,0)<900,ROUND(AI37*10%,0),900)/30*23,0) -> 0 | AK37: =IF(AE3=1,IF(ROUND(AI37*10%,0)<900,ROUND(AI37*10%,0),900),0) -> 0 | AL37: =IF(AI30=1,AJ37,AK37) -> 0 | AO37: 5 | AP37: =IF(AQ32>0,AQ37," ") ->  | AQ37: 2010-07-01 | AR37: ='SALARY TABLE'!R9 -> 0 | AT37: =IF(AO37>=AO32,AQ32,AS32) -> 0 | AU37: 0 | AV37: 0 | AY37: 8385 | AZ37: 18 | BA37: 8385 | BB37: 15280 | BC37: 15280 | BD37: 18030 | BK37: 10 | BL37: 2010-10-01 | BM37: 31 | BN37: 1900-01-31 | BP37: 40452 | BQ37: 31
A38: 33 | B38: Rapur | C38: 33 | D38: Peddamandyam | E38: Naguluppalapadu | F38: Nizampatnam | G38: Proddutur • | Q38: 34 | R38: =IF(B1=1," ",IF(B1=2,B39,IF(B1=3,D39,IF(B1=4,E39,IF(B1=5,F39,G39))))) -> Pulivendla • | U38: 34 | V38: 17050 | W38: 7 | X38: 16.264 | Y38: 24.824 | AA38: 34 | AB38: 12700 | AC38: 21 | AD38: =IF(AH18="Applicable",AC38," ") ->  | AF38: =ROUND(AF37/AF33*AF34,0) ->  | AI38: ='SALARY TABLE'!I59 -> 15700 | AJ38: 0 | AK38: =IF(AE3=1,IF(ROUND(AI38*10%,0)<900,ROUND(AI38*10%,0),900),0) -> 0 | AL38: =IF(AI30=1,AJ38,AK38) -> 0 | AO38: 6 | AP38: =IF(AQ32>0,AQ38," ") ->  | AQ38: 2010-08-01 | AR38: ='SALARY TABLE'!R10 -> 0 | AT38: =IF(AO38>=AO32,AQ32,AS32) -> 0 | AU38: 0 | AV38: 0 | AY38: 8600 | AZ38: 19 | BA38: 8600 | BB38: 15700 | BC38: 15700 | BD38: 18030 | BK38: 11 | BL38: 2010-11-01 | BM38: 30 | BN38: 1900-01-30 | BP38: 40483 | BQ38: 30
A39: 34 | B39: Sangam | C39: 34 | D39: Peddathippasamudram | E39: Ongole | F39: Nuzendla | G39: Pulivendla • | Q39: 35 | R39: =IF(B1=1," ",IF(B1=2,B40,IF(B1=3,D40,IF(B1=4,E40,IF(B1=5,F40,G40))))) -> Pullampeta • | U39: 35 | V39: 17540 | W39: 8 | X39: 16.264 | Y39: 24.824 | AA39: 35 | AB39: 13030 | AC39: 22 | AD39: =IF(AH18="Applicable",AC39," ") ->  | AE39: 8/16/24 DA | AF39: =LOOKUP(AE17,W32:W43,Y32:Y43) -> 16.264 | AG39: =LOOKUP(AE17,W32:W43,X32:X43) -> 9.416 | AI39: ='SALARY TABLE'!I60 -> 15700 | AJ39: =IF(AE3=1,IF(ROUND(AI39*10%,0)<900,ROUND(AI39*10%,0),900)/30*17,0) -> 0 | AK39: =IF(AE3=1,IF(ROUND(AI39*10%,0)<900,ROUND(AI39*10%,0),900),0) -> 0 | AL39: =IF(AI30=1,AJ39,AK39) -> 0 | AO39: 7 | AP39: =IF(AQ32>0,AQ39," ") ->  | AQ39: 2010-09-01 | AR39: ='SALARY TABLE'!R11 -> 0 | AT39: =IF(AO39>=AO32,AQ32,AS32) -> 0 | AU39: 0 | AV39: 0 | AY39: 8815 | AZ39: 20 | BA39: 8815 | BB39: 16150 | BC39: 16150 | BD39: 18030 | BK39: 12 | BL39: 2010-12-01 | BM39: 31 | BN39: 1900-01-31 | BP39: 40513 | BQ39: 31
A40: 35 | B40: Seetharamapuram | C40: 35 | D40: Penumuru | E40: Pamur | F40: Pedakakani | G40: Pullampeta • | Q40: 36 | R40: =IF(B1=1," ",IF(B1=2,B41,IF(B1=3,D41,IF(B1=4,E41,IF(B1=5,F41,G41))))) -> Railway Koduru • | U40: 36 | V40: 18030 | W40: 9 | X40: 16.264 | Y40: 24.824 | AA40: 36 | AB40: 13390 | AC40: 23 | AD40: =IF(AH18="Applicable",AC40," ") ->  | AE40: DA | AF40: =ROUND(AF38*AF39%,0) ->  | AG40: =ROUND(AF38*AG39%,0) ->  | AI40: ='SALARY TABLE'!I61 -> 15700 | AJ40: =IF(AE3=1,IF(ROUND(AI40*10%,0)<900,ROUND(AI40*10%,0),900),0) -> 0 | AK40: =IF(AE3=1,IF(ROUND(AI40*10%,0)<900,ROUND(AI40*10%,0),900),0) -> 0 | AL40: =IF(AI30=1,AJ40,AK40) -> 0 | AO40: 8 | AP40: =IF(AQ32>0,AQ40," ") ->  | AQ40: 2010-10-01 | AR40: ='SALARY TABLE'!R12 -> 0 | AT40: =IF(AO40>=AO32,AQ32,AS32) -> 0 | AU40: 0 | AV40: 0 | AY40: 9050 | AZ40: 21 | BA40: 9050 | BB40: 16600 | BC40: 16600 | BD40: 18030 | BK40: 13 | BL40: 2011-01-01 | BM40: 31 | BN40: 1900-01-31 | BP40: 40544 | BQ40: 31
A41: 36 | B41: Sullurpeta | C41: 36 | D41: Pichatur | E41: Parchur | F41: Pedakurapadu | G41: Railway Koduru • | Q41: 37 | R41: =IF(B1=1," ",IF(B1=2,B42,IF(B1=3,D42,IF(B1=4,E42,IF(B1=5,F42,G42))))) -> Rajampet • | U41: 37 | V41: 18520 | W41: 10 | X41: 16.264 | Y41: 24.824 | AA41: 37 | AB41: 13750 | AC41: 24 | AD41: =IF(AH18="Applicable",AC41," ") ->  | AI41: ='SALARY TABLE'!I62 -> 15700 | AJ41: =IF(AE3=1,IF(ROUND(AI41*10%,0)<900,ROUND(AI41*10%,0),900),0) -> 0 | AK41: =IF(AE3=1,IF(ROUND(AI41*10%,0)<900,ROUND(AI41*10%,0),900),0) -> 0 | AL41: =IF(AI30=1,AJ41,AK41) -> 0 | AO41: 9 | AP41: =IF(AQ32>0,AQ41," ") ->  | AQ41: 2010-11-01 | AR41: ='SALARY TABLE'!R13 -> 0 | AT41: =IF(AO41>=AO32,AQ32,AS32) -> 0 | AU41: 0 | AV41: 0 | AY41: 9285 | AZ41: 22 | BA41: 9285 | BB41: 17050 | BC41: 17050 | BD41: 18030 | BK41: 14 | BL41: 2011-02-01 | BM41: 28 | BN41: 1900-01-28 | BP41: 40575 | BQ41: =BP42-BP41 -> 28
A42: 37 | B42: Sydapuram | C42: 37 | D42: Pileru | E42: Pedaaraveedu | F42: Phirangipuram | G42: Rajampet • | Q42: 38 | R42: =IF(B1=1," ",IF(B1=2,B43,IF(B1=3,D43,IF(B1=4,E43,IF(B1=5,F43,G43))))) -> Raju Palem • | U42: 38 | V42: 19050 | W42: 11 | X42: 16.264 | Y42: 24.824 | AA42: 38 | AB42: 14175 | AC42: 25 | AD42: =IF(AH18="Applicable",AC42," ") ->  | AE42: Step up | AI42: ='SALARY TABLE'!I63 -> 15700 | AJ42: =IF(AE3=1,IF(ROUND(AI42*10%,0)<900,ROUND(AI42*10%,0),900),0) -> 0 | AK42: =IF(AE3=1,IF(ROUND(AI42*10%,0)<900,ROUND(AI42*10%,0),900),0) -> 0 | AL42: =IF(AI30=1,AJ42,AK42) -> 0 | AO42: 10 | AP42: =IF(AQ32>0,AQ42," ") ->  | AQ42: 2010-12-01 | AR42: ='SALARY TABLE'!R14 -> 0 | AT42: =IF(AO42>=AO32,AQ32,AS32) -> 0 | AU42: 0 | AV42: 0 | AY42: 9520 | AZ42: 23 | BA42: 9520 | BB42: 17540 | BC42: 17540 | BD42: 18030 | BL42: 2011-03-01 | BP42: 40603
A43: 38 | B43: Tada | C43: 38 | D43: Pulicherla | E43: Pedacherlopalle | F43: Piduguralla | G43: Raju Palem • | Q43: 39 | R43: =IF(B1=1," ",IF(B1=2,B44,IF(B1=3,D44,IF(B1=4,E44,IF(B1=5,F44,G44))))) -> Ramapuram • | U43: 39 | V43: 19580 | W43: 12 | X43: 24.824 | Y43: =X43 -> 24.824 | AA43: 39 | AB43: 14600 | AC43: 26 | AD43: =IF(AH18="Applicable",AC43," ") ->  | AE43: Date | AF43: =DATE(AH29,AH26,AG26) ->  | AI43: ='SALARY TABLE'!I64 -> 15700 | AJ43: =IF(AE3=1,ROUND(IF(ROUND(AI43*10%,0)<900,ROUND(AI43*10%,0),900)/31*19,0),0) -> 0 | AK43: =IF(AE3=1,IF(ROUND(AI43*10%,0)<900,ROUND(AI43*10%,0),900),0) -> 0 | AL43: =IF(AI30=1,AJ43,AK43) -> 0 | AO43: 11 | AP43: =IF(AQ32>0,AQ43," ") ->  | AQ43: 2011-01-01 | AR43: ='SALARY TABLE'!R15 -> 0 | AT43: =IF(AO43>=AO32,AQ32,AS32) -> 0 | AU43: 0 | AV43: 0 | AY43: 9775 | AZ43: 24 | BA43: 9775 | BB43: 18030 | BC43: 18030 | BD43: 18030
A44: 39 | B44: Thotapalligudur | C44: 39 | D44: Punganur | E44: Podili | F44: Pittalavanipalem | G44: Ramapuram • | Q44: 40 | R44: =IF(B1=1," ",IF(B1=2,B45,IF(B1=3,D45,IF(B1=4,E45,IF(B1=5,F45,G45))))) -> Rayachoti • | U44: 40 | V44: 20110 | AA44: 40 | AB44: 15025 | AC44: 27 | AD44: =IF(AH18="Applicable",AC44," ") ->  | AF44: =DATE(AG26,AH26,1) -> 1908-04-01 | AI44: ='SALARY TABLE'!I65 -> 16150 | AJ44: =IF(AE3=1,IF(ROUND(AI44*10%,0)<900,ROUND(AI44*10%,0),900),0) -> 0 | AK44: =IF(AE3=1,IF(ROUND(AI44*10%,0)<900,ROUND(AI44*10%,0),900),0) -> 0 | AL44: =IF(AI30=1,AJ44,AK44) -> 0 | AO44: 12 | AP44: =IF(AQ32>0,AQ44," ") ->  | AQ44: 2011-02-01 | AR44: ='SALARY TABLE'!R16 -> 0 | AT44: =IF(AO44>=AO32,AQ32,AS32) -> 0 | AU44: 0 | AV44: 0 | AY44: 10030 | AZ44: 25 | BA44: 10030 | BB44: 18520 | BC44: 18520 | BD44: 18520
A45: 40 | B45: Udayagiri | C45: 40 | D45: Puthalapattu | E45: Ponnaluru | F45: Ponnur | G45: Rayachoti • | Q45: 41 | R45: =IF(B1=1," ",IF(B1=2,B46,IF(B1=3,D46,IF(B1=4,E46,IF(B1=5,F46,G46))))) -> S Mydukur • | U45: 41 | V45: 20680 | AA45: 41 | AB45: 15500 | AC45: 28 | AD45: =IF(AH18="Applicable",AC45," ") ->  | AF45: =LOOKUP(AG26,AE18:AE29,AI18:AI29) -> 31 | AH45: =IF($AH$23="Applicable",AC18," ") ->  | AI45: ='SALARY TABLE'!I66 -> 16150 | AJ45: =IF(AE3=1,IF(ROUND(AI45*10%,0)<900,ROUND(AI45*10%,0),900),0) -> 0 | AK45: =IF(AE3=1,IF(ROUND(AI45*10%,0)<900,ROUND(AI45*10%,0),900),0) -> 0 | AL45: =IF(AI30=1,AJ45,AK45) -> 0 | AY45: 10285 | AZ45: 26 | BA45: 10285 | BB45: 19050 | BC45: 19050 | BD45: 19050
A46: 41 | B46: Vakadu | C46: 41 | D46: Puttur | E46: Pullalacheruvu | F46: Prathipadu | G46: S Mydukur • | Q46: 42 | R46: =IF(B1=1," ",IF(B1=2,B47,IF(B1=3,D47,IF(B1=4,E47,IF(B1=5,F47,G47))))) -> Sambepalle • | U46: 42 | V46: 21250 | AA46: 42 | AB46: 15975 | AC46: 29 | AD46: =IF(AH18="Applicable",AC46," ") ->  | AE46: Days | AF46: =AF45-AG26+1 -> 24 | AH46: =IF($AH$23="Applicable",AC19," ") ->  | AI46: ='SALARY TABLE'!I67 -> 16150 | AJ46: =IF(AE3=1,ROUND(IF(ROUND(AI46*10%,0)<900,ROUND(AI46*10%,0),900)/31*21,0),0) -> 0 | AK46: =IF(AE3=1,IF(ROUND(AI46*10%,0)<900,ROUND(AI46*10%,0),900),0) -> 0 | AL46: =IF(AI30=1,AJ46,AK46) -> 0 | AY46: 10565 | AZ46: 27 | BA46: 10565 | BB46: 19580 | BC46: 19580 | BD46: 19580
A47: 42 | B47: Varikuntapadu | C47: 42 | D47: Rama Kuppam | E47: Racherla | F47: Rajupalem | G47: Sambepalle • | Q47: 43 | R47: =IF(B1=1," ",IF(B1=2,B48,IF(B1=3,D48,IF(B1=4,E48,IF(B1=5,F48,G48))))) -> Sidhout • | U47: 43 | V47: 21820 | AA47: 43 | AB47: 16450 | AC47: 30 | AD47: =IF(AH18="Applicable",AC47," ") ->  | AF47: =LOOKUP(AF43,'SALARY TABLE'!B55:B68,'SALARY TABLE'!I55:I68) ->  | AI47: ='SALARY TABLE'!I68 -> 16150 | AJ47: =IF(AE3=1,IF(ROUND(AI47*10%,0)<900,ROUND(AI47*10%,0),900),0) -> 0 | AK47: =IF(AE3=1,IF(ROUND(AI47*10%,0)<900,ROUND(AI47*10%,0),900),0) -> 0 | AL47: =IF(AI30=1,AJ47,AK47) -> 0 | AO47: 5 | AP47: =LOOKUP(AO47,AO48:AO59,AP48:AP59) ->  | AQ47: =Data!Y36 -> 0 | AR47: LIC | AS47: =Data!T36 -> 0 | AY47: 10845 | AZ47: 28 | BA47: 10845 | BB47: 20110 | BC47: 20110 | BD47: 20110
A48: 43 | B48: Venkatachalam | C48: 43 | D48: Ramachandrapuram | E48: Santhamaguluru | F48: Rentacrintala | G48: Sidhout • | Q48: 44 | R48: =IF(B1=1," ",IF(B1=2,B49,IF(B1=3,D49,IF(B1=4,E49,IF(B1=5,F49,G49))))) -> Simhadripuram • | U48: 44 | V48: 22430 | AA48: 44 | AB48: 16925 | AC48: 31 | AD48: =IF(AH18="Applicable",AC48," ") ->  | AF48: =LOOKUP(AF47,'SALARY TABLE'!B48:CC48,'SALARY TABLE'!B49:CC49) ->  | AO48: 1 | AP48: =IF(AQ47>0,AQ48," ") ->  | AQ48: 2010-03-01 | AR48: ='SALARY TABLE'!T5 -> 0 | AT48: =IF(AO48>=AO47,AQ47,AS47) -> 0 | AU48: =AS47 -> 0 | AV48: =IF(AT48=0,AU48,AT48) -> 0 | AY48: 11125 | AZ48: 29 | BA48: 11125 | BB48: 20680 | BC48: 20680 | BD48: 20680 | BO48: =BM3-1 -> 6
A49: 44 | B49: Venkatagiri | C49: 44 | D49: Ramasamudram | E49: Santhanuthlapadu | F49: Repalle | G49: Simhadripuram • | Q49: 45 | R49: =IF(B1=1," ",IF(B1=2,B50,IF(B1=3,D50,IF(B1=4,E50,IF(B1=5,F50,G50))))) -> T Sundupalle • | U49: 45 | V49: 23040 | AA49: 45 | AB49: 17475 | AF49: =AF48-AF47 ->  | AO49: 2 | AP49: =IF(AQ47>0,AQ49," ") ->  | AQ49: 2010-04-01 | AR49: ='SALARY TABLE'!T6 -> 0 | AT49: =IF(AO49>=AO47,AQ47,AS47) -> 0 | AU49: =AU48 -> 0 | AV49: =IF(AT49=0,AU49,AT49) -> 0 | AY49: 11440 | AZ49: 30 | BA49: 11440 | BB49: 21250 | BC49: 21250 | BD49: 21250 | BO49: =IF(BM3<12,BM3-1,1) -> 6 | BP49: =IF(BN3<12,BN3-1,1) -> 8
A50: 45 | B50: Vidavalur | C50: 45 | D50: Renigunta | E50: Singarayakonda | F50: Rompicherla | G50: T Sundupalle • | Q50: 46 | R50: =IF(B1=1," ",IF(B1=2,B51,IF(B1=3,D51,IF(B1=4,E51,IF(B1=5,F51,G51))))) -> Thandur • | U50: 46 | V50: 23650 | AA50: 46 | AB50: 18025 | AF50: =ROUND(AF49/AF45*AF46,0) ->  | AO50: 3 | AP50: =IF(AQ47>0,AQ50," ") ->  | AQ50: 2010-05-01 | AR50: ='SALARY TABLE'!T7 -> 0 | AT50: =IF(AO50>=AO47,AQ47,AS47) -> 0 | AU50: 0 | AV50: 0 | AY50: 11755 | AZ50: 31 | BA50: 11755 | BB50: 21820 | BC50: 21820 | BD50: 21820 | BK50: =LOOKUP(BM3,$AE$18:$AE$29,$AI$18:$AI$29) -> 31 | BL50: =LOOKUP(BN3,$AE$18:$AE$29,$AI$18:$AI$29) -> 30 | BO50: =LOOKUP(BO49,AE18:AE29,AI18:AI29) -> 30 | BP50: =LOOKUP(BP49,$AE$18:$AE$29,$AI$18:$AI$29) -> 31
A51: 46 | B51: Vinjamur | C51: 46 | D51: Rompicherla | E51: Tangutur | F51: Sattenapalle | G51: Thandur • | Q51: 47 | R51: =IF(B1=1," ",IF(B1=2,B52,IF(B1=3,D52,IF(B1=4,E52,IF(B1=5,F52,G52))))) -> Vallur • | U51: 47 | V51: 24300 | AA51: 47 | AB51: 18575 | AE51: 8/16/24 DA | AF51: =LOOKUP(AH26,W32:W43,Y32:Y43) -> 16.264 | AG51: =LOOKUP(AH26,W32:W43,X32:X43) -> 9.416 | AO51: 4 | AP51: =IF(AQ47>0,AQ51," ") ->  | AQ51: 2010-06-01 | AR51: ='SALARY TABLE'!T8 -> 0 | AT51: =IF(AO51>=AO47,AQ47,AS47) -> 0 | AU51: 0 | AV51: 0 | AY51: 12070 | AZ51: 32 | BA51: 12070 | BB51: 22430 | BC51: 22430 | BD51: 22430 | BF51: Half Paf/Loss of pay | BG51: 20 | BH51: 16 | BI51: 17 | BJ51: 22 | BK51: =LOOKUP(BG3,$AE$18:$AE$29,$AI$18:$AI$29) -> 30 | BL51: =LOOKUP(BH3,$AE$18:$AE$29,$AI$18:$AI$29) -> 31 | BM51: days | BO51: Months
C52: 47 | D52: Santhi Puram | E52: Tarlapadu | F52: Savalyapuram | G52: Vallur • | Q52: 48 | R52: =IF(B1=1," ",IF(B1=2,B53,IF(B1=3,D53,IF(B1=4,E53,IF(B1=5,F53,G53))))) -> Veeraballe • | U52: 48 | V52: 24950 | AA52: 48 | AB52: 19125 | AE52: DA | AF52: =ROUND(AF50*AF51%,0) ->  | AG52: =ROUND(AF50*AG51%,0) ->  | AO52: 5 | AP52: =IF(AQ47>0,AQ52," ") ->  | AQ52: 2010-07-01 | AR52: ='SALARY TABLE'!T9 -> 0 | AT52: =IF(AO52>=AO47,AQ47,AS47) -> 0 | AU52: 0 | AV52: 0 | AY52: 12385 | AZ52: 33 | BA52: 12385 | BB52: 23040 | BC52: 23040 | BD52: 23040 | BF52: Start Date | BG52: =IF(AM3=1,DATE(BK8,BG3,BG51),0) -> 00:00:00 | BH52: =IF(AO3=1,DATE(BL8,BH3,BH51),0) -> 00:00:00 | BI52: =LOOKUP(MONTH(BG52),$AE$18:$AE$29,$AM$18:$AM$29)&"-"&RIGHT(BK8,2) -> Jan- | BJ52: =LOOKUP(MONTH(BH52),$AE$18:$AE$29,$AM$18:$AM$29)&"-"&RIGHT(BL8,2) -> Jan- | BK52: =DATE(BK8,BG3,1) ->  | BL52: =DATE(BL8,BH3,1) ->  | BM52: =DATEDIF(BK52,BG52,"d") ->  | BN52: =DATEDIF(BL52,BH52,"d") ->  | BO52: =DATE(BK8,BG3+1,1) ->  | BP52: =DATE(BL8,BH3+1,1) -> 
C53: 48 | D53: Satyavedu | E53: Thallur | F53: Tadikonda | G53: Veeraballe • | Q53: 49 | R53: =IF(B1=1," ",IF(B1=2,B54,IF(B1=3,D54,IF(B1=4,E54,IF(B1=5,F54,G54))))) -> Veerapunayunipalle • | U53: 49 | V53: 25600 | AA53: 49 | AB53: 19675 | AO53: 6 | AP53: =IF(AQ47>0,AQ53," ") ->  | AQ53: 2010-08-01 | AR53: ='SALARY TABLE'!T10 -> 0 | AT53: =IF(AO53>=AO47,AQ47,AS47) -> 0 | AU53: 0 | AV53: 0 | AY53: 12700 | AZ53: 34 | BA53: 12700 | BB53: 23040 | BC53: 23040 | BD53: 23040 | BF53: end date | BG53: =IF(AM3=1,DATE(BM23,BM3,BI51),0) -> 00:00:00 | BH53: =IF(AO3=1,DATE(BN23,BN3,BJ51),0) -> 00:00:00 | BI53: =LOOKUP(MONTH(BG53),$AE$18:$AE$29,$AM$18:$AM$29)&"-"&RIGHT(BM23,2) -> Jan- | BJ53: =LOOKUP(MONTH(BH53),$AE$18:$AE$29,$AM$18:$AM$29)&"-"&RIGHT(BN23,2) -> Jan- | BK53: =DATE(BM23,BM3,1) ->  | BL53: =DATE(BN23,BN3,1) ->  | BM53: =DATEDIF(BK53,BG53,"d") ->  | BN53: =DATEDIF(BL53,BH53,"d") ->  | BO53: =DATE(BM23,BO48,BO50) ->  | BP53: =DATE(BN23,BN3-1,BP50) -> 
C54: 49 | D54: Sodam | E54: Tripuranthakam | F54: Tenali | G54: Veerapunayunipalle • | Q54: 50 | R54: =IF(B1=1," ",IF(B1=2,B55,IF(B1=3,D55,IF(B1=4,E55,IF(B1=5,F55,G55))))) -> Vempalle • | U54: 50 | V54: 26300 | AA54: 50 | AB54: 20300 | AO54: 7 | AP54: =IF(AQ47>0,AQ54," ") ->  | AQ54: 2010-09-01 | AR54: ='SALARY TABLE'!T11 -> 0 | AT54: =IF(AO54>=AO47,AQ47,AS47) -> 0 | AU54: 0 | AV54: 0 | AY54: 13030 | AZ54: 35 | BA54: 13030 | BB54: 23650 | BC54: 23650 | BD54: 23650 | BF54: Months | BG54: =BI54 -> 0 | BH54: =BJ54 -> 0 | BI54: =DATEDIF(BG52,BG53,"ym") -> 0 | BJ54: =DATEDIF(BH52,BH53,"ym") -> 0 | BK54: Real Days | BM54: Months | BO54: Months
C55: 50 | D55: Somala | E55: Ulavapadu | F55: Thadepalle | G55: Vempalle • | Q55: 51 | R55: =IF(B1=1," ",IF(B1=2,B56,IF(B1=3,D56,IF(B1=4,E56,IF(B1=5,F56,G56))))) -> Vemula • | U55: 51 | V55: 27000 | AA55: 51 | AB55: 20925 | AE55: 1 | AF55: =IF(AD55="Applicable",AI55," ") ->  | AO55: 8 | AP55: =IF(AQ47>0,AQ55," ") ->  | AQ55: 2010-10-01 | AR55: ='SALARY TABLE'!T12 -> 0 | AT55: =IF(AO55>=AO47,AQ47,AS47) -> 0 | AU55: 0 | AV55: 0 | AY55: 13390 | AZ55: 36 | BA55: 13390 | BB55: 24300 | BC55: 24300 | BD55: 24300 | BF55: days | BG55: =BI55+1 -> 1 | BH55: =BJ55+1 -> 1 | BI55: =DATEDIF(BG52,BG53,"md") -> 0 | BJ55: =DATEDIF(BH52,BH53,"md") -> 0 | BK55: =BK51-BM52 ->  | BL55: =BL51-BN52 ->  | BM55: =BO55+1 ->  | BN55: =BP55+1 ->  | BO55: =DATEDIF(BO52,BO53,"ym") ->  | BP55: =DATEDIF(BP52,BP53,"ym") -> 
C56: 51 | D56: Srikalahasti | E56: Veligandla | F56: Thullur | G56: Vemula • | Q56: 52 | R56: =IF(B1=1," ",IF(B1=2,B57,IF(B1=3,D57,IF(B1=4,E57,IF(B1=5,F57,G57))))) -> Vontimitta • | U56: 52 | V56: 27700 | AA56: 52 | AB56: 21550 | AE56: 2 | AF56: =IF(AD55="Applicable",AI56," ") ->  | AO56: 9 | AP56: =IF(AQ47>0,AQ56," ") ->  | AQ56: 2010-11-01 | AR56: ='SALARY TABLE'!T13 -> 0 | AT56: =IF(AO56>=AO47,AQ47,AS47) -> 0 | AU56: 0 | AV56: 0 | AY56: 13750 | AZ56: 37 | BA56: 13750 | BB56: 24950 | BC56: 24950 | BD56: 24950 | BF56: Basic pays | BG56: =LOOKUP(BG52,'SALARY TABLE'!B55:B68,'SALARY TABLE'!I55:I68) ->  | BH56: =LOOKUP(BH52,'SALARY TABLE'!B55:B68,'SALARY TABLE'!I55:I68) ->  | BK56: =BM53+1 ->  | BL56: =BN53+1 -> 
C57: 52 | D57: Srirangarajapuram | E57: Vetapalem | F57: Tsundur | G57: Vontimitta • | Q57: 53 | R57: =IF(B1=1," ",IF(B1=2,B58,IF(B1=3,D58,IF(B1=4,E58,IF(B1=5,F58,G58))))) -> Yerraguntla | U57: 53 | V57: 28450 | AA57: 53 | AB57: 22175 | AE57: 3 | AF57: =IF(AD55="Applicable",AI57," ") ->  | AI57: 1 | AJ57: =LOOKUP(AI57,AI58:AI59,AJ58:AJ59) ->  | AL57: 2 | AM57: =LOOKUP(AL57,AL58:AL59,AM58:AM59) -> Not Applicable | AO57: 10 | AP57: =IF(AQ47>0,AQ57," ") ->  | AQ57: 2010-12-01 | AR57: ='SALARY TABLE'!T14 -> 0 | AT57: =IF(AO57>=AO47,AQ47,AS47) -> 0 | AU57: 0 | AV57: 0 | AY57: 14175 | AZ57: 38 | BA57: 14175 | BB57: 26300 | BC57: 26300 | BD57: 26300 | BG57: =LOOKUP(BG53,'SALARY TABLE'!B55:B68,'SALARY TABLE'!I55:I68) ->  | BH57: =LOOKUP(BH53,'SALARY TABLE'!B55:B68,'SALARY TABLE'!I55:I68) ->  | CD57: =DATEDIF(BQ61,BT61,"d") -> 0
C58: 53 | D58: Thamballapalle | E58: Voletivaripalem | F58: Vatticherukuru | G58: Yerraguntla | Q58: 54 | R58: =IF(B1=1," ",IF(B1=2,B59,IF(B1=3,D59,IF(B1=4,E59,IF(B1=5,F59,G59))))) -> 0 | U58: 54 | V58: 29200 | AA58: 54 | AB58: 22800 | AE58: 4 | AF58: =IF(AD55="Applicable",AI58," ") ->  | AI58: 1 | AJ58: =IF(AL57=1,"Rented House"," ") ->  | AL58: 1 | AM58: Applicable | AO58: 11 | AP58: =IF(AQ47>0,AQ58," ") ->  | AQ58: 2011-01-01 | AR58: ='SALARY TABLE'!T15 -> 0 | AT58: =IF(AO58>=AO47,AQ47,AS47) -> 0 | AU58: 0 | AV58: 0 | AY58: 14600 | AZ58: 39 | BA58: 14600 | BB58: 27000 | BC58: 27000 | BD58: 27000 | BF58: Arrears | BG58: =ROUND(BG56*BK55/BK51/2,0) ->  | BH58: =ROUND(BH56*BL55/BL51/2,0) -> 
C59: 54 | D59: Thavanampalle | E59: Yeddanapudi | F59: Veldurthi | Q59: 55 | R59: =IF(B1=1," ",IF(B1=2,B60,IF(B1=3,D60,IF(B1=4,E60,IF(B1=5,F60,G60))))) -> 0 | U59: 55 | V59: 29950 | AA59: 55 | AB59: 23500 | AE59: 5 | AF59: =IF(AD55="Applicable",AI59," ") ->  | AI59: 2 | AJ59: =IF(AL57=1,"Own House"," ") ->  | AL59: 2 | AM59: Not Applicable | AO59: 12 | AP59: =IF(AQ47>0,AQ59," ") ->  | AQ59: 2011-02-01 | AR59: ='SALARY TABLE'!T16 -> 0 | AT59: =IF(AO59>=AO47,AQ47,AS47) -> 0 | AU59: 0 | AV59: 0 | AY59: 15025 | AZ59: 40 | BA59: 15025 | BB59: 27700 | BC59: 27700 | BD59: 27700 | BG59: =ROUND(BG57*BK56/BK50/2,0) ->  | BH59: =ROUND(BH57*BL56/BL50/2,0) -> 
C60: 55 | D60: Thottambedu | E60: Yerragondapalem | F60: Vemuru | Q60: 56 | R60: =IF(B1=1," ",IF(B1=2,B61,IF(B1=3,D61,IF(B1=4,E61,IF(B1=5,F61,G61))))) -> 0 | U60: 56 | V60: 30750 | AA60: 56 | AB60: 24200 | AE60: 6 | AF60: =IF(AD55="Applicable",AI60," ") ->  | AY60: 15500 | AZ60: 41 | BA60: 15500 | BB60: 28450 | BC60: 28450 | BD60: 28450 | BF60: Total arrears | BG60: =BG58+BG59 ->  | BO60: Half Pay | BV60: HPD | BY60: FPD | CA60: HPA | CB60: FPA | CC60: DA | CE60: HMA | CF60: HRA | CG60: HRA amount
C61: 56 | D61: Tirupati Rural | E61: Zarugumilli | F61: Vinukonda | Q61: 57 | R61: =IF(B1=1," ",IF(B1=2,B62,IF(B1=3,D62,IF(B1=4,E62,IF(B1=5,F62,G62))))) -> 0 | U61: 57 | V61: 31550 | AA61: 57 | AB61: 24900 | AE61: 7 | AF61: =IF(AD55="Applicable",AI61," ") ->  | AY61: 15975 | AZ61: 42 | BA61: 15975 | BB61: 29200 | BC61: 29200 | BD61: 29200 | BJ61: Requires Analysis Toolpak | BO61: 1 | BP61: 2010-01-01 | BQ61: =BP61 -> 2010-01-01 | BR61: =IF(AND(MONTH(BP61)=MONTH($BG$52),YEAR(BP61)=YEAR($BG$52)),$BG$52,BP61) -> 2010-01-01 | BS61: =IF(AND(MONTH(BP61)=MONTH($BG$53),YEAR(BP61)=YEAR($BG$53)),$BG$53,BP61) -> 2010-01-01 | BT61: =IF(DAY(BR61)>1,BR61,BS61) -> 2010-01-01 | BU61: =IF(BT61=$BG$52,LOOKUP(BT61,$BL$28:$BL$41,$BM$28:$BM$41)-DATEDIF(BQ61,BT61,"d"),IF(BT61=$BG$53,DATEDIF($BK$53,$BG$53,"d")+1,LOOKUP(BT61,$BL$28:$BL$41,$BM$28:$BM$41))) -> 31 | BV61: =IF(AND($BG$52<=BT61,BT61<=$BG$53),BU61,0) -> 0 | BW61: =IF(BV61>0,BV61/2,BU61) -> 31 | BX61: =LOOKUP(BP61,$BL$28:$BL$41,$BM$28:$BM$41) -> 31 | BY61: =BX61-BU61 -> 0 | BZ61: ='SALARY TABLE'!S55 -> 8385 | CA61: =ROUND(BZ61*BW61/BX61,0) -> 8385 | CB61: =IF(BY61=0,0,ROUND(BZ61*BY61/BX61,0)) -> 0 | CC61: 0 | CD61: =ROUND(CB61*CC61,0) -> 0 | CE61: =Data!CS84 -> 0 | CG61: HPA | CH61: FPA
C62: 57 | D62: Tirupati Urban | Q62: 58 | R62: =IF(B1=1," ",IF(B1=2,B63,IF(B1=3,D63,IF(B1=4,E63,IF(B1=5,F63,G63))))) -> 0 | U62: 58 | V62: 32350 | AA62: 58 | AB62: 25600 | AE62: 8 | AF62: =IF(AD55="Applicable",AI62," ") ->  | AK62: =Z11 -> 0 | AY62: 16450 | AZ62: 43 | BA62: 16450 | BB62: 29950 | BC62: 29950 | BD62: 29950 | BO62: 2 | BP62: 2010-02-01 | BQ62: =BP62 -> 2010-02-01 | BR62: 2010-02-01 | BS62: 2010-02-01 | BT62: =IF(DAY(BR62)>1,BR62,BS62) -> 2010-02-01 | BU62: 28 | BV62: 0 | BW62: =IF(BV62>0,BV62/2,BU62) -> 28 | BX62: 28 | BY62: =BX62-BU62 -> 0 | BZ62: ='SALARY TABLE'!S56 -> 15700 | CA62: =ROUND(BZ62*BW62/BX62,0) -> 15700 | CB62: =IF(BY62=0,0,ROUND(BZ62*BY62/BX62,0)) -> 0 | CC62: 0.09416 | CD62: =ROUND(CB62*CC62,0) -> 0 | CE62: =CE61 -> 0
C63: 58 | D63: Vadamalapeta | Q63: 59 | R63: =IF(B1=1," ",IF(B1=2,B64,IF(B1=3,D64,IF(B1=4,E64,IF(B1=5,F64,G64))))) -> 0 | U63: 59 | V63: 33200 | AA63: 59 | AB63: 26300 | AE63: 9 | AF63: =IF(AD55="Applicable",#REF!," ") ->  | AI63: 10 | AJ63: =LOOKUP(AI63,AI64:AI75,AJ64:AJ75) ->  | AK63: =Z11 -> 0 | AL63: HRA | AM63: =Z4 -> 0.1 | AS63: HRA % | AY63: 16925 | AZ63: 44 | BA63: 16925 | BB63: 30750 | BC63: 30750 | BD63: 30750 | BO63: 3 | BP63: 2010-03-01 | BQ63: 2010-03-01 | BR63: 2010-03-01 | BS63: 2010-03-01 | BT63: 2010-03-01 | BU63: 31 | BV63: 0 | BW63: 31 | BX63: 31 | BY63: 0 | BZ63: ='SALARY TABLE'!S57 -> 15700 | CA63: =ROUND(BZ63*BW63/BX63,0) -> 15700 | CB63: 0 | CC63: ='SALARY TABLE'!L57 -> 0.09416 | CD63: =ROUND(CB63*CC63,0) -> 0 | CE63: ='SALARY TABLE'!I5 -> 0 | CF63: =AS64 -> 0.1 | CG63: =IF(BY63=0,0,ROUND(CA63*CF63,0)) -> 0 | CH63: =IF(BY63=0,0,ROUND(CB63*CF63,0)) -> 0
C64: 59 | D64: Varadaiahpalem | Q64: 60 | R64: =IF(B1=1," ",IF(B1=2,B65,IF(B1=3,D65,IF(B1=4,E65,IF(B1=5,F65,G65))))) -> 0 | U64: 60 | V64: 34050 | AA64: 60 | AB64: 27000 | AE64: 10 | AF64: =IF(AD55="Applicable",#REF!," ") ->  | AI64: 1 | AJ64: =IF($AK$62=0," ",AK64) ->  | AK64: 2010-03-01 | AL64: ='SALARY TABLE'!C5 -> 15700 | AM64: =ROUND(IF(AI64>=$AI$63,$AM$63,$AK$62),0) -> 00:00:00 | AN64: =ROUND(IF(AI64>=$AI$63,AL64*$AK$62,AL64*$AM$63),0) -> 1570 | AO64: =$AM$63*AL64 -> 1570 | AP64: =IF(AN64=0,AO64,AN64) -> 1570 | AQ64: =IF($AL$57=1,ROUND(AL64*8%,0),0) -> 0 | AR64: =IF(AQ64>500,500,AQ64) -> 0 | AS64: =IF($AK$62=0,$AM$63,IF(AI64>=$AI$63,$AK$62,$AM$63)) -> 0.1 | AY64: 17475 | AZ64: 45 | BA64: 17475 | BB64: 32350 | BC64: 32350 | BD64: 32350 | BO64: 4 | BP64: 2010-04-01 | BQ64: 2010-04-01 | BR64: 2010-04-01 | BS64: 2010-04-01 | BT64: 2010-04-01 | BU64: 30 | BV64: 0 | BW64: 30 | BX64: 30 | BY64: 0 | BZ64: ='SALARY TABLE'!S58 -> 15700 | CA64: 15700 | CB64: 0 | CC64: ='SALARY TABLE'!L58 -> 0.09416 | CD64: 0 | CE64: ='SALARY TABLE'!I6 -> 0 | CF64: 0.1 | CG64: =IF(BY64=0,0,ROUND(CA64*CF64,0)) -> 0 | CH64: =IF(BY64=0,0,ROUND(CB64*CF64,0)) -> 0
C65: 60 | D65: Vayalpad | Q65: 61 | R65: =IF(B1=1," ",IF(B1=2,B66,IF(B1=3,D66,IF(B1=4,E66,IF(B1=5,F66,G66))))) -> 0 | U65: 61 | V65: 34900 | AA65: 61 | AB65: 27750 | AE65: 11 | AF65: =IF(AD55="Applicable",#REF!," ") ->  | AI65: 2 | AJ65: =IF($AK$62=0," ",AK65) ->  | AK65: 2010-04-01 | AL65: ='SALARY TABLE'!C6 -> 15700 | AM65: =ROUND(IF(AI65>=$AI$63,$AM$63,$AK$62),0) -> 00:00:00 | AN65: =ROUND(IF(AI65>=$AI$63,AL65*$AK$62,AL65*$AM$63),0) -> 1570 | AO65: 1570 | AP65: =IF(AN65=0,AO65,AN65) -> 1570 | AQ65: =IF($AL$57=1,ROUND(AL65*8%,0),0) -> 0 | AR65: =IF(AQ65>1000,1000,AQ65) -> 0 | AS65: =IF($AK$62=0,$AM$63,IF(AI65>=$AI$63,$AK$62,$AM$63)) -> 0.1 | AY65: 18025 | AZ65: 46 | BA65: 18025 | BB65: 33200 | BC65: 33200 | BD65: 33200 | BO65: 5 | BP65: 2010-05-01 | BQ65: 2010-05-01 | BR65: 2010-05-01 | BS65: 2010-05-01 | BT65: 2010-05-01 | BU65: 31 | BV65: 0 | BW65: 31 | BX65: 31 | BY65: 0 | BZ65: ='SALARY TABLE'!S59 -> 15700 | CA65: 15700 | CB65: 0 | CC65: ='SALARY TABLE'!L59 -> 0.09416 | CD65: 0 | CE65: ='SALARY TABLE'!I7 -> 0 | CF65: 0.1 | CG65: 0 | CH65: 0
C66: 61 | D66: Veduru Kuppam | Q66: 62 | R66: =IF(B1=1," ",IF(B1=2,B67,IF(B1=3,D67,IF(B1=4,E67,IF(B1=5,F67,G67))))) -> 0 | U66: 62 | V66: 35800 | AA66: 62 | AB66: 28500 | AE66: 12 | AF66: =IF(AD55="Applicable",#REF!," ") ->  | AI66: 3 | AK66: 2010-05-01 | AL66: ='SALARY TABLE'!C7 -> 15700 | AM66: 00:00:00 | AN66: 1570 | AO66: 1570 | AP66: 1570 | AQ66: 0 | AR66: 0 | AS66: 0.1 | AY66: 18575 | AZ66: 47 | BA66: 18575 | BB66: 34050 | BC66: 34050 | BD66: 34050 | BO66: 6 | BP66: 2010-06-01 | BQ66: 2010-06-01 | BR66: 2010-06-01 | BS66: 2010-06-01 | BT66: 2010-06-01 | BU66: 30 | BV66: 0 | BW66: 30 | BX66: 30 | BY66: 0 | BZ66: ='SALARY TABLE'!S60 -> 15700 | CA66: 15700 | CB66: 0 | CC66: ='SALARY TABLE'!L60 -> 0.09416 | CD66: 0 | CE66: ='SALARY TABLE'!I8 -> 0 | CF66: 0.1 | CG66: 0 | CH66: 0
C67: 62 | D67: Venkatagiri Kota | Q67: 63 | R67: =IF(B1=1," ",IF(B1=2,B68,IF(B1=3,D68,IF(B1=4,E68,IF(B1=5,F68,G68))))) -> 0 | U67: 63 | V67: 36700 | AA67: 63 | AB67: 29250 | AE67: 13 | AI67: 4 | AK67: 2010-06-01 | AL67: ='SALARY TABLE'!C8 -> 15700 | AM67: 00:00:00 | AN67: 1570 | AO67: 1570 | AP67: 1570 | AQ67: 0 | AR67: 0 | AS67: 0.1 | AY67: 19125 | AZ67: 48 | BA67: 19125 | BB67: 34900 | BC67: 34900 | BD67: 34900 | BO67: 7 | BP67: 2010-07-01 | BQ67: 2010-07-01 | BR67: 2010-07-01 | BS67: 2010-07-01 | BT67: 2010-07-01 | BU67: 31 | BV67: 0 | BW67: 31 | BX67: 31 | BY67: 0 | BZ67: ='SALARY TABLE'!S61 -> 15700 | CA67: 15700 | CB67: 0 | CC67: ='SALARY TABLE'!L61 -> 0.16264 | CD67: 0 | CE67: ='SALARY TABLE'!I9 -> 0 | CF67: 0.1 | CG67: 0 | CH67: 0
C68: 63 | D68: Vijaya Puram | Q68: 64 | R68: =IF(B1=1," ",IF(B1=2,B69,IF(B1=3,D69,IF(B1=4,E69,IF(B1=5,F69,G69))))) -> 0 | U68: 64 | V68: 37600 | AA68: 64 | AB68: 30000 | AE68: 14 | AI68: 5 | AK68: 2010-07-01 | AL68: ='SALARY TABLE'!C9 -> 15700 | AM68: 00:00:00 | AN68: 1570 | AO68: 1570 | AP68: 1570 | AQ68: 0 | AR68: 0 | AS68: 0.1 | AY68: 19675 | AZ68: 49 | BA68: 19675 | BB68: 35800 | BC68: 35800 | BD68: 35800 | BI68: YEAR(A2)-YEAR(A1)-IF(OR(MONTH(A2)<MONTH… | BO68: 8 | BP68: 2010-08-01 | BQ68: 2010-08-01 | BR68: 2010-08-01 | BS68: 2010-08-01 | BT68: 2010-08-01 | BU68: 31 | BV68: 0 | BW68: 31 | BX68: 31 | BY68: 0 | BZ68: ='SALARY TABLE'!S62 -> 15700 | CA68: 15700 | CB68: 0 | CC68: ='SALARY TABLE'!L62 -> 0.16264 | CD68: 0 | CE68: ='SALARY TABLE'!I10 -> 0 | CF68: 0.1 | CG68: 0 | CH68: 0
C69: 64 | D69: Yadamari | Q69: 65 | R69: =IF(B1=1," ",IF(B1=2,B70,IF(B1=3,D70,IF(B1=4,E70,IF(B1=5,F70,G70))))) -> 0 | U69: 65 | V69: 38570 | AA69: 65 | AB69: 30765 | AE69: 15 | AI69: 6 | AK69: 2010-08-01 | AL69: ='SALARY TABLE'!C10 -> 15700 | AM69: 00:00:00 | AN69: 1570 | AO69: 1570 | AP69: 1570 | AQ69: 0 | AR69: 0 | AS69: 0.1 | AY69: 20300 | AZ69: 50 | BA69: 20300 | BB69: 37600 | BC69: 37600 | BD69: 37600 | BI69: DAY(A2)<DAY(A1))),1,0)&" years, "&MONTH(A2)-MONTH(A1)+IF(AND(MONTH(A2) | BO69: 9 | BP69: 2010-09-01 | BQ69: 2010-09-01 | BR69: 2010-09-01 | BS69: 2010-09-01 | BT69: 2010-09-01 | BU69: 30 | BV69: 0 | BW69: 30 | BX69: 30 | BY69: 0 | BZ69: ='SALARY TABLE'!S63 -> 15700 | CA69: 15700 | CB69: 0 | CC69: ='SALARY TABLE'!L63 -> 0.16264 | CD69: 0 | CE69: ='SALARY TABLE'!I11 -> 0 | CF69: 0.1 | CG69: 0 | CH69: 0
C70: 65 | D70: Yerpedu | Q70: 66 | R70: =IF(B1=1," ",IF(B1=2,B71,IF(B1=3,D71,IF(B1=4,E71,IF(B1=5,F71,G71))))) -> 0 | U70: 66 | V70: 39540 | AA70: 66 | AE70: 16 | AI70: 7 | AK70: 2010-09-01 | AL70: ='SALARY TABLE'!C11 -> 15700 | AM70: 00:00:00 | AN70: 1570 | AO70: 1570 | AP70: 1570 | AQ70: 0 | AR70: 0 | AS70: 0.1 | AY70: 20925 | AZ70: 51 | BA70: 20925 | BB70: 38570 | BC70: 38570 | BD70: 38570 | BI70: <=MONTH(A1),DAY(A2)<DAY(A1)),11,IF(AND… | BO70: 10 | BP70: 2010-10-01 | BQ70: 2010-10-01 | BR70: 2010-10-01 | BS70: 2010-10-01 | BT70: 2010-10-01 | BU70: 31 | BV70: 0 | BW70: 31 | BX70: 31 | BY70: 0 | BZ70: ='SALARY TABLE'!S64 -> 15700 | CA70: 15700 | CB70: 0 | CC70: ='SALARY TABLE'!L64 -> 0.16264 | CD70: 0 | CE70: ='SALARY TABLE'!I12 -> 0 | CF70: 0.1 | CG70: 0 | CH70: 0
C71: 66 | D71: Yerravaripalem | U71: 67 | V71: 40510 | AA71: 67 | AE71: 17 | AI71: 8 | AK71: 2010-10-01 | AL71: ='SALARY TABLE'!C12 -> 15700 | AM71: 00:00:00 | AN71: 1570 | AO71: 1570 | AP71: 1570 | AQ71: 0 | AR71: 0 | AS71: 0.1 | AY71: 21550 | AZ71: 52 | BA71: 21550 | BB71: 39540 | BC71: 39540 | BD71: 39540 | BI71: >=DAY(A1)),12,IF(AND(MONTH(A2)>MONTH(A… months, | BO71: 11 | BP71: 2010-11-01 | BQ71: 2010-11-01 | BR71: 2010-11-01 | BS71: 2010-11-01 | BT71: 2010-11-01 | BU71: 30 | BV71: 0 | BW71: 30 | BX71: 30 | BY71: 0 | BZ71: ='SALARY TABLE'!S65 -> 16150 | CA71: 16150 | CB71: 0 | CC71: ='SALARY TABLE'!L65 -> 0.16264 | CD71: 0 | CE71: ='SALARY TABLE'!I13 -> 0 | CF71: 0.1 | CG71: 0 | CH71: 0
U72: 68 | V72: 41550 | AA72: 68 | AE72: 18 | AI72: 9 | AK72: 2010-11-01 | AL72: ='SALARY TABLE'!C13 -> 16150 | AM72: 00:00:00 | AN72: 1615 | AO72: 1615 | AP72: 1615 | AQ72: 0 | AR72: 0 | AS72: 0.1 | AY72: 22175 | AZ72: 53 | BA72: 22175 | BB72: 40510 | BC72: 40510 | BD72: 40510 | BI72: "&A2-DATE(YEAR(A2),MONTH(A2)-IF(DAY(A2… days" | BO72: 12 | BP72: 2010-12-01 | BQ72: 2010-12-01 | BR72: 2010-12-01 | BS72: 2010-12-01 | BT72: 2010-12-01 | BU72: 31 | BV72: 0 | BW72: 31 | BX72: 31 | BY72: 0 | BZ72: ='SALARY TABLE'!S66 -> 16150 | CA72: 16150 | CB72: 0 | CC72: ='SALARY TABLE'!L66 -> 0.16264 | CD72: 0 | CE72: ='SALARY TABLE'!I14 -> 0 | CF72: 0.1 | CG72: 0 | CH72: 0
U73: 69 | V73: 42590 | AA73: 69 | AE73: 19 | AI73: 10 | AK73: 2010-12-01 | AL73: ='SALARY TABLE'!C14 -> 16150 | AM73: 00:00:00 | AN73: 0 | AO73: 1615 | AP73: 1615 | AQ73: 0 | AR73: 0 | AS73: 0.1 | AY73: 22800 | AZ73: 54 | BA73: 22800 | BB73: 41550 | BC73: 41550 | BD73: 41550 | BO73: 13 | BP73: 2011-01-01 | BQ73: 2011-01-01 | BR73: 2011-01-01 | BS73: 2011-01-01 | BT73: 2011-01-01 | BU73: 31 | BV73: 0 | BW73: 31 | BX73: 31 | BY73: 0 | BZ73: ='SALARY TABLE'!S67 -> 16150 | CA73: 16150 | CB73: 0 | CC73: ='SALARY TABLE'!L67 -> 0.24824 | CD73: 0 | CE73: ='SALARY TABLE'!I15 -> 0 | CF73: 0.1 | CG73: 0 | CH73: 0
U74: 70 | V74: 43630 | AA74: 70 | AE74: 20 | AI74: 11 | AK74: 2011-01-01 | AL74: ='SALARY TABLE'!C15 -> 16150 | AM74: 00:00:00 | AN74: 0 | AO74: 1615 | AP74: 1615 | AQ74: 0 | AR74: 0 | AS74: 0.1 | AY74: 23500 | AZ74: 55 | BA74: 23500 | BB74: 43630 | BC74: 43630 | BD74: 43630 | BO74: 14 | BP74: 2011-02-01 | BQ74: 2011-02-01 | BR74: 2011-02-01 | BS74: 2011-02-01 | BT74: 2011-02-01 | BU74: 28 | BV74: 0 | BW74: 28 | BX74: 28 | BY74: 0 | BZ74: ='SALARY TABLE'!S68 -> 16150 | CA74: 16150 | CB74: 0 | CC74: ='SALARY TABLE'!L68 -> 0.24824 | CD74: 0 | CE74: ='SALARY TABLE'!I16 -> 0 | CF74: 0.1 | CG74: 0 | CH74: 0
U75: 71 | V75: 44740 | AA75: 71 | AE75: 21 | AI75: 12 | AK75: 2011-02-01 | AL75: ='SALARY TABLE'!C16 -> 16150 | AM75: 00:00:00 | AN75: 0 | AO75: 1615 | AP75: 1615 | AQ75: 0 | AR75: 0 | AS75: 0.1 | AY75: 24200 | AZ75: 56 | BA75: 24200 | BB75: 44740 | BC75: 44740 | BD75: 44740 | BX75: Half PayArrears | CB75: =SUM(CB61:CB74) -> 0 | CC75: DA | CD75: =SUM(CD61:CD74) -> 0 | CE75: HRA | CG75: =SUM(CG62:CG74) -> 0 | CH75: =SUM(CH62:CH74) -> 0
U76: 72 | V76: 45850 | AA76: 72 | AE76: 22 | AH76: =IF(AH54="Applicable",AC49," ") ->  | AY76: 24900 | AZ76: 57 | BA76: 24900 | BB76: 45850 | BC76: 45850 | BD76: 45850 | BI76: =IF(OR(MONTH(BG53)<MONTH(BG52), DAY(BG53)<DAY(BG52)),1,0) -> 0
U77: 73 | V77: 46960 | AA77: 73 | AE77: 23 | AH77: =IF(AH55="Applicable",AC50," ") ->  | AY77: 25600 | AZ77: 58 | BA77: 25600 | BB77: 46960 | BC77: 46960 | BD77: 46960
U78: 74 | V78: 48160 | AE78: 24 | AH78: =IF(AH56="Applicable",AC51," ") ->  | AY78: 26300 | AZ78: 59 | BA78: 26300 | BB78: 48160 | BC78: 48160 | BD78: 48160
U79: 75 | V79: 49360 | AE79: 25 | AH79: =IF(AH57="Applicable",AC52," ") ->  | AY79: 27000 | AZ79: 60 | BA79: 27000 | BB79: 49360 | BC79: 49360 | BD79: 49360
U80: 76 | V80: 50560 | AE80: 26 | AY80: 27750 | AZ80: 61 | BB80: 50560 | BC80: 50560 | BD80: 50560
U81: 77 | V81: 51760 | AE81: 27 | AY81: 28500 | AZ81: 62 | BB81: 51760 | BC81: 51760 | BD81: 51760
U82: 78 | V82: 53060 | AE82: 28 | AY82: 29250 | AZ82: 63 | BB82: 53060 | BC82: 53060 | BD82: 53060
U83: 79 | V83: 54360 | AE83: 29 | AY83: 30000 | AZ83: 64 | BB83: 55660 | BC83: 55660 | BD83: 55660
U84: 80 | V84: 55660 | AE84: 30 | AY84: 30765 | AZ84: 65 | BB84: 56960 | BC84: 56960 | BD84: 56960
AE85: 31 | BQ85: =CELL("filename") -> C:\Documents and Settings\Happy Home\My Documents\Downloads\[INCOME TAX 2010-11 (1).xlsm]Data
D88: 6700 | E88: 6900 | F88: 7100 | G88: 7300 | H88: 7520 | I88: 7740 | J88: 7960 | K88: 8200 | L88: 8440 | M88: 8680 | N88: 8940 | O88: 9200 | P88: 9460 | Q88: 9740 | R88: 10020 | S88: 10300 | T88: 10600 | U88: 10900 | V88: 11200 | W88: 11530 | X88: 11860 | Y88: 12190 | Z88: 12550 | AA88: 12910 | AB88: 13270 | AC88: 13660 | AD88: 14050 | AE88: 14440 | AF88: 14860 | AG88: 15280 | AH88: 15700 | AI88: 16150 | AJ88: 16600 | AK88: 17050 | AL88: 17540 | AM88: 18030 | AN88: 18520 | AO88: 19050 | AP88: 19580 | AQ88: 20110 | AR88: 20680 | AS88: 21250 | AT88: 21820 | AU88: 22430 | AV88: 23040 | AW88: 23650 | AX88: 24300 | AY88: 24950 | AZ88: 25600 | BA88: 26300 | BB88: 27000 | BC88: 27700 | BD88: 28450 | BE88: 29200 | BF88: 29950 | BG88: 30750 | BH88: 31550 | BI88: 32350 | BJ88: 33200 | BK88: 34050 | BL88: 34900 | BM88: 35800 | BN88: 36700 | BO88: 37600 | BP88: 38570 | BQ88: 39540 | BR88: 40510 | BS88: 41550 | BT88: 42590 | BU88: 43630 | BV88: 44740 | BW88: 45850 | BX88: 46960 | BY88: 48160 | BZ88: 49360 | CA88: 50560 | CB88: 51760 | CC88: 53060 | CD88: 54360 | CE88: 55660
D89: 6900 | E89: 7100 | F89: 7300 | G89: 7520 | H89: 7740 | I89: 7960 | J89: 8200 | K89: 8440 | L89: 8680 | M89: 8940 | N89: 9200 | O89: 9460 | P89: 9740 | Q89: 10020 | R89: 10300 | S89: 10600 | T89: 10900 | U89: 11200 | V89: 11530 | W89: 11860 | X89: 12190 | Y89: 12550 | Z89: 12910 | AA89: 13270 | AB89: 13660 | AC89: 14050 | AD89: 14440 | AE89: 14860 | AF89: 15280 | AG89: 15700 | AH89: 16150 | AI89: 16600 | AJ89: 17050 | AK89: 17540 | AL89: 18030 | AM89: 18520 | AN89: 19050 | AO89: 19580 | AP89: 20110 | AQ89: 20680 | AR89: 21250 | AS89: 21820 | AT89: 22430 | AU89: 23040 | AV89: 23650 | AW89: 24300 | AX89: 24950 | AY89: 25600 | AZ89: 26300 | BA89: 27000 | BB89: 27700 | BC89: 28450 | BD89: 29200 | BE89: 29950 | BF89: 30750 | BG89: 31550 | BH89: 32350 | BI89: 33200 | BJ89: 34050 | BK89: 34900 | BL89: 35800 | BM89: 36700 | BN89: 37600 | BO89: 38570 | BP89: 39540 | BQ89: 40510 | BR89: 41550 | BS89: 42590 | BT89: 43630 | BU89: 44740 | BV89: 45850 | BW89: 46960 | BX89: 48160 | BY89: 49360 | BZ89: 50560 | CA89: 51760 | CB89: 53060 | CC89: 54360 | CD89: 55660 | CE89: 56960
P94: =IF(A5=I,HLOOKUP(Code!W3,Code!D88:CE89,2,Code!D89:CE89),'SALARY TABLE'!C5) -> 15700
P95: =HLOOKUP(W3,D88:CE89,2,D89:CE89) -> 16150 | BO95: Loss of pay | BV95: LPD | BY95: FPD | CA95: LPA | CB95: FPA | CC95: DA | CE95: HMA | CF95: =CF60 -> HRA | CG95: HRA amount
P96: =HLOOKUP(Code!W3,Code!D88:CE89,2,Code!D89:CE89) -> 16150 | AB96: 2 | AC96: =LOOKUP(AB96,AB97:AB98,AC97:AC98) -> Not Applicale | BO96: 1 | BP96: 2010-01-01 | BQ96: =BP96 -> 2010-01-01 | BR96: =IF(AND(MONTH(BP96)=MONTH($BH$52),YEAR(BP96)=YEAR($BH$52)),$BH$52,BP96) -> 2010-01-01 | BS96: =IF(AND(MONTH(BP96)=MONTH($BH$53),YEAR(BP96)=YEAR($BH$53)),$BH$53,BP96) -> 2010-01-01 | BT96: =IF(DAY(BR96)>1,BR96,BS96) -> 2010-01-01 | BU96: =IF(BT96=$BH$52,LOOKUP(BT96,$BL$28:$BL$41,$BM$28:$BM$41)-DATEDIF(BQ96,BT96,"d"),IF(BT96=$BH$53,DATEDIF($BL$53,$BH$53,"d")+1,LOOKUP(BT96,$BL$28:$BL$41,$BM$28:$BM$41))) -> 31 | BV96: =IF(AND($BH$52<=BT96,BT96<=$BH$53),BU96,0) -> 0 | BW96: =IF(BV96>0,0,BU96) -> 31 | BX96: =LOOKUP(BP96,$BL$28:$BL$41,$BM$28:$BM$41) -> 31 | BY96: =BX96-BU96 -> 0 | BZ96: =CA61 -> 8385 | CA96: =ROUND(BZ96*BW96/BX96,0) -> 8385 | CB96: =IF(BY96=0,0,ROUND(BZ96*BY96/BX96,0)) -> 0 | CC96: 0 | CD96: =ROUND(CB96*CC96,0) -> 0 | CE96: =Data!CS119 -> 0 | CF96: 0 | CG96: LPA
AB97: 1 | AC97: Applicable | BO97: 2 | BP97: 2010-02-01 | BQ97: =BP97 -> 2010-02-01 | BR97: =IF(AND(MONTH(BP97)=MONTH($BH$52),YEAR(BP97)=YEAR($BH$52)),$BH$52,BP97) -> 2010-02-01 | BS97: =IF(AND(MONTH(BP97)=MONTH($BH$53),YEAR(BP97)=YEAR($BH$53)),$BH$53,BP97) -> 2010-02-01 | BT97: =IF(DAY(BR97)>1,BR97,BS97) -> 2010-02-01 | BU97: =IF(BT97=$BH$52,LOOKUP(BT97,$BL$28:$BL$41,$BM$28:$BM$41)-DATEDIF(BQ97,BT97,"d"),IF(BT97=$BH$53,DATEDIF($BL$53,$BH$53,"d")+1,LOOKUP(BT97,$BL$28:$BL$41,$BM$28:$BM$41))) -> 28 | BV97: =IF(AND($BH$52<=BT97,BT97<=$BH$53),BU97,0) -> 0 | BW97: =IF(BV97>0,0,BU97) -> 28 | BX97: 28 | BY97: =BX97-BU97 -> 0 | BZ97: 15700 | CA97: =ROUND(BZ97*BW97/BX97,0) -> 15700 | CB97: =IF(BY97=0,0,ROUND(BZ97*BY97/BX97,0)) -> 0 | CC97: =CC62 -> 0.09416 | CD97: =ROUND(CB97*CC97,0) -> 0 | CE97: =CE96 -> 0 | CF97: 0 | CG97: 0 | CH97: 0
V98: gender | W98: Tax Amount | AB98: 2 | AC98: Not Applicale | BO98: 3 | BP98: 2010-03-01 | BQ98: 2010-03-01 | BR98: 2010-03-01 | BS98: 2010-03-01 | BT98: 2010-03-01 | BU98: 31 | BV98: 0 | BW98: 31 | BX98: 31 | BY98: 0 | BZ98: 15700 | CA98: 15700 | CB98: 0 | CC98: 0.09416 | CD98: =ROUND(CB98*CC98,0) -> 0 | CE98: ='SALARY TABLE'!I42 -> 0 | CF98: 0.1 | CG98: =IF(BY98=0,0,ROUND(CB98*CF98,0)) -> 0 | CH98: 0
D99: DESIGNATION | F99: 40 | G99: =LOOKUP(F99,D100:D152,E100:E152) -> School Assistant (Maths) | P99: =IF(A5=I,HLOOKUP(Code!W3,Code!D88:CE89,2,Code!D89:CE89),'SALARY TABLE'!C5) -> 15700 | V99: =code2!G4 -> 1 | W99: ='INCOME TAX'!$J$66 -> 225963 | X99: ='INCOME TAX'!J55 -> 225963 | Y99: =VLOOKUP(V99,AE102:AF104,2) -> 160000 | Z99: =W99-Y99 -> 65963 | BO99: 4 | BP99: 2010-04-01 | BQ99: 2010-04-01 | BR99: 2010-04-01 | BS99: 2010-04-01 | BT99: 2010-04-01 | BU99: 30 | BV99: 0 | BW99: 30 | BX99: 30 | BY99: 0 | BZ99: 15700 | CA99: 15700 | CB99: 0 | CC99: 0.09416 | CD99: 0 | CE99: ='SALARY TABLE'!I43 -> 0 | CF99: 0.1 | CG99: =IF(BY99=0,0,ROUND(CB99*CF99,0)) -> 0 | CH99: 0
D100: 1 | E100: Assistant Director | BO100: 5 | BP100: 2010-05-01 | BQ100: 2010-05-01 | BR100: 2010-05-01 | BS100: 2010-05-01 | BT100: 2010-05-01 | BU100: 31 | BV100: 0 | BW100: 31 | BX100: 31 | BY100: 0 | BZ100: 15700 | CA100: 15700 | CB100: 0 | CC100: 0.09416 | CD100: 0 | CE100: ='SALARY TABLE'!I44 -> 0 | CF100: 0.1 | CG100: 0 | CH100: 0
D101: 2 | E101: Assistant Engineer | V101: Annual Income | X101: 1 | Y101: 2 | Z101: 3 | AA101: 1 | BO101: 6 | BP101: 2010-06-01 | BQ101: 2010-06-01 | BR101: 2010-06-01 | BS101: 2010-06-01 | BT101: 2010-06-01 | BU101: 30 | BV101: 0 | BW101: 30 | BX101: 30 | BY101: 0 | BZ101: 15700 | CA101: 15700 | CB101: 0 | CC101: 0.09416 | CD101: 0 | CE101: ='SALARY TABLE'!I45 -> 0 | CF101: 0.1 | CG101: 0 | CH101: 0
D102: 3 | E102: Asst. Commissioner for Govt. Exams | V102: 0 | W102: 160000 | X102: 0 | Y102: 0 | Z102: 0 | AA102: 2 | AB102: =ROUND(IF(AND($W$99>V102,$W$99<W102),HLOOKUP($V$99,$X$101:$Z$107,AA102)*$Z$99,0),0) -> 0 | AD102: =AND($W$99>V102,$W$99<W102) -> FALSE | AE102: 1 | AF102: 160000 | AH102: =HLOOKUP($V$99,$X$101:$Z$107,AA105) -> 0.1 | BO102: 7 | BP102: 2010-07-01 | BQ102: 2010-07-01 | BR102: 2010-07-01 | BS102: 2010-07-01 | BT102: 2010-07-01 | BU102: 31 | BV102: 0 | BW102: 31 | BX102: 31 | BY102: 0 | BZ102: 15700 | CA102: 15700 | CB102: 0 | CC102: 0.16264 | CD102: 0 | CE102: ='SALARY TABLE'!I46 -> 0 | CF102: 0.1 | CG102: 0 | CH102: 0
D103: 4 | E103: Asst. Section Officer | V103: 160001 | W103: 190000 | X103: 0.1 | Z103: 0 | AA103: 3 | AB103: 0 | AD103: FALSE | AE103: 2 | AF103: 190000 | AG103: =HLOOKUP($V$99,$X$101:$Z$107,AA105)-VLOOKUP(V99,AE102:AF104,2) -> -159999.9 | BO103: 8 | BP103: 2010-08-01 | BQ103: 2010-08-01 | BR103: 2010-08-01 | BS103: 2010-08-01 | BT103: 2010-08-01 | BU103: 31 | BV103: 0 | BW103: 31 | BX103: 31 | BY103: 0 | BZ103: 15700 | CA103: 15700 | CB103: 0 | CC103: 0.16264 | CD103: 0 | CE103: ='SALARY TABLE'!I47 -> 0 | CF103: 0.1 | CG103: 0 | CH103: 0
D104: 5 | E104: Asst. Statistical Officer | V104: 190001 | W104: 240000 | X104: 0.1 | Y104: 0.1 | Z104: 0 | AA104: 4 | AB104: 6596 | AD104: TRUE | AE104: 3 | AF104: 240000 | BO104: 9 | BP104: 2010-09-01 | BQ104: 2010-09-01 | BR104: 2010-09-01 | BS104: 2010-09-01 | BT104: 2010-09-01 | BU104: 30 | BV104: 0 | BW104: 30 | BX104: 30 | BY104: 0 | BZ104: 15700 | CA104: 15700 | CB104: 0 | CC104: 0.16264 | CD104: 0 | CE104: ='SALARY TABLE'!H48 -> 7960 | CF104: 0.1 | CG104: 0 | CH104: 0
D105: 6 | E105: Auditor | V105: 240001 | W105: 500000 | X105: 0.1 | Y105: 0.1 | Z105: 0.1 | AA105: 5 | AB105: 0 | AC105: =HLOOKUP($V$99,$X$101:$Z$107,AA105) -> 0.1 | AD105: FALSE | BO105: 10 | BP105: 2010-10-01 | BQ105: 2010-10-01 | BR105: 2010-10-01 | BS105: 2010-10-01 | BT105: 2010-10-01 | BU105: 31 | BV105: 0 | BW105: 31 | BX105: 31 | BY105: 0 | BZ105: 15700 | CA105: 15700 | CB105: 0 | CC105: 0.16264 | CD105: 0 | CE105: ='SALARY TABLE'!H49 -> 8200 | CF105: 0.1 | CG105: 0 | CH105: 0
D106: 7 | E106: Cashier | V106: 500001 | W106: 800000 | X106: 0.2 | Y106: 0.2 | Z106: 0.2 | AA106: 6 | AB106: 0 | AD106: FALSE | BO106: 11 | BP106: 2010-11-01 | BQ106: 2010-11-01 | BR106: 2010-11-01 | BS106: 2010-11-01 | BT106: 2010-11-01 | BU106: 30 | BV106: 0 | BW106: 30 | BX106: 30 | BY106: 0 | BZ106: 16150 | CA106: 16150 | CB106: 0 | CC106: 0.16264 | CD106: 0 | CE106: ='SALARY TABLE'!I50 -> 0 | CF106: 0.1 | CG106: 0 | CH106: 0
D107: 8 | E107: Deputy Director | V107: 800000 | X107: 0.3 | Y107: 0.3 | Z107: 0.3 | AA107: 7 | AB107: 0 | AD107: FALSE | BO107: 12 | BP107: 2010-12-01 | BQ107: 2010-12-01 | BR107: 2010-12-01 | BS107: 2010-12-01 | BT107: 2010-12-01 | BU107: 31 | BV107: =IF(AND($BH$52<=BT107,BT107<=$BH$53),BU107,0) -> 0 | BW107: 31 | BX107: 31 | BY107: 0 | BZ107: 16150 | CA107: 16150 | CB107: 0 | CC107: 0.16264 | CD107: =ROUND(CB107*CC107,0) -> 0 | CE107: ='SALARY TABLE'!I51 -> 0 | CF107: 0.1 | CG107: 0 | CH107: 0
D108: 9 | E108: Deputy Educational Officer | AB108: =SUM(AB102:AB107) -> 6596 | BO108: 13 | BP108: 2011-01-01 | BQ108: 2011-01-01 | BR108: 2011-01-01 | BS108: 2011-01-01 | BT108: 2011-01-01 | BU108: 31 | BV108: 0 | BW108: 31 | BX108: 31 | BY108: 0 | BZ108: 16150 | CA108: 16150 | CB108: 0 | CC108: 0.24824 | CD108: 0 | CE108: ='SALARY TABLE'!I52 -> 0 | CF108: 0.1 | CG108: 0 | CH108: 0
D109: 10 | E109: Deputy Inspector of Schools | BO109: 14 | BP109: 2011-02-01 | BQ109: 2011-02-01 | BR109: 2011-02-01 | BS109: 2011-02-01 | BT109: 2011-02-01 | BU109: 28 | BV109: 0 | BW109: 28 | BX109: 28 | BY109: 0 | BZ109: 16150 | CA109: 16150 | CB109: 0 | CC109: 0.24824 | CD109: 0 | CE109: ='SALARY TABLE'!I53 -> 1 incre | CF109: 0.1 | CG109: 0 | CH109: 0
D110: 11 | E110: District B.C. Welfare Officer | V110: Reader allowance | Y110: SCA | Z110: 1 | BX110: Half PayArrears | CB110: =SUM(CB96:CB109) -> 0 | CC110: DA | CD110: =SUM(CD96:CD109) -> 0 | CE110: HRA | CG110: =SUM(CG98:CG109) -> 0
D111: 12 | E111: District Educational Officer | V111: 1 | W111: =LOOKUP(V111,V112:W115,W112:W115) -> Not Applicable | X111: 1 | Y111: Not Applicable | Z111: =LOOKUP(Z110,X111:Y114,Y111:Y114) -> Not Applicable
D112: 13 | E112: District Tribal Welfare Officer | V112: 1 | W112: Not Applicable | X112: 2 | Y112: Non-Mandals
D113: 14 | E113: Divisional Engineer | V113: 2 | W113: 400 | X113: 3 | Y113: Mandals
D114: 15 | E114: Executive Engineer | V114: 3 | W114: 500 | X114: 4 | Y114: Hills / Hill Tops | BU114: =$Z$4 -> 0.1
D115: 16 | E115: Gazetted H.M. Gr-I | V115: 4 | W115: 600 | BO115: PT | BR115: Basic Pay | BS115: DA % | BT115: DA | BU115: HRA | BV115: HMA | BW115: AI | BX115: ='SALARY TABLE'!M4 -> PP/Special pay | BY115: ='SALARY TABLE'!N4 -> FPI | BZ115: ='SALARY TABLE'!P4 -> CA (PHA) | CA115: Total | CB115: PT
D116: 17 | E116: Gazetted H.M. Gr-II | BO116: 1 | BP116: 2010-01-01 | BQ116: =BP116 -> 2010-01-01 | BR116: ='SALARY TABLE'!S55 -> 8385 | BS116: ='SALARY TABLE'!L55 -> 00:00:00 | BT116: =ROUND(BR116*BS116,0) -> 0 | BU116: =$BU$114*BR116 -> 838.5 | BV116: =Data!$U$24 -> 0 | BW116: =Data!$U$20 -> 0 | BX116: =Data!$U$21 -> 0 | BY116: =Data!$U$22 -> 0 | CA116: =SUM(BT116:BZ116)+BR116 -> 9223.5 | CB116: =IF(CA116>20000,200,IF(CA116>15000,150,IF(CA116>10000,100,IF(CA116>6000,80,IF(CA116>5000,60,IF(CA116>4000,45,IF(CA116>3000,35,IF(CA116>2000,25,0)))))))) -> 80
D117: 18 | E117: Joint Director | BO117: 2 | BP117: 2010-02-01 | BQ117: =BP117 -> 2010-02-01 | BR117: ='SALARY TABLE'!S56 -> 15700 | BS117: ='SALARY TABLE'!L56 -> 00:00:00 | BT117: =ROUND(BR117*BS117,0) -> 0 | BU117: =$BU$114*BR117 -> 1570 | BV117: =Data!$U$24 -> 0 | BW117: =Data!$U$20 -> 0 | BX117: =Data!$U$21 -> 0 | BY117: =Data!$U$22 -> 0 | CA117: =SUM(BT117:BZ117)+BR117 -> 17270 | CB117: =IF(CA117>20000,200,IF(CA117>15000,150,IF(CA117>10000,100,IF(CA117>6000,80,IF(CA117>5000,60,IF(CA117>4000,45,IF(CA117>3000,35,IF(CA117>2000,25,0)))))))) -> 150
D118: 19 | E118: Junior Assistant | V118: SCA | AB118: 2 | BO118: 3 | BP118: 2010-03-01 | BQ118: 2010-03-01 | BR118: ='SALARY TABLE'!S57 -> 15700 | BS118: ='SALARY TABLE'!L57 -> 02:15:35.424 | BT118: =ROUND(BR118*BS118,0) -> 1478 | BU118: 1570 | BV118: =Data!$U$24 -> 0 | BW118: =Data!$U$20 -> 0 | BX118: =Data!$U$21 -> 0 | BY118: =Data!$U$22 -> 0 | BZ118: ='SALARY TABLE'!P5 -> 0 | CA118: 18748 | CB118: 150
D119: 20 | E119: Junior Lecturer | V119: =Z110 -> 1 | X119: ='INCOME TAX'!J75 -> 0 | Y119: =VLOOKUP(V119,AE122:AF124,2) -> 0 | Z119: =X119-Y119 -> 0 | AB119: SCA | BO119: 4 | BP119: 2010-04-01 | BQ119: 2010-04-01 | BR119: ='SALARY TABLE'!S58 -> 15700 | BS119: ='SALARY TABLE'!L58 -> 02:15:35.424 | BT119: 1478 | BU119: 1570 | BV119: =Data!$U$24 -> 0 | BW119: =Data!$U$20 -> 0 | BX119: =Data!$U$21 -> 0 | BY119: =Data!$U$22 -> 0 | BZ119: ='SALARY TABLE'!P6 -> 0 | CA119: 18748 | CB119: 150
D120: 21 | E120: L.F.L. Head Master | BO120: 5 | BP120: 2010-05-01 | BQ120: 2010-05-01 | BR120: ='SALARY TABLE'!S59 -> 15700 | BS120: ='SALARY TABLE'!L59 -> 02:15:35.424 | BT120: 1478 | BU120: 1570 | BV120: =Data!$U$24 -> 0 | BW120: =Data!$U$20 -> 0 | BX120: =Data!$U$21 -> 0 | BY120: =Data!$U$22 -> 0 | BZ120: ='SALARY TABLE'!P7 -> 0 | CA120: 18748 | CB120: 150
D121: 22 | E121: L.F.L. Head Mistress | V121: Basic Pay | X121: 2 | Y121: 3 | Z121: 4 | AA121: 1 | AC121: ='SALARY TABLE'!C5 -> 15700 | AD121: =IF(AND(AC121>=$V$122,AC121<=$W$122),HLOOKUP($V$119,$X$121:$Z$127,$AA$122),IF(AND(AC121>=$V$123,AC121<=$W$123),HLOOKUP($V$119,$X$121:$Z$127,$AA$123),IF(AND(AC121>=$V$124,AC121<=$W$124),HLOOKUP($V$119,$X$121:$Z$127,$AA$124),IF(AND(AC121>=$V$125,AC121<=$W$125),HLOOKUP($V$119,$X$121:$Z$127,$AA$125),IF(AND(AC121>=$V$126,AC121<=$W$126),HLOOKUP($V$119,$X$121:$Z$127,$AA$126),IF(AND(AC121>=$V$127,AC121<=$W$127),HLOOKUP($V$119,$X$121:$Z$127,$AA$127),0)))))) ->  | AE121: =IF($V$119=1,0,AD121) -> 0 | BO121: 6 | BP121: 2010-06-01 | BQ121: 2010-06-01 | BR121: ='SALARY TABLE'!S60 -> 15700 | BS121: ='SALARY TABLE'!L60 -> 02:15:35.424 | BT121: 1478 | BU121: 1570 | BV121: =Data!$U$24 -> 0 | BW121: =Data!$U$20 -> 0 | BX121: =Data!$U$21 -> 0 | BY121: =Data!$U$22 -> 0 | BZ121: ='SALARY TABLE'!P8 -> 0 | CA121: 18748 | CB121: 150
D122: 23 | E122: Language Pandit | V122: 0 | W122: 10600 | X122: 325 | Y122: 400 | Z122: 475 | AA122: 2 | AB122: =ROUND(IF(AND($AC$121>=V122,$AC$121<=W122),HLOOKUP($V$119,$X$121:$Z$127,AA122),0),0) -> 0 | AC122: ='SALARY TABLE'!C6 -> 15700 | AD122: =IF(AND(AC122>=$V$122,AC122<=$W$122),HLOOKUP($V$119,$X$121:$Z$127,$AA$122),IF(AND(AC122>=$V$123,AC122<=$W$123),HLOOKUP($V$119,$X$121:$Z$127,$AA$123),IF(AND(AC122>=$V$124,AC122<=$W$124),HLOOKUP($V$119,$X$121:$Z$127,$AA$124),IF(AND(AC122>=$V$125,AC122<=$W$125),HLOOKUP($V$119,$X$121:$Z$127,$AA$125),IF(AND(AC122>=$V$126,AC122<=$W$126),HLOOKUP($V$119,$X$121:$Z$127,$AA$126),IF(AND(AC122>=$V$127,AC122<=$W$127),HLOOKUP($V$119,$X$121:$Z$127,$AA$127),0)))))) ->  | AE122: =IF($V$119=1,0,AD122) -> 0 | BO122: 7 | BP122: 2010-07-01 | BQ122: 2010-07-01 | BR122: ='SALARY TABLE'!S61 -> 15700 | BS122: ='SALARY TABLE'!L61 -> 03:54:12.096 | BT122: 2553 | BU122: 1570 | BV122: =Data!$U$24 -> 0 | BW122: =Data!$U$20 -> 0 | BX122: =Data!$U$21 -> 0 | BY122: =Data!$U$22 -> 0 | BZ122: ='SALARY TABLE'!P9 -> 0 | CA122: 19823 | CB122: 150
D123: 24 | E123: Language Pandit (Hindi) | V123: 10601 | W123: 13660 | X123: 400 | Y123: 475 | Z123: 550 | AA123: 3 | AB123: =ROUND(IF(AND($AC$121>=V123,$AC$121<=W123),HLOOKUP($V$119,$X$121:$Z$127,AA123),0),0) -> 0 | AC123: ='SALARY TABLE'!C7 -> 15700 | AE123: 0 | BO123: 8 | BP123: 2010-08-01 | BQ123: 2010-08-01 | BR123: ='SALARY TABLE'!S62 -> 15700 | BS123: ='SALARY TABLE'!L62 -> 03:54:12.096 | BT123: 2553 | BU123: 1570 | BV123: =Data!$U$24 -> 0 | BW123: =Data!$U$20 -> 0 | BX123: =Data!$U$21 -> 0 | BY123: =Data!$U$22 -> 0 | BZ123: ='SALARY TABLE'!P10 -> 0 | CA123: 19823 | CB123: 150
D124: 25 | E124: Language Pandit (Sanskrit) | V124: 13661 | W124: 17050 | X124: 475 | Y124: 575 | Z124: 625 | AA124: 4 | AB124: =ROUND(IF(AND($AC$121>V124,$AC$121<W124),HLOOKUP($V$119,$X$121:$Z$127,AA124),0),0) ->  | AC124: ='SALARY TABLE'!C8 -> 15700 | AE124: 0 | BO124: 9 | BP124: 2010-09-01 | BQ124: 2010-09-01 | BR124: ='SALARY TABLE'!S63 -> 15700 | BS124: ='SALARY TABLE'!L63 -> 03:54:12.096 | BT124: 2553 | BU124: 1570 | BV124: =Data!$U$24 -> 0 | BW124: =Data!$U$20 -> 0 | BX124: =Data!$U$21 -> 0 | BY124: =Data!$U$22 -> 0 | BZ124: ='SALARY TABLE'!P11 -> 0 | CA124: 19823 | CB124: 150
D125: 26 | E125: Language Pandit (Tamil) | V125: 17051 | W125: 21250 | X125: 575 | Y125: 625 | Z125: 700 | AA125: 5 | AB125: 0 | AC125: ='SALARY TABLE'!C9 -> 15700 | AE125: 0 | BO125: 10 | BP125: 2010-10-01 | BQ125: 2010-10-01 | BR125: ='SALARY TABLE'!S64 -> 15700 | BS125: ='SALARY TABLE'!L64 -> 03:54:12.096 | BT125: 2553 | BU125: 1570 | BV125: =Data!$U$24 -> 0 | BW125: =Data!$U$20 -> 0 | BX125: =Data!$U$21 -> 0 | BY125: =Data!$U$22 -> 0 | BZ125: ='SALARY TABLE'!P12 -> 0 | CA125: 19823 | CB125: 150
D126: 27 | E126: Language Pandit (Telugu) | V126: 21251 | W126: 28450 | X126: 625 | Y126: 675 | Z126: 775 | AA126: 6 | AB126: 0 | AC126: ='SALARY TABLE'!C10 -> 15700 | AE126: 0 | BO126: 11 | BP126: 2010-11-01 | BQ126: 2010-11-01 | BR126: ='SALARY TABLE'!S65 -> 16150 | BS126: ='SALARY TABLE'!L65 -> 03:54:12.096 | BT126: 2627 | BU126: 1615 | BV126: =Data!$U$24 -> 0 | BW126: =Data!$U$20 -> 0 | BX126: =Data!$U$21 -> 0 | BY126: =Data!$U$22 -> 0 | BZ126: ='SALARY TABLE'!P13 -> 0 | CA126: 20392 | CB126: 200
D127: 28 | E127: Language Pandit (Urdu) | V127: 28451 | X127: 675 | Y127: 725 | Z127: 850 | AA127: 7 | AB127: 0 | AC127: ='SALARY TABLE'!C11 -> 15700 | AE127: 0 | BO127: 12 | BP127: 2010-12-01 | BQ127: 2010-12-01 | BR127: ='SALARY TABLE'!S66 -> 16150 | BS127: ='SALARY TABLE'!L66 -> 03:54:12.096 | BT127: 2627 | BU127: 1615 | BV127: =Data!$U$24 -> 0 | BW127: =Data!$U$20 -> 0 | BX127: =Data!$U$21 -> 0 | BY127: =Data!$U$22 -> 0 | BZ127: ='SALARY TABLE'!P14 -> 0 | CA127: 20392 | CB127: 200
D128: 29 | E128: Mandal Educational Officer | AB128: =SUM(AB122:AB127) ->  | AC128: ='SALARY TABLE'!C12 -> 15700 | AE128: 0 | BO128: 13 | BP128: 2011-01-01 | BQ128: 2011-01-01 | BR128: ='SALARY TABLE'!S67 -> 16150 | BS128: ='SALARY TABLE'!L67 -> 05:57:27.936 | BT128: 4009 | BU128: 1615 | BV128: =Data!$U$24 -> 0 | BW128: =Data!$U$20 -> 0 | BX128: =Data!$U$21 -> 0 | BY128: =Data!$U$22 -> 0 | BZ128: ='SALARY TABLE'!P15 -> 0 | CA128: 21774 | CB128: 200
D129: 30 | E129: Office Subordinate | AC129: ='SALARY TABLE'!C13 -> 16150 | AE129: 0 | BO129: 14 | BP129: 2011-02-01 | BQ129: 2011-02-01 | BR129: ='SALARY TABLE'!S68 -> 16150 | BS129: ='SALARY TABLE'!L68 -> 05:57:27.936 | BT129: 4009 | BU129: 1615 | BV129: =Data!$U$24 -> 0 | BW129: =Data!$U$20 -> 0 | BX129: =Data!$U$21 -> 0 | BY129: =Data!$U$22 -> 0 | BZ129: ='SALARY TABLE'!P16 -> 0 | CA129: 21774 | CB129: 200
D130: 31 | E130: Physical Education Teacher | AC130: ='SALARY TABLE'!C14 -> 16150 | AE130: 0 | CD130: =SUM(CD116:CD129) -> 0
D131: 32 | E131: Principal | AC131: ='SALARY TABLE'!C15 -> 16150 | AE131: 0
D132: 33 | E132: Project Officer | AC132: ='SALARY TABLE'!C16 -> 16150 | AE132: 0
D133: 34 | E133: R.J.D.S.E.
D134: 35 | E134: Record Assistant
D135: 36 | E135: School Assistant
D136: 37 | E136: School Assistant (Bio. Sc.) | V136: CCA
D137: 38 | E137: School Assistant (English) | V137: =X148 -> 1 | X137: ='INCOME TAX'!J93 -> 0 | Z137: =X137-Y137 -> 0 | AB137: CCA
D138: 39 | E138: School Assistant (Hindi)
D139: 40 | E139: School Assistant (Maths) | V139: Basic Pay | X139: 2 | Y139: 3 | Z139: 4 | AA139: 1 | AC139: =AC121 -> 15700 | AD139: =IF(AND(AC139>=$V$140,AC139<=$W$140),HLOOKUP($V$137,$X$139:$Z$143,$AA$140),IF(AND(AC139>=$V$141,AC139<=$W$141),HLOOKUP($V$137,$X$139:$Z$143,$AA$141),IF(AND(AC139>=$V$142,AC139<=$W$142),HLOOKUP($V$137,$X$139:$Z$143,$AA$142),IF(AND(AC139>=$V$143,AC139<=$W$143),HLOOKUP($V$137,$X$139:$Z$143,$AA$143),0)))) ->  | AE139: =IF($V$137=1,0,AD139) -> 0
D140: 41 | E140: School Assistant (Phy. Edn.) | V140: 0 | W140: 8200 | X140: 200 | Y140: 120 | Z140: 100 | AA140: 2 | AB140: =ROUND(IF(AND($AC$139>V140,$AC$139<W140),HLOOKUP($V$137,$X$139:$Z$143,AA140),0),0) -> 0 | AC140: 15700 | AD140: =IF(AND(AC140>=$V$140,AC140<=$W$140),HLOOKUP($V$137,$X$139:$Z$143,$AA$140),IF(AND(AC140>=$V$141,AC140<=$W$141),HLOOKUP($V$137,$X$139:$Z$143,$AA$141),IF(AND(AC140>=$V$142,AC140<=$W$142),HLOOKUP($V$137,$X$139:$Z$143,$AA$142),IF(AND(AC140>=$V$143,AC140<=$W$143),HLOOKUP($V$137,$X$139:$Z$143,$AA$143),0)))) ->  | AE140: =IF($V$137=1,0,AD140) -> 0
D141: 42 | E141: School Assistant (Phy. Science) | V141: 8201 | W141: 13270 | X141: 300 | Y141: 160 | Z141: 120 | AA141: 3 | AB141: =ROUND(IF(AND($AC$139>V141,$AC$139<W141),HLOOKUP($V$137,$X$139:$Z$143,AA141),0),0) -> 0 | AC141: 15700 | AE141: 0
D142: 43 | E142: School Assistant (Soc. Stu.) | V142: 13271 | W142: 18030 | X142: 350 | Y142: 220 | Z142: 130 | AA142: 4 | AC142: 15700 | AE142: 0
D143: 44 | E143: School Assistant (Telugu) | V143: 18031 | X143: 525 | Y143: 350 | Z143: 140 | AA143: 5 | AB143: 0 | AC143: 15700 | AE143: 0
D144: 45 | E144: School Assistant (Urdu) | AA144: 6 | AB144: 0 | AC144: 15700 | AE144: 0
D145: 46 | E145: Secondary Grade Teacher | AA145: 7 | AB145: 0 | AC145: 15700 | AE145: 0 | AF145: =IF(AND($AC$139>V140,$AC$139<W140),HLOOKUP($V$137,$X$139:$Z$143,AA140),IF(AND($AC$139>V141,$AC$139<W141),HLOOKUP($V$137,$X$139:$Z$143,AA141),0)) -> 0
D146: 47 | E146: Senior Assistant | AB146: 0 | AC146: 15700 | AE146: 0
D147: 48 | E147: Senior Lecturer | AB147: 0 | AC147: 16150 | AE147: 0
D148: 49 | E148: Superintendent | W148: CCA | X148: 1 | AC148: 16150 | AE148: 0
D149: 50 | E149: Head Master | V149: 1 | W149: Not Applicable | X149: =LOOKUP(X148,V149:W152,W149:W152) -> Not Applicable | AC149: 16150 | AE149: 0
D150: 51 | E150: M.P.D.O | V150: 2 | W150: Greater HYD Municipal Corporation | AC150: 16150 | AE150: 0
D151: 52 | E151: M.R.O | V151: 3 | W151: Greater Vizag Municipal corporation and Vijayawada
D152: 53 | E152: Health assistant | V152: 4 | W152: Other Municipal Corporations

Sheet Mandals list Village wise (hidden)
A1: List of Mandals in Adilabad District
A2: Adilabad • Bela • Boath • Dilawarpur • Jainad • Kaddampeddur • Khanpur • Kuntala • Mamda • Narnoor • Rebbana • Talamadugu • Tiryani • Asifabad • Bellampalle • Chennur • Gudihathnur • Jainoor • Kagaz Nagar • Kotapalle • Laxmanchanda • Mancherial • Nennal • Sarangapur • Tamsi • Utnur • Bazarhathnoor • Bhainsa • Dahegaon • Ichoda • Jaipur • Kasipet • Kouthala • Lohesra • Mandamarri • Neradigonda • Sirpur (T) • Tandur • Vemanpalle • Bejjur • Bheemini • Dandepalle • Inderavelly • Jannaram • Kerameri • Kubeer • Luxettipet • Mudhole • Nirmal • Sirpur (U) • Tanur • Wankdi
A3: List of Mandals in Anantapur District
A4: Agali • Amadagur • Amarapuram • Anantapur • Atmakur • Bathalapalle • Beluguppa • Bommanahal • Brahmasamudram • Bukkapatnam • Bukkarayasamudram • Chenne Kothapalle • Chilamathur • D.Hirchal • Dharmavaram • Gandlapenta • Garladinne • Gooty • Gorantla • Gudibanda • Gummagatta • Guntakal • Hindupur • Kadiri • Kalyandurg • Kambadur • Kanaganapalle • Kanekal • Kothacheruvu • Kudair • Kundurpi • Lepakshi • Madakasira • Mudigubba • Nallacheruvu • Nallamada • Nambulipulikunta • Narpala • Obuladevaracheruvu • Pamidi • Parigi • Peddapappur • Peddavadugur • Penu Konda • Putlur • Puttaparthi • Ramagiri • Raptadu • Rayadurg • Roddam • Rolla • Settur • Singanamala • Somandepalle • Tadimarri • Tadpatri • Talupula • Tanakal • Uravakonda • Vajrakarur • Vidapanakal • Yadiki • Yellanur
A5: List of Mandals in Chittoor District
A6: B Kothakota • Baireddi Palle • Bangarupalem • Buchinaidu Khandriga • Chandragiri • Chinnagottigallu • Chittoor • Chowdepalle • Gangadhara Nellore • Gangavaram • Gudi Palle • Gudipala • Gurramkonda • Irala • K V P Puram • Kalakada • Kalikiri • Kambhamvaripalle • Karvetinagar • Kuppam • Kurabalakota • Mandanpalle • Mulakalacheruvu • Nagalapuram • Nagari • Narayanavanam • Nimmanapalle • Nindra • Pakala • Palamaner • Palasamudram • Pedda Panjani • Peddamandyam • Peddathippasamudram • Penumuru • Pichatur • Pileru • Pulicherla • Punganur • Puthalapattu • Puttur • Rama Kuppam • Ramachandrapuram • Ramasamudram • Renigunta • Rompicherla • Santhi Puram • Satyavedu • Sodam • Somala • Srikalahasti • Srirangarajapuram • Thamballapalle • Thavanampalle • Thottambedu • Tirupati Rural • Tirupati Urban • Vadamalapeta • Varadaiahpalem • Vayalpad • Veduru Kuppam • Venkatagiri Kota • Vijaya Puram • Yadamari • Yerpedu • Yerravaripalem
A7: List of Mandals in Cuddapah District
A8: Atlur • B Kodur • Badvel • Brahmamgarimattam • Chakrayapet • Chapad • Chennur (Cuddapah District) • ChinnaChowk • Chinnamandem • Chintha Kommadinne • Chitvel • Cuddapah • Duvvur • Galiveedu • Gopavaram • Jammalamadugu • Kalasapadu • Kamalapuram • Khajipet • Kodur • Kondapuram • Lakkireddipalle • Lingala • Muddanur • Mylavaram • Mydukur • Nandalur • Obulavaripalle • Peddamudium • Penagaluru • Pendlimarri • Porumamilla • Proddutur • Pulivendla • Pullampeta • Railway Koduru • Rajampet • Raju Palem • Ramapuram • Rayachoti • S Mydukur • Sambepalle • Sidhout • Simhadripuram • T Sundupalle • Thandur • Vallur • Veeraballe • Veerapunayunipalle • Vempalle • Vemula • Vontimitta • Yerraguntla
A9: List of Mandals in East Godavari District
A10: Addateegala • Ainavilli • Alamuru • Allavaram • Amalapuram • Ambajipeta • Anaparthi • Atreyapuram • Bandarulanka • Biccavolu • Devipatnam • Gandepalle • Gangavaram (East Godavari District) • Gokavaram • Gollaprolu • I Polavaram • Jaggampeta • Kadiam • Kajuluru • Kakinada (Rural) • Kakunada (Urban) • Kapileswarapuram • Karapa • Katrenikona • Kirlampudi • Korukonda • Kotananduru • Kothapalli • Kothapeta • Malikipuram • Mamidikuduru • Mandapeta • Maredumilli • Mummidivaram • P Gannavaram • Pamarru • Pedapudi • Peddapuram • Pithapuram • Prathipadu • Rajahmundry(Rural) • Rajahmundry(Urban) • Rajanagaram • Rajavommangi • Ramachandrapuram (East Godavari District) • Rampachodavaram • Rangampeta • Ravulapalem • Rayavaram • Razole • Sakhinetipalle • Samalkota • Sankhavaram • Seethanagaram • Thallarevu • Thondangi • Tuni • Uppalaguptam • Y Ramavaram • Yeleswaram
A11: List of Mandals in Guntur District
A12: Achampeta • Amaravathi • Amruthalur • Bapatla • Bellamkonda • Bhattiprolu (Guntur District) • Bollapalle • Chebrole • Cherukupalle • Chilakaluripet • Dachepalle • Duggirala • Durgi • Edlapadu • Guntur • Gurazala • Ipuru • Kakumanu • Karempudi • Karlapalem • Kollipara • Kollur • Krosuru • Machavaram • Macherla • Mangalagiri • Medikonduru • Muppalla • Nadendla • Nagaram • Nakarikallu • Narasaraopeta • Nizampatnam • Nuzendla • Pedakakani • Pedakurapadu • Pedanandipadu • Phirangipuram • Piduguralla • Pittalavanipalem • Ponnur • Prathipadu (Guntur District) • Rajupalem • Rentacrintala • Repalle • Rompicherla (Guntur District) • Sattenapalle • Savalyapuram • Tadikonda • Tenali • Thadepalle • Thullur • Tsundur • Vatticherukuru • Veldurthi • Vemuru • Vinukonda
A13: List of Mandals in Karimnagar District
A14: Bheemadevarpalle • Boinpalle • Chandurthi • Choppadandi • Dharmapuri • Dharmaram • Ellanthakunta • Gambhiraopet • Gangadhara • Gollapalle • Husnabad • Huzurabad • Ibrahimpatnam • Jagtial • Jammikunta • Julapalle • Kamalapur • Kamanpur • Karimnagar • Kataram • Kathlapur • Kesavapatnam • Kodimial • Koheda • Konaraopeta • Koratla • Mahadevpur • Malharrao • Mallapur • Mallial • Manakondur • Manthani • Medipalle • Metpalle • Mustabad • Mutharam Mahadevpur • Mutharam Manthani • Odela • Peddapalle • Pegadapalle • Raikal (KarimnagarDistrict) • Ramadugu • Ramagundam • Saidapur • Sarangapur (KarimnagarDistrict) • Sirsilla • Srirampur • Sultanabad • Thimmapur • Veenavanka • Velgatoor • Vemulawada • Yella Reddi Peta
A15: List of Mandals in Khammam District
A16: Aswapuram • Aswaraopeta • Bayyaram • Bhadrachalam • Bonakal • Burgampadu • Chandrugonda • Cherla • Chinthakani • Chintur • Dammapeta • Dummugudem • Enkuru • Garla • Gundala • Julurpad • Kalluru • Karepalli • Khammam Rural • Khammam Urban • Konijerla • Kothagudem • Kukunoor • Kunavaram • Kusumanchi • Madhira • Manuguru • Mudigonda • Mulakalapalle • Nelakondapalle • Palawancha • Penuballi • Pinapaka • Sathupalle • Singareni • Tekulapalle • Thallada • Thirumalayapalem • Vararamachandrapuram • Velairpad • Vemsoor • Venkatapuram • Wazeed • Wyra • Yellandu • Yerrupalem
A17: List of Mandals in Krishna District
A18: A Konduru • Agiripalle • Avanigadda • Bantumilli • Bapulapadu • Challapalli • Chandarlapadu • Chatrai • G Konduru • Gampalagudem • Gannavaram • Ghantasala • Gudivada • Gudlavalleru • Gudur • Ibrahimpatnam (Krishna District) • Jaggayyapeta • Kaikalur • Kalidindi • Kanchika Cherla • Kankipadu • Koduru • Kruthivennu • Machilipatnam • Mandavalli • Mopidevi • Movva • Mudinepalli • Musunuru • Mylavaram (Krishna District) • Nagayalanka • Nandigama • Nandivada • Nuzvid • Pamarru (Krishna District • Pamidimukkala • Pedana • Pedaparupudi • Penamaluru • Penuganchiprolu • Reddigudem • Thotlavalluru • Tiruvuru • Unguturu • Vatsavai • Veerullapadu • Vijayawada Rural • Vijayawada Urban • Vissannapet • Vuyyuru
A19: List of Mandals in Kurnool District
A20: Adoni • Allagadda • Alur • Aspari • Atmakur • Banaganapalle • Bandi Atmakur • Bethamcherla • Bugganipalle • C.Belagal • Chagalamarri • Chippagiri • Devanakonda • Dhone • Dornipadu • Gadivemula • Gonegandla • Gospadu • Gudur • Halaharvi • Holagunda • Jupadu Bungalow • Kallur • Kodumur • Koilkuntla • Kolimigundla • Kosigi • Kothapalle • Kowthalam • Krishnagiri • Kurnool • Maddikera East • Mahanandi • Mantralayam • Midthur • Nandavaram • Nandi Kotkur • Nandyal • Orvakal • Owk • Pagidyala • Pamulapadu • Panyam • Pattikanda • Peapally • Pedda Kadubur • Rudravaram • Sanjamala • Sirvel • Srisailam • Tuggali • Uyyalawada • Veldurthi (Kurnool District) • Velgodu • Yemmiganur
A21: List of Mandals in Mahaboobnagar District
A22: Achampeta (Mahaboobnagar District) • Addakal • Aiza • Alampur • Amangal • Amrabad • Atmakur (Mahaboobnagar District) • Balanagar • Balmoor • Bhoothpur • Bijinapalle • Bomraspeta • Chinna Chinta Kunta • Damaragidda • Devarkadara • Dhanwada • Dharur (Mahboobanagar District • Doulatabad • Farooqnagar • Gadwal • Ghanpur • Ghattu • Gopalpeta • Hanwada • Itikyal • Jadcherla • Kalwakurthy • Keshampeta • Kodair • Kodangal • Koilkonda • Kollapur • Kondurg • Kosgi • Kothakota • Kothur • Lingal • Maddur • Madgul • Maganoor • Mahbubnagar • Makthal • Maldakal • Manopadu • Midjil • Nagar Kurnool • Narayanpet • Narva • Nawabpet • Pangal • Pebbair • Peddakothapalle • Peddamandadi • Tadoor • Talakondapalle • Telkapalle • Thimmajipeta • Uppununthala • Utkoor • Vangoor • Veepangandla • Veldanda • Waddepalle • Wanaparthy
A23: List of Mandals in Medak District
A24: Alladurg • Andole • Chegunta • Chinna Kodur • Doultabad • Dubbak • Eddumailaram • Gajwel • Hathnoora • Jagdevpur • Jharasangam • Jinnaram • Kalher • Kangti • Kohir • Kondapak • Kondapur • Kowdipalle • Kulcharam • Manoor • Medak • Mirdoddi • Mulug • Munpalle • Nanganur • Narayankhed • Narsapur • Nyalkal • Papannapet • Patancheru • Pulkal • Raikode • Ramachandrapuram (Medak District) • Ramayampet • Regode • Sadasivpet • Sangareddy • Shankarampet (A) • Shankarampet (R) • Shivampet • Siddipet • Tekmal • Tupran • Wargal • Yeldurthy • Zahirabad •
A25: List of Mandals in Nalgonda District
A26: Alair • Anumula • Atmakur (M) • Atmakur (S) • Bhuvanagiri • Bibinagar • Bommalaramaram • Chandam Pet • Chandur • Chilkur • Chintha Palle • Chityala • Chivvemla • Choutuppal • Dameracherla • Devarakonda • Garide Palle • Gundala • Gundla Palle • Gurrampode • Huzurnagar • Jaji Reddi Gudem • Kangal • Kattangoor • Kethepalle • Kodad • M Turkapalle • Marri Guda • Mattampalle • Mellachervu • Miryalaguda • Mothey • Mothkur • Munagala • Munugode • Nadigudem • Nakrekal • Nalgonda • Nampalle • Narayanapur • Narketpalle • Nered Cherla • Nidamanur • Nuthankal • Pedda Adiserlapalle • Peddavura • Penpahad • Pochampalle • Rajapet • Ramannapeta • Saligouraram • Suryapet • Thipparthi • Thirumalagiri • Thripuraram • Thunga Thurthi • Valigonda • Vemulapalle • Yadagirigutta •
A27: List of Mandals in Nellore District
A28: Allur • Ananthasagaram • Anumasamudrampeta • Atmakur • Balayapalle • Bogole • Buchireddipalem • Chejerla • Chillakur • Chittamur • Dagadarthi • Dakkili • Doravarisatram • Duttalur • Gudur • Indukurpet • Jaladanki • Kaligiri • Kaluvoya • Kavali • Kodavalur • Kondapuram (Nellore District) • Kota • Kovur • Manubolu • Marripadu • Muthukur • Naidupeta • Nellore • Ojili • Pellakur • Podlakur • Rapur • Sangam • Seetharamapuram • Sullurpeta • Sydapuram • Tada • Thotapalligudur • Udayagiri • Vakadu • Varikuntapadu • Venkatachalam • Venkatagiri • Vidavalur • Vinjamur •
A29: List of Mandals in Nizamabad District
A30: Armur • Balkonda • Banswada • Bheemgal • Bhiknur • Bichkunda • Birkoor • Bodhan • Dhar Palle • Dich Palle • Domakonda • Gandhari • Jakranpalle • Jukkal • Kamareddy • Kammar Palle • Kotgiri • Lingampet • Machareddy • Madnur • Makloor • Mortad • Naga Reddipet • Nandipet • Navipet • Nizam Sagar • Nizamabad • Pitlam • Ranjal • Sadasivanagar • Sirkonda • Tadwai • Varni • Velpur • Yeda Palle • Yellareddy •
A31: List of Mandals in Prakasam District
A32: • Ardhaveedu • Ballikuruva • Bestavaripeta • Chadrasekara Puram • Chimakurthi • Chinaganjam • Chirala • Cumbum • Darsi • Donakonda • Dornala • Gi• Gudluru • Hanumanthunipadu • Inkollu • Janakavaram Panguluru • Kandukur • Kanigiri • Karamchedu • Komarolu • Konakanamitla • Kondapi • Korisapadu • Kothapatnam • Kurichedu • Lingasamudram • Maddipadu • Markapur • Marripudi • Martur • Mundlamuru • Naguluppalapadu • Ongole • Pamur • Parchur • Pedaaraveedu • Pedacherlopalle • Podili • Ponnaluru • Pullalacheruvu • Racherla • Santhamaguluru • Santhanuthlapadu • Singarayakonda • Tangutur • Tarlapadu • Thallur • Tripuranthakam • Ulavapadu • Veligandla • Vetapalem • Voletivaripalem • Yeddanapudi • Yerragondapalem • Zarugumilli
A33: List of Mandals in Rangareddy District
A34: Balanagar • Bantaram • Basheerabad • Chevella • Dharur • Domah • Gandeed • Ghatkesar • Hayathnagar • Ibrahimpatam • Kandukur • Keesara • Kulkacharla • Maheswaram • Malkajgiri • Manchal • Marpalle • Medchal • Moinabad • Mominpet • Nawabpet(Rangareddy District) • Pargi • Peddemul • Pudur • Quthbullapur • Rajendranagar • Saroornagar • Serilingampalle • Shabad • Shamirpet • Shamshabad • Shankarpalle • Tandur (Rangareddy District) • Uppal • Vikarabad • Yacharam • Yelal •
A35: List of Mandals in Srikakulam District
A36: Amadalavalasa • Battili • Bhamini • Burja • Etcherla • Ganguvari Singadam • Kaligapatnam • Hiramandalam • Ichchapuram • Jalumuru • Kanchili • Kaviti • Kotabommili • Kothuru • Laveru • Mandasa • Meilaputti • Nandigam • Narasannapeta • Palakonda • Palasa • Pathapatnam • Polaki • Ponduru • Rajam • Ranastalam • Regidiamadalavalasa • Santhabommali • Santhakaviti • Saravakota • Sarubujjili • Seethampeta • Sompeta • Srikakulam • Tekkali • Vajrapukothuru • Vangara • Veeraghattam •
A37: List of Mandals in Visakhapatnam District
A38: Anakapalli • Anandapuram • Ananthagiri • Araku Valley • Atchutapuram • Bheemunipatnam • Butchayyapeta • Cheedikada • Chintapalle • Chodavaram • Devarapalle • Dumbriguda • Gajuwaka • Gangaraju Madugula • Golugonda • Gudem Kothaveedhi • Hukumpeta • K Kotapadu • Kasimkota • Kotauratla • Koyyuru • Madugula • Makavarapalem • Munagapaka • Munchingiputtu • Nakkapalli • Narsipatnam • Nathavaram • Paderu • Padmanabham • Paravada • Payakaraopeta • Pedabayalu • Pedagantyada • Pendurthi • Rambilli • Ravikamatham • Rolugunta • S Rayavaram • Sabbavaram • Visakhapatnam • Visakhapatnam(U) • Yelamanchili
A39: List of Mandals in Vizianagaram District
A40: Badangi • Balajipeta • Bhoghapuram • Bobbili • Bondapalle • Chintalavalasa • Cheepurupalle • Dattirajeru • Denkada • Gajapathinagaram • Gantyada • Garividi • Garugubilli • Gummalakshmipuram • Gurla • Jami • Jiyyamma Valasa • Komarada • Kothavalasa • Kurupam • Lakkavarapukota • Makkuva • Mentada • Merakamudidam • Nellimarla • Pachipenta • Parvathipuram • Pusapatirega • Ramabhadrapuram • Salur • Seethanagaram (Vizianagaram District) • Srungavarapukota • Therlam • Vepada • Vizianagaram
A41: List of Mandals in Warangal District
A42: Atmakur (Warangal District) • Bachannapeta • Bhupalpalle • Chennaraopet • Cheriyal • Chityal • Devaruppula • Dharmasagar • Dornakal • Duggondi • Eturnagaram • Geesugonda • Ghanapur • Ghanpur(Stn) • Govindaraopet • Gudur • Hanamkonda • Hasanparthy • Jangaon • Kesamudram • Khanapur • Kodakandla • Kothagudem • Kuravi • Lingala Ghanpur • Maddur (Warangal District) • Mahabubabad • Mangapet • Maripeda • Mogullapalle • Mulug (Warangal District) • Nallabelly • Narmetta • Narsampet • Narsimhulapet • Nekkonda • Nellikudur • Palakurthi • Parkal • Parvathagiri • Raghunatha Palle • Raiparthy • Regonda • Sangem • Shayampet • Tadvai • Thorrur • Venkatapur • Wardhannapet • Zaffergadh
A43: List of Mandals in West Godavari District
A44: Achanta • Akiveedu • Attili • Bheemavaram • Bhimadole • Buttayagudem • Chagallu • Chintalapudi • Denduluru • Devarapalle • Dwaraka Tirumala • Eluru • Ganapavaram • Gopalapuram • Iragavaram • Jangareddigudem • Jeelugumilli • Kalla • Kamavarapukota • Kovvur • Koyyalagudem • Lingapalem • Mogalthur • Nallajerla • Narasapuram • Nidadavole • Nidamarru • Palacole • Palakoderu • Pedapadu • Pedavegi • Pentapadu • Penugonda • Penumantra • Peravali • Poduru • Polavaram • T Narasapuram • Tadepalligudem • Tanuku • Thallapudi • Undi • Undrajavaram • Unguturu • Veeravasaram • Yelamanchili

Sheet code2 (hidden)
A1: 1 | B1: Adilabad District | C1: Adilabad | D1: DDO Desgn | F1: 1 | G1: Sri. | H1: 1
A2: 2 | B2: Not applicable | C2: Ananthapur | D2: 1 | E2: Assistant Director | F2: 2 | G2: Smt.
A3: 3 | B3: SPSR Nellore District | C3: Nellore | D3: 2 | E3: Deputy Director | F3: 3 | G3: Kum.
A4: 4 | B4: Chittoor District | C4: Chittoor | D4: 3 | E4: Deputy Educational Officer | F4: GENDER | G4: 1 | I4: =IF(G4=1,G1,IF(G4=2,G2&"/"&G3,G1&"/"&G2)) -> Sri.
A5: 5 | B5: East Godavari District | C5: Kakinada | D5: 4 | E5: Deputy Inspector of Schools
A6: 6 | B6: Guntur District | C6: Guntur | D6: 5 | E6: Gazetted H.M. Gr-I
A7: 7 | B7: Hyderabad District | C7: Hyderabad | D7: 6 | E7: Gazetted H.M. Gr-II
A8: 8 | B8: Kareemnagar District | C8: Kareem Nagar | D8: 7 | E8: Head Master
A9: 9 | B9: Khammam District | C9: Khammam | D9: 8 | E9: Head Mistress
A10: 10 | B10: Krishna District | C10: Machilipatnam | D10: 9 | E10: Mandal Educational Officer
A11: 11 | B11: Kurnool District | C11: Kurnool | D11: 10 | E11: Principal
A12: 12 | B12: Mahboobnagar District | C12: Mahboobnagar | D12: 11 | E12: Project Officer
A13: 13 | B13: Medak District | C13: Sanga Reddy | D13: 12 | E13: R.J.D.S.E.
A14: 14 | B14: Nalgonda District | C14: Nalgonda | I14: =IF(Data!$T$5=0,Code!G99,Data!$T$5) -> School Assistant (Maths)
A15: 15 | B15: Nizamabad District | C15: Nizamabad
A16: 16 | B16: Prakasham District | C16: Ongole
A17: 17 | B17: Ranga Reddy District | C17: Hyderabad
A18: 18 | B18: Sreekakulam District | C18: Sreekakulam
A19: 19 | B19: Vishakapatnam District | C19: Vishakapatnam
A20: 20 | B20: Vizianagaram District | C20: Vizianagaram
A21: 21 | B21: Warangal District | C21: Warangal
A22: 22 | B22: West Godavari District | C22: Elure
A23: 23 | B23: YSR Kadapa District | C23: Kadapa
B25: Not applicable
B26: SPSR Nellore District
B27: Chittoor District

Sheet Data
O1: http://gsreddy.tk http://gsreddy.tk http://gsreddy.tk
N2: http://gsreddy.tk http://gsreddy.tk http://gsreddy.tk http://gsreddy.tk http://gsreddy.tk | AR2: http://gsreddy.tk http://gsreddy.tk http://gsreddy.tk http://gsreddy.tk http://gsreddy.tk
Q3: INCOME TAX 2010-2011
P4: Personal details | Q4: 1 | R4: Name of the Employee | T4: 1 | U4: G.Bhasker Reddy | W4: GENDER | X4: M | Y4: F | Z4: S. C | AG4: 3850 | AH4: 10
Q5: 2 | R5: Designation | U5: 53 | AG5: 3950
Q6: 3 | R6: PAN NO
Q7: 4 | R7: Name of the Office | U7: ZPPHS,Balayapalli
Q8: 5 | R8: District | U8: 3 | AP8: Enter your details in only green color cells
Q9: 6 | R9: Mandalm | U9: 5 | AG9: 4050 | AH9: 20
Q10: EARNINGS | AG10: 4150
P11: Earnings | Q11: 1 | R11: Basic Pay as on JAN - 2010 in RPS 2005(with Notionals) | U11: 7200
Q12: 2 | R12: Basic Pay as on FEB - 2010 in RPS 2010 | U12: =U11 -> 7200 | AB12: 10 | AG12: 4260
Q13: 3 | R13: 8/16/24 scale or one Extra increment | Y13: Taxable Amount
Q14: 4 | R14: Stepup benefit or one extra increment | Y14: Gross | Z14: =Y50 -> 263821
Q15: 5 | R15: Half Pay leave | U15: To | Y15: <1 laksh | Z15: =Y51 -> 16013
Q16: 6 | R16: Loss of Pay | U16: To | Y16: >1 laksh | Z16: 0
Q17: 7 | R17: HRA | S17: HRA REVISED PERCENT | V17: From | Y17: Tax amount | Z17: 65963
Q18: 8 | R18: AHRA | T18: City Compensatory Allowance(CCA) | Y18: Tax | Z18: 6794
Q19: 9 | R19: Reader allowance(RA) | T19: Special Compensatory allowance (SCA) | Y19: Ad. Tax | Z19: Nil
Q20: 10 | R20: Additional Increments (AI) | Y20: Net Tax | Z20: 6794 | AG20: =4480+115 -> 4595 | AN20: 75
Q21: 11 | R21: Personal Pay(PP)/Special Pay | Y21: visit:gsreddy.tk | AG21: =AG20+115 -> 4710
Q22: 12 | R22: Family Planning Increment (F.P.I)
Q23: 13 | R23: CA(PHA)
Q24: 14 | R24: HMA | W24: VISIT:gsreddy.tk | AG24: =AG21+115 -> 4825 | AK24: 0
Q25: 15 | R25: Increment Month | W25: GSREDDY
Q26: 16 | R26: Child Education Consession | W26: CELL:9666570250
Q27: SALARY DEDUCTIONS | AG27: =#REF!+125 ->  | AH27: 75 | AJ27: 15 | AK27: 60
P28: Salary Deductions | Q28: 1 | R28: ZPPF/GPF/CPS | U28: ZPPF/GPF REVISED AMOUNT | W28: =IF(Code!AB12=1,"Not Applicable","Enter amonut") -> Enter amonut | AG28: =AG27+125 ->  | AJ28: 30 | AK28: 75
W29: =IF(Code!AB13=1,"Not Applicable","Enter amonut") -> Enter amonut
Q30: 2 | R30: APGLI | U30: APGLI REVISED AMOUNT(RPS 10) | W30: =IF(Code!AB14=1,"Not Applicable","Enter amonut") -> Enter amonut | AG30: 5470 | AJ30: 120
AG31: 5605 | AI31: 15
AG32: 5750 | AI32: 30
Q33: 5 | R33: GIS | U33: ZPPF/GPF LOAN AND FESTIVAL ADVANCE CAN NOT BE TREATED AS SAVINGS. [Use Legal Pepar for print]
Q34: 6 | R34: EWF
Q35: 7 | R35: SWF
Q36: 8 | R36: LIC(SALARY) | U36: REVISED LIC AMOUNT | W36: =IF(Code!AC20=1,"Not Applicable","Enter amonut") -> Enter amonut | AG36: 5895
Q37: 9 | R37: LIC(BYHAND) | V37: TOTAL DEDUCTION U/S 80C Max. Rs 1,00,000/- + 20,000/- Infrustructure Bond, Total Rs.1,20,000/-
Q38: 10 | R38: Advance Tax | U38: =IF(Code!AB96=1,'ADVANCE TAX'!C15,0) -> 0
Q39: NON SALARY DEDUCTIONS | AG39: 8170 | AJ39: SA(SS)
P40: Non salary deductions | Q40: Below 1 laksh deductions | R40: Housing Loan Principle | W40: D.A | AG40: 8385 | AJ40: SA(PS)
R41: Tuition Fee for two Children | W41: 0.09416 | X41: TO | Y41: 0.16264 | AG41: 8600 | AJ41: SA(ENG)
R42: N.S.C. | W42: 0.16264 | X42: TO | Y42: 0.24824
R43: P.L.I | W43: EARNED LEAVE | AO43: Arrear Earnings
R44: L.I.C(Jeevan Suraksha) | AG44: 8815 | AJ44: SA(TEL)
R45: ING Life Insurance/Bajaj allianzlife insurance | Z45: ZPPF/CSS
R46: Interest on Housing loan(V/S 24(L)(VI) | W46: RPS ARREARS | AG46: 9050 | AJ46: SA(HIN)
R47: Fixed deposits for more than 5 years | W47: NOTIONAL ARREARS | AG47: 9775 | AJ47: GR-I TP | AP47: Check and submit.I am not responsiable for any mistaktes.any doubts call.
R48: PUBLIC PROVIDENT FUND (P.P.F) | W48: IR ARREARS(3 Months) | AG48: 10030 | AJ48: GR-I HP
X49: Taxable Amount | AG49: 10285 | AJ49: GR-II TP | AS49: 4260 | AT49: D.Lakshmidevi
X50: Gross | Y50: ='INCOME TAX'!J17 -> 263821 | AG50: 10565 | AJ50: GR-II HP | AS50: 4370 | AT50: M.Karunakumari
Q51: Above 1 laksh deductions | X51: <1 laksh | Y51: ='INCOME TAX'!J54 -> 16013
X52: >1 laksh | Y52: =SUM('INCOME TAX'!J57:J64) -> 0 | AG52: 10845 | AJ52: PET | AS52: 4480 | AT52: Ch.Gayatri
R53: Infrastructure Bonds(Max Rs.20,000/- only) | X53: Tax amount | Y53: ='INCOME TAX'!J68 -> 65963 | AG53: 11125 | AJ53: PED | AS53: 4595 | AT53: V.Vishnumohanrao
R54: Donations (80 G) | X54: Tax | Y54: ='INCOME TAX'!$J$72 -> 6794 | AG54: 11440 | AJ54: SGT | AS54: 4710 | AT54: Ch.Seenaiah
R55: Exption on PHC dependent (80DD) | X55: Ad. Tax | Y55: ='INCOME TAX'!$J$73 -> Nil | AG55: 11755 | AS55: 4825 | AT55: G.Uma
R56: Exp. On Medical Treatment | X56: Net Tax | Y56: ='INCOME TAX'!J74 -> 6794 | AG56: 12385 | AS56: 4950 | AT56: G.Saivijaya Kumar
R57: interest on Education loan | X57: visit:gsreddy.tk | AG57: 12700 | AS57: 5075 | AT57: T.Subba Rao
R58: Mediclaim Insurance (80-D) | AS58: 5200 | AT58: D.Sivaramaiah
R59: New section 80CCF from financial year 2010-11 | V59: 20000
Q60: PRESENTED BY GSREDDY,STU,BALAYAPALLI.cell:9666570520 | AG60: 13030 | AS60: 5335 | AT60: G.MohanRaju
AG61: 15975 | AS61: 5470 | AT61: N.Bharathy
R62: Thanks for using this software & visit my website gsreddy.tk | AG62: =AG61+475 -> 16450 | AT62: P.Mallikarjuna
O63: http://gsreddy.tk http://gsreddy.tk http://gsreddy.tk | AS63: 5605 | AT63: V.Sreenivasulu
AG64: =16925+550 -> 17475 | AS64: 5750
AG65: =AG64+550 -> 18025 | AS65: 5895
AG66: =AG65+550 -> 18575 | AS66: 6040
AG67: =AG66+550 -> 19125 | AS67: 6195
AG68: =19125+550 -> 19675 | AS68: 6350
AG69: =19675+625 -> 20300 | AS69: 6505
AG70: =AG69+625 -> 20925 | AS70: 6675
AG71: =AG70+625 -> 21550 | AS71: 6845
AG72: =AG71+625 -> 22175 | AS72: 7015
AG73: =22175+625 -> 22800 | AS73: 7200
AG74: =AG73+700 -> 23500 | AS74: 7385
AG75: 24200 | AS75: 7570
AG76: 24900 | AS76: 7770
AG77: 25600 | AS77: 7970
AG78: 26300 | AS78: 8170
AG79: 27000 | AS79: 8385
AG80: =AG79+750 -> 27750 | AS80: 8600
AG81: =AG80+750 -> 28500 | AS81: 8815
AG82: =AG81+750 -> 29250 | AS82: 9050
AG83: =AG82+750 -> 30000 | AS83: 9285
AG84: =AG83+765 -> 30765 | AS84: 9520
AS85: 9775
AS86: 10030
AS87: 10285
AS88: 10565
AS89: 10845
AS90: 11125
AS91: 11440
AS92: 11755
AS93: 12070
AS94: 12385
AS95: 12700
AS96: 13030
AS97: 13390
AS98: 13750
AS99: 14175
AS100: 14600
AS101: 15025
AS102: 15500
AS103: 15975
AS104: 16450
AS105: 16925
AS106: 17475
AS107: 18025
AS108: 18575
AS109: 19125
AS110: 19675
AS111: 20300
AS112: 20925
AS113: 21550
AS114: 22175
AS115: 22800
AS116: 23500
AS117: 24200
AS118: 24900
AS119: 25600
AS120: 26300
AS121: 27000
AS122: 27750
AS123: 28500
AS124: 29250
AS125: 30000
AS126: 30765

Sheet INCOME TAX
B2: =CONCATENATE("INCOME TAX RETURN FOR THE YEAR ",RIGHT(Data!Q3,10)) -> INCOME TAX RETURN FOR THE YEAR 2010-2011
B3: 1 | C3: Name of the Employee | H3: : | I3: =CONCATENATE(LOOKUP(code2!H1,code2!F1:G3),Data!U4) -> Sri.G.Bhasker Reddy | N3: Gross amount | P3: =J19 -> 263821
B4: 2 | C4: Desigation & Address | H4: : | I4: =Designation -> School Assistant (Maths) | N4: HRA | P4: =J24 -> 19805
I5: =Data!U7 -> ZPPHS,Balayapalli
I6: =IF(Mandals!Z1=Mandals!Z8," ",CONCATENATE(Mandals!AA2," Mandalm")) -> Balayapalli Mandalm
I7: =Mandals!Z1 -> Nellore District
B8: 3 | C8: Income Tax No. if already alloted | H8: : | I8: =Data!U6 -> 0
B9: 4 | C9: Income Receipts For The Year
C10: a) | D10: Pay | H10: : | I10: Rs. | J10: ='SALARY TABLE'!$C$28 -> 198050
C11: b) | D11: Personal pay/H.M.A/AI/CA/FPI | H11: : | I11: Rs. | J11: ='SALARY TABLE'!I28+'SALARY TABLE'!L28+'SALARY TABLE'!M28+'SALARY TABLE'!N28+'SALARY TABLE'!P28 -> 0
C12: c) | D12: Dearness Allowance(D.A) | H12: : | I12: Rs. | J12: ='SALARY TABLE'!$E$28 -> 45966
C13: d) | D13: House Rent Allowance | H13: : | I13: Rs. | J13: ='SALARY TABLE'!$F$28 -> 19805
C14: e) | D14: I.R | H14: : | I14: Rs. | J14: ='SALARY TABLE'!H28 -> 0
C15: f ) | D15: Child Education Consession | H15: : | I15: Rs. | J15: ='SALARY TABLE'!Q25 -> 0
C16: g) | D16: others(F.P.I/C.A/SCA/RA/CCA etc) | H16: : | I16: Rs. | J16: =Data!$Z$46+Data!$Z$47+'SALARY TABLE'!G28+'SALARY TABLE'!J28+'SALARY TABLE'!O28+'SALARY TABLE'!K28 -> 0
B17: 5 | C17: Gross salary(a+b+c+d+e+f+g) | H17: : | I17: Rs. | J17: =SUM(J10:J16) -> 263821
B18: 6 | C18: Income from other sources | H18: : | I18: Rs. | J18: 0
B19: 7 | C19: Gross Total income(5+6) | H19: : | I19: Rs. | J19: =J17+J18 -> 263821
B20: 8 | C20: House rent allowance | G20: vis 10(2A),13(A)
C21: a) | D21: Actual House Rent received | H21: : | I21: Rs. | J21: ='SALARY TABLE'!$F$28 -> 19805
C22: b) | D22: ="Excess of house rent received over & above of 10% of (Pay+DA)" -> Excess of house rent received over & above of 10% of (Pay+DA) | H22: : | I22: Rs. | J22: =ROUND((J10+J12)*10%,0) -> 24402
C23: c) | D23: 40% of (Pay+DA) (deduct (a) or (b) or (c) which ever less) | H23: : | I23: Rs. | J23: =ROUND(0.4*(J10+J12),0) -> 97606
H24: : | I24: Rs. | J24: =IF(J21>J22,J22,IF(J21>J23,J23,J21)) -> 19805
B25: 9 | C25: Net Salary Income (7-8) | H25: : | I25: Rs. | J25: =J19-SMALL(J21:J23,1) -> 244016
B26: 10 | C26: Deductions
C27: Professional Tax u/s 16 III | H27: : | I27: Rs. | J27: ='SALARY TABLE'!$W$28 -> 2000
C28: Special/conveyance/traveling allowance | H28: : | I28: Rs. | J28: 0
B29: 11 | C29: Net Salary Income (9-10) | H29: : | I29: Rs. | J29: =J25-J27 -> 242016
B30: 12 | C30: Deductions Under Chapter VI - A
C31: a) | D31: C.M. Relief Fund and flag day | H31: : | I31: Rs. | J31: ='SALARY TABLE'!Y12+'SALARY TABLE'!Y8 -> 0
C32: b) | D32: Housing Loan Interst | H32: : | I32: Rs. | J32: =Data!V46 -> 0
C33: c) | D33: T.W.F/E.W.F/S.W.F | H33: : | I33: Rs. | J33: ='SALARY TABLE'!$Y$5+'SALARY TABLE'!Y14 -> 40
C34: d) | D34: Exemption from conveyance allowance u/s.10(14)(i) | H34: : | I34: Rs. | J34: ='SALARY TABLE'!P28 -> 0
D35: Total | F35: (a+b+c+d) | H35: : | I35: Rs. | J35: =J31+J32+J33+J34 -> 40
B36: 13 | C36: Net Salary Income (11-12) | H36: : | I36: Rs. | J36: =J29-J35 -> 241976
B37: 14 | C37: Deductions Under Section 80 C.C.E
C38: a) | D38: L.I.C | H38: : | I38: Rs. | J38: ='SALARY TABLE'!T28 -> 0
C39: b) | D39: L.I.C(Personal) | H39: : | I39: Rs. | J39: =Data!T37 -> 0
C40: c) | D40: P.L.I | H40: : | I40: Rs. | J40: =Data!V43 -> 0
C41: d) | D41: G.I.S | H41: : | I41: Rs. | J41: ='SALARY TABLE'!S28 -> 720
C42: e) | D42: A.P.G.L.I.S | H42: : | I42: Rs. | J42: ='SALARY TABLE'!U28 -> 0
C43: f) | D43: =Code!AD12 -> ZPPF | H43: : | I43: Rs. | J43: ='SALARY TABLE'!R28 -> 15293
C44: g) | D44: CSS | H44: : | I44: Rs. | J44: =IF(D43="CPS",'SALARY TABLE'!V28,0) -> 0
C45: h) | D45: N.S.E | H45: : | I45: Rs. | J45: =Data!V42 -> 0
C46: i) | D46: Tution Fee | H46: : | I46: Rs. | J46: =Data!V41 -> 0
C47: j) | D47: Houseing Loan Principle | H47: : | I47: Rs. | J47: =Data!V40 -> 0
C48: k) | D48: =Data!R47 -> Fixed deposits for more than 5 years | H48: : | I48: Rs. | J48: =Data!V47 -> 0
C49: l) | D49: L.I.C(Jeevan Suraksha) | H49: : | I49: Rs. | J49: =Data!V44 -> 0
C50: m) | D50: =Data!R45 -> ING Life Insurance/Bajaj allianzlife insurance | H50: : | I50: Rs. | J50: =Data!V45 -> 0
C51: n) | D51: P.P.F | H51: : | I51: Rs. | J51: =Data!V48 -> 0
C52: o) | D52: =Data!R49 -> 0 | H52: : | I52: Rs. | J52: =Data!V49 -> 0
C53: p) | D53: =Data!R50 -> 0 | H53: : | I53: Rs. | J53: =Data!V50 -> 0
B54: 15 | C54: Total (a+b+c+d+e+f+g+h+i+j+k+l+m+n+o+p) | H54: : | I54: Rs. | J54: =SUM(J38:J53) -> 16013
B55: 16 | C55: Taxable Income(14-15) | H55: : | I55: Rs. | J55: =IF(SUM(J38:J53)>100000,J36-100000,J36-J54) -> 225963
B56: 17 | C56: Taxable income after deductions of savings
C57: a) | D57: =Data!R54 -> Donations (80 G) | H57: : | I57: Rs. | J57: =Data!V54 -> 0
C58: b) | D58: =Data!R55 -> Exption on PHC dependent (80DD) | H58: : | I58: Rs. | J58: =Data!V55 -> 0
C59: c) | D59: =Data!R56 -> Exp. On Medical Treatment | H59: : | I59: Rs. | J59: =Data!V56 -> 0
C60: d) | D60: =Data!R57 -> interest on Education loan | H60: : | I60: Rs. | J60: =Data!V57 -> 0
C61: e) | D61: =Data!R58 -> Mediclaim Insurance (80-D) | H61: : | I61: Rs. | J61: =Data!V58 -> 0 | N61: Income Tax Slabs 2009/2010 for Men
C62: f) | D62: =Data!R53 -> Infrastructure Bonds(Max Rs.20,000/- only) | H62: : | I62: Rs. | J62: =Data!V53 -> 0
C63: g) | D63: =Data!R52 -> 0 | H63: : | I63: Rs. | J63: =Data!V52 -> 0
C64: h) | D64: =Data!$R$51 -> 0 | H64: : | I64: Rs. | J64: =Data!V51 -> 0
B65: 18 | C65: Total (a+b+c+d+e+f+g+h) | H65: : | I65: Rs. | J65: =SUM(J57:J64) -> 0 | N65: Income: upto 1.6 lacs | O65: NO TAX
B66: 19 | C66: Tax Payble income(16-18) | H66: : | I66: Rs. | J66: =IF(J55<J65,"Nil",J55-J65) -> 225963 | N66: Income : 1.6 lacs to 3 lacs | O66: 0.1
B67: 20 | C67: =CONCATENATE("No Tax for income upto Rs.",J67) -> No Tax for income upto Rs.160000 | H67: : | I67: Rs. | J67: =IF(code2!G4=1,160000,IF(code2!G4=2,190000,240000)) -> 160000
B68: 21 | C68: Final Taxable amount (19-20) | H68: : | I68: Rs. | J68: =IF((J66-J67)<0,"Nil",J66-J67) -> 65963
B69: 22 | C69: Tax(see note) | H69: : | I69: Rs. | J69: =tax -> 6596 | N69: Income : 3 lacs to 5 lacs | O69: 0.2
B70: 23 | C70: Education cess(2%) | H70: : | I70: Rs. | J70: =IF(J69="Nil","Nil",ROUND((2%*J69),0)) -> 132 | N70: Income : above 5 lacs | O70: 0.3
B71: 24 | C71: Secondary & Higher Education cess(1%) | H71: : | I71: Rs. | J71: =IF(J69="Nil","Nil",ROUND((1%*J69),0)) -> 66
B72: 25 | C72: Tax to be paid | H72: : | I72: Rs. | J72: =IF(J69="Nil","Nil",SUM(J69:J71)) -> 6794 | N72: Income Tax Slabs 2009/2010 or Women
B73: 26 | C73: Advance tax paid | H73: : | I73: Rs. | J73: =IF(OR(J69="Nil",'ADVANCE TAX'!B3="Not Applicable "),"Nil",'SALARY TABLE'!X28) -> Nil
B74: 27 | C74: Net TAX to be paid | H74: : | I74: Rs. | J74: =IF(OR(J68="Nil",J66="Nil",J72="Nil"),"Nil",IF(J73="Nil",J72,J72-J73)) -> 6794
B76: Note: | D76: Annual Income | E76: Men | F76: Women | G76: Senior citizen | N76: Income : upto 1.9 lacs | O76: NO TAX
D77: Below 1,60,000 | E77: No Tax | F77: No Tax | G77: No Tax | N77: Income : 1.9 lacs to 3 lacs | O77: 0.1
D78: 1,60,001-1,90,000 | E78: 0.1 | F78: No Tax | G78: No Tax | N78: Income : 3 lacs to 5 lacs | O78: 0.2
D79: 1,90,001-2,40,000 | E79: 0.1 | F79: 0.1 | G79: No Tax | N79: Income : above 5 lacs | O79: 0.3
D80: 2,40,001-5,00,000 | E80: 0.1 | F80: 0.1 | G80: 0.1
D81: 5,00,001-8,00,000 | E81: 0.2 | F81: 0.2 | G81: 0.2 | N81: Income Tax slabs 2009/2010 for Senior Citizen
D82: 8,00,000 Above | E82: 0.3 | F82: 0.3 | G82: 0.3 | N82: Income : upto 2.4 lacs | O82: NO TAX
B83: Note: | D83: 1.Deduct savings amount(col. No. 14) from taxable income Under section 80 C.C.E (Limit Rs.100000) | N83: Income : 2.4 lacs to 3 lacs | O83: 0.1
D84: 2.Penalty u/s. 271F: Failure to furnish a return of income as required u/s.139 before the end of the | N84: Income : 3 lacs to 5 lacs | O84: 0.2
D85: relevant assessment year shall entail the assessee liable for a penalty of Rs.5,000-00 | N85: Income : above 5 lacs | O85: 0.3
B86: COUNTER SIGNED | G86: SIGNATURE OF EMPLOYEE
B88: Designed by G.S.Reddy,Venkatagiri,cell:9666570250

Sheet SALARY TABLE
B2: =CONCATENATE("Statement Showing Monthwise income of Sri."," ",Data!U4," for the year ",RIGHT(Data!Q3,10)) -> Statement Showing Monthwise income of Sri. G.Bhasker Reddy for the year 2010-2011
B4: Month | C4: Basic pay | D4: D.A | E4: D.A | F4: H.R.A | G4: AHRA | H4: IR | I4: HMA | J4: SCA | K4: CCA | L4: AI | M4: PP/Special pay | N4: FPI | O4: RA | P4: CA (PHA) | Q4: Total Income | R4: =Code!AD12 -> ZPPF | S4: G.I.S | T4: L.I.C | U4: A.P.G.L.I.S | V4: =IF(R4="CPS","CSS"," ") ->  | W4: PT | X4: Advance Tax | Y4: CMRF/ TWF /SWF | Z4: Total deductions | AA4: Net | AG4: 0
B5: 2010-03-01 | C5: =R57 -> 15700 | D5: =Data!$W$41 -> 0.09416 | E5: =ROUND((D5*C5),0) -> 1478 | F5: =Code!AP64 -> 1570 | G5: =Code!AR64 -> 0 | I5: =IF($C5=0,0,IF(Code!$AM$3=1,ROUND(Data!$U$24/2,0),Data!$U$24)) -> 0 | J5: =Code!AE121 -> 0 | K5: =Code!AE139 -> 0 | L5: =IF($C5=0,0,IF(Code!$AM$3=1,ROUND(Data!$U$20/2,0),Data!$U$20)) -> 0 | M5: =IF($C5=0,0,IF(Code!$AM$3=1,ROUND(Data!$U$21/2,0),Data!$U$21)) -> 0 | N5: =IF($C5=0,0,IF(Code!$AM$3=1,ROUND(Data!$U$22/2,0),Data!$U$22)) -> 0 | O5: =IF(Code!$W$111="Not Applicable",0,Code!$W$111) -> 0 | P5: =IF($C5=0,0,IF(Code!$AM$3=1,ROUND(Code!AL36/2,0),Code!AL36)) -> 0 | Q5: =C5+E5+F5+G5+H5+I5+J5+K5+L5+M5+N5+O5+P5 -> 18748 | R5: =Code!AV33 -> 0 | S5: =Code!AH3 -> 60 | T5: =Code!AV48 -> 0 | U5: =Code!AV18 -> 0 | W5: =IF(Code!$AE$3=2,Code!CB118," ") -> 150 | X5: =IF(Code!$AB$96=1,'ADVANCE TAX'!C3," ") ->  | Y5: =ewf -> 20 | Z5: =SUM(R5:Y5) -> 230 | AA5: =Q5-Z5 -> 18518 | AG5: 3850 | AH5: 0
B6: 2010-04-01 | C6: 15700 | D6: =Data!W41 -> 0.09416 | E6: 1478 | F6: =Code!AP65 -> 1570 | G6: =Code!AR65 -> 0 | I6: =IF($C6=0,0,IF(Code!$AM$3=1,ROUND(Data!$U$24/2,0),Data!$U$24)) -> 0 | J6: =Code!AE122 -> 0 | K6: =Code!AE140 -> 0 | L6: =IF($C6=0,0,IF(Code!$AM$3=1,ROUND(Data!$U$20/2,0),Data!$U$20)) -> 0 | M6: =IF($C6=0,0,IF(Code!$AM$3=1,ROUND(Data!$U$21/2,0),Data!$U$21)) -> 0 | N6: =IF($C6=0,0,IF(Code!$AM$3=1,ROUND(Data!$U$22/2,0),Data!$U$22)) -> 0 | O6: =IF(Code!$W$111="Not Applicable",0,Code!$W$111) -> 0 | P6: =IF($C6=0,0,IF(Code!$AM$3=1,ROUND(Code!AL37/2,0),Code!AL37)) -> 0 | Q6: =C6+E6+F6+G6+H6+I6+J6+K6+L6+M6+N6+O6+P6 -> 18748 | R6: =Code!AV34 -> 0 | S6: =S5 -> 60 | T6: =Code!AV49 -> 0 | U6: =Code!AV19 -> 0 | W6: =IF(Code!$AE$3=2,Code!CB119," ") -> 150 | X6: =IF(Code!$AB$96=1,'ADVANCE TAX'!C4," ") ->  | Z6: 210 | AA6: 18538 | AG6: 3950 | AH6: 30
B7: 2010-05-01 | C7: 15700 | D7: =Data!W41 -> 0.09416 | E7: 1478 | F7: =Code!AP66 -> 1570 | G7: =Code!AR66 -> 0 | I7: =IF($C7=0,0,IF(Code!$AM$3=1,ROUND(Data!$U$24/2,0),Data!$U$24)) -> 0 | J7: =Code!AE123 -> 0 | K7: =Code!AE141 -> 0 | L7: =IF($C7=0,0,IF(Code!$AM$3=1,ROUND(Data!$U$20/2,0),Data!$U$20)) -> 0 | M7: =IF($C7=0,0,IF(Code!$AM$3=1,ROUND(Data!$U$21/2,0),Data!$U$21)) -> 0 | N7: =IF($C7=0,0,IF(Code!$AM$3=1,ROUND(Data!$U$22/2,0),Data!$U$22)) -> 0 | O7: =IF(Code!$W$111="Not Applicable",0,Code!$W$111) -> 0 | P7: =IF($C7=0,0,IF(Code!$AM$3=1,ROUND(Code!AL38/2,0),Code!AL38)) -> 0 | Q7: 18748 | R7: =Code!AV35 -> 0 | S7: 60 | T7: =Code!AV50 -> 0 | U7: =Code!AV20 -> 0 | W7: =IF(Code!$AE$3=2,Code!CB120," ") -> 150 | X7: =IF(Code!$AB$96=1,'ADVANCE TAX'!C5," ") ->  | Z7: 210 | AA7: 18538 | AG7: 4050 | AH7: 60
B8: 2010-06-01 | C8: 15700 | D8: =Data!W41 -> 0.09416 | E8: 1478 | F8: =Code!AP67 -> 1570 | G8: =Code!AR67 -> 0 | I8: =IF($C8=0,0,IF(Code!$AM$3=1,ROUND(Data!$U$24/2,0),Data!$U$24)) -> 0 | J8: =Code!AE124 -> 0 | K8: =Code!AE142 -> 0 | L8: =IF($C8=0,0,IF(Code!$AM$3=1,ROUND(Data!$U$20/2,0),Data!$U$20)) -> 0 | M8: =IF($C8=0,0,IF(Code!$AM$3=1,ROUND(Data!$U$21/2,0),Data!$U$21)) -> 0 | N8: =IF($C8=0,0,IF(Code!$AM$3=1,ROUND(Data!$U$22/2,0),Data!$U$22)) -> 0 | O8: =IF(Code!$W$111="Not Applicable",0,Code!$W$111) -> 0 | P8: =IF($C8=0,0,IF(Code!$AM$3=1,ROUND(Code!AL39/2,0),Code!AL39)) -> 0 | Q8: 18748 | R8: =Code!AV36 -> 0 | S8: 60 | T8: =Code!AV51 -> 0 | U8: =Code!AV21 -> 0 | W8: =IF(Code!$AE$3=2,Code!CB121," ") -> 150 | X8: =IF(Code!$AB$96=1,'ADVANCE TAX'!C6," ") ->  | Z8: 210 | AA8: 18538 | AG8: 4150
B9: 2010-07-01 | C9: 15700 | D9: =Data!$Y$41 -> 0.16264 | E9: 2553 | F9: =Code!AP68 -> 1570 | G9: =Code!AR68 -> 0 | I9: =IF($C9=0,0,IF(Code!$AM$3=1,ROUND(Data!$U$24/2,0),Data!$U$24)) -> 0 | J9: =Code!AE125 -> 0 | K9: =Code!AE143 -> 0 | L9: =IF($C9=0,0,IF(Code!$AM$3=1,ROUND(Data!$U$20/2,0),Data!$U$20)) -> 0 | M9: =IF($C9=0,0,IF(Code!$AM$3=1,ROUND(Data!$U$21/2,0),Data!$U$21)) -> 0 | N9: =IF($C9=0,0,IF(Code!$AM$3=1,ROUND(Data!$U$22/2,0),Data!$U$22)) -> 0 | O9: =IF(Code!$W$111="Not Applicable",0,Code!$W$111) -> 0 | P9: =IF($C9=0,0,IF(Code!$AM$3=1,ROUND(Code!AL40/2,0),Code!AL40)) -> 0 | Q9: 19823 | R9: =Code!AV37 -> 0 | S9: 60 | T9: =Code!AV52 -> 0 | U9: =Code!AV22 -> 0 | W9: =IF(Code!$AE$3=2,Code!CB122," ") -> 150 | X9: =IF(Code!$AB$96=1,'ADVANCE TAX'!C7," ") ->  | Z9: 210 | AA9: 19613 | AG9: 4260
B10: 2010-08-01 | C10: 15700 | D10: =Data!$Y$41 -> 0.16264 | E10: 2553 | F10: =Code!AP69 -> 1570 | G10: =Code!AR69 -> 0 | I10: =IF($C10=0,0,IF(Code!$AM$3=1,ROUND(Data!$U$24/2,0),Data!$U$24)) -> 0 | J10: =Code!AE126 -> 0 | K10: =Code!AE144 -> 0 | L10: =IF($C10=0,0,IF(Code!$AM$3=1,ROUND(Data!$U$20/2,0),Data!$U$20)) -> 0 | M10: =IF($C10=0,0,IF(Code!$AM$3=1,ROUND(Data!$U$21/2,0),Data!$U$21)) -> 0 | N10: =IF($C10=0,0,IF(Code!$AM$3=1,ROUND(Data!$U$22/2,0),Data!$U$22)) -> 0 | O10: =IF(Code!$W$111="Not Applicable",0,Code!$W$111) -> 0 | P10: =IF($C10=0,0,IF(Code!$AM$3=1,ROUND(Code!AL41/2,0),Code!AL41)) -> 0 | Q10: 19823 | R10: =Code!AV38 -> 0 | S10: 60 | T10: =Code!AV53 -> 0 | U10: =Code!AV23 -> 0 | W10: =IF(Code!$AE$3=2,Code!CB123," ") -> 150 | X10: =IF(Code!$AB$96=1,'ADVANCE TAX'!C8," ") ->  | Z10: 210 | AA10: 19613 | AG10: 4370
B11: 2010-09-01 | C11: 15700 | D11: =Data!$Y$41 -> 0.16264 | E11: 2553 | F11: =Code!AP70 -> 1570 | G11: =Code!AR70 -> 0 | I11: =IF($C11=0,0,IF(Code!$AM$3=1,ROUND(Data!$U$24/2,0),Data!$U$24)) -> 0 | J11: =Code!AE127 -> 0 | K11: =Code!AE145 -> 0 | L11: =IF($C11=0,0,IF(Code!$AM$3=1,ROUND(Data!$U$20/2,0),Data!$U$20)) -> 0 | M11: =IF($C11=0,0,IF(Code!$AM$3=1,ROUND(Data!$U$21/2,0),Data!$U$21)) -> 0 | N11: =IF($C11=0,0,IF(Code!$AM$3=1,ROUND(Data!$U$22/2,0),Data!$U$22)) -> 0 | O11: =IF(Code!$W$111="Not Applicable",0,Code!$W$111) -> 0 | P11: =IF($C11=0,0,IF(Code!$AM$3=1,ROUND(Code!AL42/2,0),Code!AL42)) -> 0 | Q11: 19823 | R11: =Code!AV39 -> 0 | S11: 60 | T11: =Code!AV54 -> 0 | U11: =Code!AV24 -> 0 | W11: =IF(Code!$AE$3=2,Code!CB124," ") -> 150 | X11: =IF(Code!$AB$96=1,'ADVANCE TAX'!C9," ") ->  | Z11: 210 | AA11: 19613 | AG11: 4480
B12: 2010-10-01 | C12: 15700 | D12: =Data!$Y$41 -> 0.16264 | E12: 2553 | F12: =Code!AP71 -> 1570 | G12: =Code!AR71 -> 0 | I12: =IF($C12=0,0,IF(Code!$AM$3=1,ROUND(Data!$U$24/2,0),Data!$U$24)) -> 0 | J12: =Code!AE128 -> 0 | K12: =Code!AE146 -> 0 | L12: =IF($C12=0,0,IF(Code!$AM$3=1,ROUND(Data!$U$20/2,0),Data!$U$20)) -> 0 | M12: =IF($C12=0,0,IF(Code!$AM$3=1,ROUND(Data!$U$21/2,0),Data!$U$21)) -> 0 | N12: =IF($C12=0,0,IF(Code!$AM$3=1,ROUND(Data!$U$22/2,0),Data!$U$22)) -> 0 | O12: =IF(Code!$W$111="Not Applicable",0,Code!$W$111) -> 0 | P12: =IF($C12=0,0,IF(Code!$AM$3=1,ROUND(Code!AL43/2,0),Code!AL43)) -> 0 | Q12: 19823 | R12: =Code!AV40 -> 0 | S12: 60 | T12: =Code!AV55 -> 0 | U12: =Code!AV25 -> 0 | W12: =IF(Code!$AE$3=2,Code!CB125," ") -> 150 | X12: =IF(Code!$AB$96=1,'ADVANCE TAX'!C10," ") ->  | Z12: 210 | AA12: 19613 | AG12: 4595
B13: 2010-11-01 | C13: 16150 | D13: =Data!$Y$41 -> 0.16264 | E13: 2627 | F13: =Code!AP72 -> 1615 | G13: =Code!AR72 -> 0 | I13: =IF($C13=0,0,IF(Code!$AM$3=1,ROUND(Data!$U$24/2,0),Data!$U$24)) -> 0 | J13: =Code!AE129 -> 0 | K13: =Code!AE147 -> 0 | L13: =IF($C13=0,0,IF(Code!$AM$3=1,ROUND(Data!$U$20/2,0),Data!$U$20)) -> 0 | M13: =IF($C13=0,0,IF(Code!$AM$3=1,ROUND(Data!$U$21/2,0),Data!$U$21)) -> 0 | N13: =IF($C13=0,0,IF(Code!$AM$3=1,ROUND(Data!$U$22/2,0),Data!$U$22)) -> 0 | O13: =IF(Code!$W$111="Not Applicable",0,Code!$W$111) -> 0 | P13: =IF($C13=0,0,IF(Code!$AM$3=1,ROUND(Code!AL44/2,0),Code!AL44)) -> 0 | Q13: 20392 | R13: =Code!AV41 -> 0 | S13: 60 | T13: =Code!AV56 -> 0 | U13: =Code!AV26 -> 0 | W13: =IF(Code!$AE$3=2,Code!CB126," ") -> 200 | X13: =IF(Code!$AB$96=1,'ADVANCE TAX'!C11," ") ->  | Z13: 260 | AA13: 20132 | AG13: 4710
B14: 2010-12-01 | C14: 16150 | D14: =Data!$Y$41 -> 0.16264 | E14: 2627 | F14: =Code!AP73 -> 1615 | G14: =Code!AR73 -> 0 | I14: =IF($C14=0,0,IF(Code!$AM$3=1,ROUND(Data!$U$24/2,0),Data!$U$24)) -> 0 | J14: =Code!AE130 -> 0 | K14: =Code!AE148 -> 0 | L14: =IF($C14=0,0,IF(Code!$AM$3=1,ROUND(Data!$U$20/2,0),Data!$U$20)) -> 0 | M14: =IF($C14=0,0,IF(Code!$AM$3=1,ROUND(Data!$U$21/2,0),Data!$U$21)) -> 0 | N14: =IF($C14=0,0,IF(Code!$AM$3=1,ROUND(Data!$U$22/2,0),Data!$U$22)) -> 0 | O14: =IF(Code!$W$111="Not Applicable",0,Code!$W$111) -> 0 | P14: =IF($C14=0,0,IF(Code!$AM$3=1,ROUND(Code!AL45/2,0),Code!AL45)) -> 0 | Q14: 20392 | R14: =Code!AV42 -> 0 | S14: 60 | T14: =Code!AV57 -> 0 | U14: =Code!AV27 -> 0 | W14: =IF(Code!$AE$3=2,Code!CB127," ") -> 200 | X14: =IF(Code!$AB$96=1,'ADVANCE TAX'!C12," ") ->  | Y14: =swf -> 20 | Z14: 280 | AA14: 20112 | AG14: 4825
B15: 2011-01-01 | C15: 16150 | D15: =Data!$Y$42 -> 0.24824 | E15: 4009 | F15: =Code!AP74 -> 1615 | G15: =Code!AR74 -> 0 | I15: =IF($C15=0,0,IF(Code!$AM$3=1,ROUND(Data!$U$24/2,0),Data!$U$24)) -> 0 | J15: =Code!AE131 -> 0 | K15: =Code!AE149 -> 0 | L15: =IF($C15=0,0,IF(Code!$AM$3=1,ROUND(Data!$U$20/2,0),Data!$U$20)) -> 0 | M15: =IF($C15=0,0,IF(Code!$AM$3=1,ROUND(Data!$U$21/2,0),Data!$U$21)) -> 0 | N15: =IF($C15=0,0,IF(Code!$AM$3=1,ROUND(Data!$U$22/2,0),Data!$U$22)) -> 0 | O15: =IF(Code!$W$111="Not Applicable",0,Code!$W$111) -> 0 | P15: =IF($C15=0,0,IF(Code!$AM$3=1,ROUND(Code!AL46/2,0),Code!AL46)) -> 0 | Q15: 21774 | R15: =Code!AV43 -> 0 | S15: 60 | T15: =Code!AV58 -> 0 | U15: =Code!AV28 -> 0 | W15: =IF(Code!$AE$3=2,Code!CB128," ") -> 200 | X15: =IF(Code!$AB$96=1,'ADVANCE TAX'!C13," ") ->  | Z15: 260 | AA15: 21514 | AG15: 4950
B16: 2011-02-01 | C16: 16150 | D16: =Data!$Y$42 -> 0.24824 | E16: 4009 | F16: =Code!AP75 -> 1615 | G16: =Code!AR75 -> 0 | I16: =IF($C16=0,0,IF(Code!$AM$3=1,ROUND(Data!$U$24/2,0),Data!$U$24)) -> 0 | J16: =Code!AE132 -> 0 | K16: =Code!AE150 -> 0 | L16: =IF($C16=0,0,IF(Code!$AM$3=1,ROUND(Data!$U$20/2,0),Data!$U$20)) -> 0 | M16: =IF($C16=0,0,IF(Code!$AM$3=1,ROUND(Data!$U$21/2,0),Data!$U$21)) -> 0 | N16: =IF($C16=0,0,IF(Code!$AM$3=1,ROUND(Data!$U$22/2,0),Data!$U$22)) -> 0 | O16: =IF(Code!$W$111="Not Applicable",0,Code!$W$111) -> 0 | P16: =IF($C16=0,0,IF(Code!$AM$3=1,ROUND(Code!AL47/2,0),Code!AL47)) -> 0 | Q16: 21774 | R16: =Code!AV44 -> 0 | S16: 60 | T16: =Code!AV59 -> 0 | U16: =Code!AV29 -> 0 | W16: =IF(Code!$AE$3=2,Code!CB129," ") -> 200 | X16: =IF(Code!$AB$96=1,'ADVANCE TAX'!C14," ") ->  | Z16: 260 | AA16: 21514 | AG16: 5075
B17: D.A Arrears(Jan 10 to june 10) | E17: =DA -> 6481 | F17: =ROUND((Code!Z4*C17),0) -> 0 | Q17: =C17+E17+F17+G17+H17+I17+J17+K17+L17+M17+N17+O17+P17 -> 6481 | R17: =IF($R$4="cps"," ",Q17) -> 6481 | V17: =IF($R$4="cps",Q17," ") ->  | Z17: 6481 | AA17: 0 | AG17: 5200
B18: D.A Arrears(July 10 to Dec 10) | E18: =SECONDDA -> 8140 | F18: =ROUND((Code!Z4*C18),0) -> 0 | Q18: 8140 | R18: =IF($R$4="cps"," ",Q18) -> 8140 | V18: =IF($R$4="cps",Q18," ") ->  | Z18: 8140 | AA18: 0 | AG18: 5335
B19: surrender leave | C19: =IF(Code!AD3=15,ROUND('SALARY TABLE'!M55/2,0),IF(Code!AD3=30,ROUND('SALARY TABLE'!M55,0),0)) -> 7850 | E19: =ELDA -> 1949 | F19: =ROUND((V57*C19),0) -> 785 | L19: =IF(Code!$AD$3=15,ROUND(LOOKUP(Code!$AL$15,'SALARY TABLE'!$B$5:$B$16,'SALARY TABLE'!L5:L16)/2,0),IF(Code!$AD$3=30,ROUND(LOOKUP(Code!$AL$15,'SALARY TABLE'!$B$5:$B$16,'SALARY TABLE'!L5:L16),0),0)) -> 0 | M19: =IF(Code!$AD$3=15,ROUND(LOOKUP(Code!$AL$15,'SALARY TABLE'!$B$5:$B$16,'SALARY TABLE'!M5:M16)/2,0),IF(Code!$AD$3=30,ROUND(LOOKUP(Code!$AL$15,'SALARY TABLE'!$B$5:$B$16,'SALARY TABLE'!M5:M16),0),0)) -> 0 | N19: =IF(Code!$AD$3=15,ROUND(LOOKUP(Code!$AL$15,'SALARY TABLE'!$B$5:$B$16,'SALARY TABLE'!N5:N16)/2,0),IF(Code!$AD$3=30,ROUND(LOOKUP(Code!$AL$15,'SALARY TABLE'!$B$5:$B$16,'SALARY TABLE'!N5:N16),0),0)) -> 0 | Q19: =C19+E19+F19+G19+H19+I19+J19+K19+L19+M19+N19+O19+P19 -> 10584 | R19: =IF($R$4="cps"," ",IF(Code!AL15=" "," ",IF(Code!AD3=15,ROUND(LOOKUP(Code!AL15,'SALARY TABLE'!B55:B68,'SALARY TABLE'!F55:F68)/2,0),ROUND(LOOKUP(Code!AL15,'SALARY TABLE'!B55:B68,'SALARY TABLE'!F55:F68),0)))) -> 672 | V19: =IF(OR($R$4="ZPPF",$R$4="GPF")," ",IF(Code!AL15=" "," ",IF(Code!AD3=15,ROUND(LOOKUP(Code!AL15,'SALARY TABLE'!B55:B68,'SALARY TABLE'!F55:F68)/2,0),ROUND(LOOKUP(Code!AL15,'SALARY TABLE'!B55:B68,'SALARY TABLE'!F55:F68),0)))) ->  | Z19: 672 | AA19: 9912 | AG19: 5470
B20: IR Arrears(Jan 09 to Mar 09) | E20: =Data!X48 -> 0 | F20: =ROUND((Code!Z4*C20),0) -> 0 | H20: =Data!Z48 -> 0 | Q20: 0 | R20: 0 | Z20: 0 | AA20: 0
B21: Notional Inc Arrears | C21: =Data!X47 -> 0 | F21: =ROUND((Code!Z4*C21),0) -> 0 | Q21: =Data!$Z$47 -> 0 | R21: 0 | Z21: 0 | AA21: 0
B22: RPS Arrears | C22: =Data!X46 -> 0 | Q22: =Data!$Z$46 -> 0 | R22: 0 | Z22: 0 | AA22: 0
B23: 8/16/24 Y Fixation+stepup arrears | C23: =IF(Code!AC17=1,0,IF(Code!AG18=1,Code!AF38,0)) -> 0 | D23: =LOOKUP(Code!AF31,'SALARY TABLE'!B5:B16,'SALARY TABLE'!D5:D16) ->  | E23: =ROUND(IF(Code!AC17=1,0,IF(Code!AG18=1,Code!AF38*D23,0)),0) -> 0 | F23: =ROUND((Code!Z4*C23),0) -> 0 | Q23: =C23+E23+F23+I23+L23+M23+N23+P23+G23+H23+O23+J23+K23 -> 0 | R23: 0 | Z23: 0 | AA23: 0 | AG23: 5605
B24: Haly pay arrears | C24: =Code!CB75 -> 0 | E24: =Code!CD75 -> 0 | F24: =Code!CH75 -> 0 | Q24: =C24+E24+F24+I24+L24+M24+N24+P24+G24+H24+O24+J24+K24 -> 0 | Z24: 0 | AA24: 0 | AG24: 5750
B25: Child Education Consession | Q25: 0 | Z25: 0 | AA25: 0
B26: setpup arrears | C26: =IF(Code!AG26=1,0,IF(Code!AG23=1,Code!AF50,0)) -> 0 | D26: =LOOKUP(Code!AF43,'SALARY TABLE'!B5:B16,'SALARY TABLE'!D5:D16) ->  | E26: =ROUND(IF(Code!AG26=1,0,IF(Code!AG23=1,Code!AF50*D26,0)),0) -> 0 | F26: =ROUND((Code!Z4*C26),0) -> 0 | Q26: =C26+E26+F26+I26+L26+M26+N26+P26+G26+H26+O26+J26+K26 -> 0 | Z26: 0 | AA26: 0
B27: Loss of Pay | C27: =Code!CB110 -> 0 | E27: =Code!CD110 -> 0 | F27: =Code!CG110 -> 0 | Q27: =C27+E27+F27+I27+L27+M27+N27+P27+G27+H27+O27+J27+K27 -> 0 | Z27: 0 | AA27: 0
B28: Total | C28: =ROUND(SUM(C5:C27),0) -> 198050 | D28: 0 | E28: =ROUND(SUM(E5:E27),0) -> 45966 | F28: 19805 | G28: 0 | H28: 0 | I28: 0 | J28: 0 | K28: 0 | L28: 0 | M28: 0 | N28: 0 | O28: 0 | P28: 0 | Q28: =ROUND(SUM(Q5:Q27),0) -> 263821 | R28: 15293 | S28: 720 | T28: 0 | U28: 0 | V28: 0 | W28: 2000 | X28: 0 | Y28: 40 | Z28: =ROUND(SUM(Z5:Z27),0) -> 18053 | AA28: =ROUND(SUM(AA5:AA27),0) -> 245768 | AG28: 5895
W29: SIGNATURE OF EMPLOYEE | AG29: 6195
H30: =ROUND(LOOKUP(Code!AL15,'SALARY TABLE'!A55:F68,'SALARY TABLE'!F55:F68),5) -> 0 | L30: =I30+F30 -> 0 | W30: ='INCOME TAX'!I5 -> ZPPHS,Balayapalli | AG30: 6350
W31: ='INCOME TAX'!I6 -> Balayapalli Mandalm | AG31: 6505
W32: ='INCOME TAX'!I7 -> Nellore District
B33: Designed by G.S.Reddy,SA(Maths),ZPPHS,Balayapalli,Balayapalli(M),Cell:9666570250 | AG33: 6675
AG34: 6845
AG35: 7015
AG36: 7200
AG37: 7385
AG38: 7570
AG39: 7770
AG40: 7970
AG41: 8170
AG42: 8385
AG43: 8600
AG44: 8815
AG45: 9050
B46: =I -> 40483 | AG46: 9285
AG47: 9520
B48: 6700 | C48: 6900 | D48: 7100 | E48: 7300 | F48: 7520 | G48: 7740 | H48: 7960 | I48: 8200 | J48: 8440 | K48: 8680 | L48: 8940 | M48: 9200 | N48: 9460 | O48: 9740 | P48: 10020 | Q48: 10300 | R48: 10600 | S48: 10900 | T48: 11200 | U48: 11530 | V48: 11860 | W48: 12190 | X48: 12550 | Y48: 12910 | Z48: 13270 | AA48: 13660 | AB48: 14050 | AC48: 14440 | AD48: 14860 | AE48: 15280 | AF48: 15700 | AG48: 16150 | AH48: 16600 | AI48: 17050 | AJ48: 17540 | AK48: 18030 | AL48: 18520 | AM48: 19050 | AN48: 19580 | AO48: 20110 | AP48: 20680 | AQ48: 21250 | AR48: 21820 | AS48: 22430 | AT48: 23040 | AU48: 23650 | AV48: 24300 | AW48: 24950 | AX48: 25600 | AY48: 26300 | AZ48: 27000 | BA48: 27700 | BB48: 28450 | BC48: 29200 | BD48: 29950 | BE48: 30750 | BF48: 31550 | BG48: 32350 | BH48: 33200 | BI48: 34050 | BJ48: 34900 | BK48: 35800 | BL48: 36700 | BM48: 37600 | BN48: 38570 | BO48: 39540 | BP48: 40510 | BQ48: 41550 | BR48: 42590 | BS48: 43630 | BT48: 44740 | BU48: 45850 | BV48: 46960 | BW48: 48160 | BX48: 49360 | BY48: 50560 | BZ48: 51760 | CA48: 53060 | CB48: 54360 | CC48: 55660
B49: 6900 | C49: 7100 | D49: 7300 | E49: 7520 | F49: 7740 | G49: 7960 | H49: 8200 | I49: 8440 | J49: 8680 | K49: 8940 | L49: 9200 | M49: 9460 | N49: 9740 | O49: 10020 | P49: 10300 | Q49: 10600 | R49: 10900 | S49: 11200 | T49: 11530 | U49: 11860 | V49: 12190 | W49: 12550 | X49: 12910 | Y49: 13270 | Z49: 13660 | AA49: 14050 | AB49: 14440 | AC49: 14860 | AD49: 15280 | AE49: 15700 | AF49: 16150 | AG49: 16600 | AH49: 17050 | AI49: 17540 | AJ49: 18030 | AK49: 18520 | AL49: 19050 | AM49: 19580 | AN49: 20110 | AO49: 20680 | AP49: 21250 | AQ49: 21820 | AR49: 22430 | AS49: 23040 | AT49: 23650 | AU49: 24300 | AV49: 24950 | AW49: 25600 | AX49: 26300 | AY49: 27000 | AZ49: 27700 | BA49: 28450 | BB49: 29200 | BC49: 29950 | BD49: 30750 | BE49: 31550 | BF49: 32350 | BG49: 33200 | BH49: 34050 | BI49: 34900 | BJ49: 35800 | BK49: 36700 | BL49: 37600 | BM49: 38570 | BN49: 39540 | BO49: 40510 | BP49: 41550 | BQ49: 42590 | BR49: 43630 | BS49: 44740 | BT49: 45850 | BU49: 46960 | BV49: 48160 | BW49: 49360 | BX49: 50560 | BY49: 51760 | BZ49: 53060 | CA49: 54360 | CB49: 55660 | CC49: 56960
AG50: 10285
AG51: 10565
AG52: 10845
I53: 1 incre | AG53: 11125
I54: 8/16/24y | P54: Half Pay | R54: Loss of Pay | S54: stepup | T54: HRA | AG54: 11440
A55: 1 | B55: 2010-01-01 | C55: =VLOOKUP(Code!AA3,Code!AA5:AB77,2) -> 8385 | D55: =ROUND(C55*60.288/100,0) -> 5055 | E55: =ROUND(C55*73.476/100,0) -> 6161 | F55: =E55-D55 -> 1106 | I55: =C55 -> 8385 | L55: 0 | M55: =LOOKUP(Code!AL15,B5:B16,C5:C16) -> 15700 | O55: 1 | P55: =Code!CA61 -> 8385 | R55: =Code!CA96 -> 8385 | S55: =C55 -> 8385 | V55: EL | AG55: 11755
A56: 2 | B56: 2010-02-01 | C56: =VLOOKUP(Code!V3,Code!U5:V84,2) -> 15700 | D56: =ROUND(C56*9.416/100,0) -> 1478 | E56: =ROUND(C56*16.264/100,0) -> 2553 | F56: =E56-D56 -> 1075 | I56: =C56 -> 15700 | L56: 0 | O56: 2 | P56: =Code!CA62 -> 15700 | R56: =Code!CA97 -> 15700 | S56: =C56 -> 15700 | AG56: 12070
A57: 3 | B57: 2010-03-01 | C57: =IF(B5=I,HLOOKUP(Code!W3,B48:CC49,2,B49:CC49),'SALARY TABLE'!C56) -> 15700 | D57: =ROUND(C57*9.416/100,0) -> 1478 | E57: =ROUND(C57*16.264/100,0) -> 2553 | F57: 1075 | I57: =IF(Code!AG18=1,IF('SALARY TABLE'!B57>=Code!AF31,LOOKUP(C57,B48:CC48,B49:CC49),C57),C57) -> 15700 | L57: =D5 -> 0.09416 | O57: 3 | P57: =Code!CA63 -> 15700 | R57: =Code!CA98 -> 15700 | S57: =IF(Code!$AG$23=1,IF('SALARY TABLE'!B57>=Code!$AF$43,LOOKUP(I57,$B$48:$CC$48,$B$49:$CC$49),I57),I57) -> 15700 | T57: 1 | U57: =Code!AS64 -> 0.1 | V57: =LOOKUP(Code!AK15,'SALARY TABLE'!T57:U68,U57:U68) -> 0.1 | AG57: 12385
A58: 4 | B58: 2010-04-01 | C58: =IF(B6=I,HLOOKUP(Code!W3,B48:CC49,2,B49:CC49),'SALARY TABLE'!C57) -> 15700 | D58: =ROUND(C58*9.416/100,0) -> 1478 | E58: =ROUND(C58*16.264/100,0) -> 2553 | F58: 1075 | I58: =IF(Code!AG18=1,IF('SALARY TABLE'!B58>=Code!AF31,LOOKUP(C58,B48:CC48,B49:CC49),C58),C58) -> 15700 | L58: 0.09416 | O58: 4 | P58: =Code!CA64 -> 15700 | R58: =Code!CA99 -> 15700 | S58: =IF(Code!$AG$23=1,IF('SALARY TABLE'!B58>=Code!$AF$43,LOOKUP(I58,$B$48:$CC$48,$B$49:$CC$49),I58),I58) -> 15700 | T58: 2 | U58: =Code!AS65 -> 0.1 | AG58: 12700
A59: 5 | B59: 2010-05-01 | C59: =IF(B7=I,HLOOKUP(Code!W3,B48:CC49,2,B49:CC49),'SALARY TABLE'!C58) -> 15700 | D59: =ROUND(C59*9.416/100,0) -> 1478 | E59: =ROUND(C59*16.264/100,0) -> 2553 | F59: 1075 | I59: =IF(Code!AG18=1,IF('SALARY TABLE'!B59>=Code!AF31,LOOKUP(C59,B48:CC48,B49:CC49),C59),C59) -> 15700 | L59: 0.09416 | O59: 5 | P59: =Code!CA65 -> 15700 | R59: =Code!CA100 -> 15700 | S59: =IF(Code!$AG$23=1,IF('SALARY TABLE'!B59>=Code!$AF$43,LOOKUP(I59,$B$48:$CC$48,$B$49:$CC$49),I59),I59) -> 15700 | T59: 3 | U59: =Code!AS66 -> 0.1 | AG59: 13030
A60: 6 | B60: 2010-06-01 | C60: =IF(B8=I,HLOOKUP(Code!W3,B48:CC49,2,B49:CC49),'SALARY TABLE'!C59) -> 15700 | D60: =ROUND(C60*9.416/100,0) -> 1478 | E60: =ROUND(C60*16.264/100,0) -> 2553 | F60: 1075 | H60: =SUM(F55:F60) -> 6481 | I60: =IF(Code!AG18=1,IF('SALARY TABLE'!B60>=Code!AF31,LOOKUP(C60,B48:CC48,B49:CC49),C60),C60) -> 15700 | L60: 0.09416 | O60: 6 | P60: =Code!CA66 -> 15700 | R60: =Code!CA101 -> 15700 | S60: =IF(Code!$AG$23=1,IF('SALARY TABLE'!B60>=Code!$AF$43,LOOKUP(I60,$B$48:$CC$48,$B$49:$CC$49),I60),I60) -> 15700 | T60: 4 | U60: =Code!AS67 -> 0.1 | AG60: 13390
A61: 7 | B61: 2010-07-01 | C61: =IF(B9=I,HLOOKUP(Code!W3,B48:CC49,2,B49:CC49),'SALARY TABLE'!C60) -> 15700 | D61: =ROUND(C61*16.264/100,0) -> 2553 | E61: =ROUND(C61*24.824/100,0) -> 3897 | F61: =E61-D61 -> 1344 | I61: =IF(Code!AG18=1,IF('SALARY TABLE'!B61>=Code!AF31,LOOKUP(C61,B48:CC48,B49:CC49),C61),C61) -> 15700 | L61: 0.16264 | O61: 7 | P61: =Code!CA67 -> 15700 | R61: =Code!CA102 -> 15700 | S61: =IF(Code!$AG$23=1,IF('SALARY TABLE'!B61>=Code!$AF$43,LOOKUP(I61,$B$48:$CC$48,$B$49:$CC$49),I61),I61) -> 15700 | T61: 5 | U61: =Code!AS68 -> 0.1 | AG61: 13750
A62: 8 | B62: 2010-08-01 | C62: =IF(B10=I,HLOOKUP(Code!W3,B48:CC49,2,B49:CC49),'SALARY TABLE'!C61) -> 15700 | D62: 2553 | E62: 3897 | F62: 1344 | I62: =IF(Code!AG18=1,IF('SALARY TABLE'!B62>=Code!AF31,LOOKUP(C62,B48:CC48,B49:CC49),C62),C62) -> 15700 | L62: 0.16264 | O62: 8 | P62: =Code!CA68 -> 15700 | R62: =Code!CA103 -> 15700 | S62: =IF(Code!$AG$23=1,IF('SALARY TABLE'!B62>=Code!$AF$43,LOOKUP(I62,$B$48:$CC$48,$B$49:$CC$49),I62),I62) -> 15700 | T62: 6 | U62: =Code!AS69 -> 0.1 | AG62: 14175
A63: 9 | B63: 2010-09-01 | C63: =IF(B11=I,HLOOKUP(Code!W3,B48:CC49,2,B49:CC49),'SALARY TABLE'!C62) -> 15700 | D63: 2553 | E63: 3897 | F63: 1344 | I63: =IF(Code!AG18=1,IF('SALARY TABLE'!B63>=Code!AF31,LOOKUP(C63,B48:CC48,B49:CC49),C63),C63) -> 15700 | L63: 0.16264 | O63: 9 | P63: =Code!CA69 -> 15700 | R63: =Code!CA104 -> 15700 | S63: =IF(Code!$AG$23=1,IF('SALARY TABLE'!B63>=Code!$AF$43,LOOKUP(I63,$B$48:$CC$48,$B$49:$CC$49),I63),I63) -> 15700 | T63: 7 | U63: =Code!AS70 -> 0.1 | AG63: 14600
A64: 10 | B64: 2010-10-01 | C64: =IF(B12=I,HLOOKUP(Code!W3,B48:CC49,2,B49:CC49),'SALARY TABLE'!C63) -> 15700 | D64: 2553 | E64: 3897 | F64: 1344 | I64: =IF(Code!AG18=1,IF('SALARY TABLE'!B64>=Code!AF31,LOOKUP(C64,B48:CC48,B49:CC49),C64),C64) -> 15700 | L64: 0.16264 | O64: 10 | P64: =Code!CA70 -> 15700 | R64: =Code!CA105 -> 15700 | S64: =IF(Code!$AG$23=1,IF('SALARY TABLE'!B64>=Code!$AF$43,LOOKUP(I64,$B$48:$CC$48,$B$49:$CC$49),I64),I64) -> 15700 | T64: 8 | U64: =Code!AS71 -> 0.1 | AG64: 15025
A65: 11 | B65: 2010-11-01 | C65: =IF(B13=I,HLOOKUP(Code!W3,B48:CC49,2,B49:CC49),'SALARY TABLE'!C64) -> 16150 | D65: 2627 | E65: 4009 | F65: 1382 | I65: =IF(Code!AG18=1,IF('SALARY TABLE'!B65>=Code!AF31,LOOKUP(C65,B48:CC48,B49:CC49),C65),C65) -> 16150 | L65: 0.16264 | O65: 11 | P65: =Code!CA71 -> 16150 | R65: =Code!CA106 -> 16150 | S65: =IF(Code!$AG$23=1,IF('SALARY TABLE'!B65>=Code!$AF$43,LOOKUP(I65,$B$48:$CC$48,$B$49:$CC$49),I65),I65) -> 16150 | T65: 9 | U65: =Code!AS72 -> 0.1 | AG65: 15500
A66: 12 | B66: 2010-12-01 | C66: =IF(B14=I,HLOOKUP(Code!W3,B48:CC49,2,B49:CC49),'SALARY TABLE'!C65) -> 16150 | D66: 2627 | E66: 4009 | F66: 1382 | H66: =SUM(F61:F66) -> 8140 | I66: =IF(Code!AG18=1,IF('SALARY TABLE'!B66>=Code!AF31,LOOKUP(C66,B48:CC48,B49:CC49),C66),C66) -> 16150 | L66: 0.16264 | O66: 12 | P66: =Code!CA72 -> 16150 | R66: =Code!CA107 -> 16150 | S66: =IF(Code!$AG$23=1,IF('SALARY TABLE'!B66>=Code!$AF$43,LOOKUP(I66,$B$48:$CC$48,$B$49:$CC$49),I66),I66) -> 16150 | T66: 10 | U66: =Code!AS73 -> 0.1 | AG66: 15975
A67: 13 | B67: 2011-01-01 | C67: =IF(B15=I,HLOOKUP(Code!W3,B48:CC49,2,B49:CC49),'SALARY TABLE'!C66) -> 16150 | D67: =ROUND(C67*24.824/100,0) -> 4009 | E67: 4009 | F67: 0 | I67: =IF(Code!AG18=1,IF('SALARY TABLE'!B67>=Code!AF31,LOOKUP(C67,B48:CC48,B49:CC49),C67),C67) -> 16150 | L67: 0.24824 | O67: 13 | P67: =Code!CA73 -> 16150 | R67: =Code!CA108 -> 16150 | S67: =IF(Code!$AG$23=1,IF('SALARY TABLE'!B67>=Code!$AF$43,LOOKUP(I67,$B$48:$CC$48,$B$49:$CC$49),I67),I67) -> 16150 | T67: 11 | U67: =Code!AS74 -> 0.1 | AG67: 16450
A68: 14 | B68: 2011-02-01 | C68: =IF(B16=I,HLOOKUP(Code!W3,B48:CC49,2,B49:CC49),'SALARY TABLE'!C67) -> 16150 | D68: =ROUND(C68*24.824/100,0) -> 4009 | E68: 4009 | F68: 0 | I68: =IF(Code!AG18=1,IF('SALARY TABLE'!B68>=Code!AF31,LOOKUP(C68,B48:CC48,B49:CC49),C68),C68) -> 16150 | L68: 0.24824 | O68: 14 | P68: =Code!CA74 -> 16150 | R68: =Code!CA109 -> 16150 | S68: =IF(Code!$AG$23=1,IF('SALARY TABLE'!B68>=Code!$AF$43,LOOKUP(I68,$B$48:$CC$48,$B$49:$CC$49),I68),I68) -> 16150 | T68: 12 | U68: =Code!AS75 -> 0.1 | AG68: 16925
E69: DA | H69: To Zp | I69: Total | AG69: 17475
B70: EL | C70: =IF(Code!AC8=1,SUM(IF(Code!AD3=15,ROUND(LOOKUP(Code!AN15,'SALARY TABLE'!A55:L68,'SALARY TABLE'!L55:L68)*C19+ROUND(LOOKUP(Code!AL15,'SALARY TABLE'!B55:B68,'SALARY TABLE'!F55:F68)/2,0),ROUND(LOOKUP(Code!AN15,'SALARY TABLE'!A55:L68,'SALARY TABLE'!L55:L68)*C19+ROUND(LOOKUP(Code!AL15,'SALARY TABLE'!B55:B68,'SALARY TABLE'!F55:F68),0),0))))) -> 1948.724 | E70: =LOOKUP(Code!AN15,'SALARY TABLE'!A55:L68,'SALARY TABLE'!L55:L68) -> 0.16264 | F70: =ROUND(E70*C19,0) -> 1277 | H70: =ROUND(LOOKUP(Code!AN15,'SALARY TABLE'!A55:F68,'SALARY TABLE'!F55:F68)/2,0) -> 672 | I70: =F70+H70 -> 1949 | K70: =IF(Code!AD3=15,'SALARY TABLE'!I70,IF(Code!AD3=30,'SALARY TABLE'!I71,0)) -> 1949 | AG70: 18025
H71: =ROUND(LOOKUP(Code!AN15,'SALARY TABLE'!A55:F68,'SALARY TABLE'!F55:F68),0) -> 1344 | I71: =F70+H71 -> 2621 | AG71: 18575
AG72: 19125
AG73: 19675
AG74: 20300
AG75: 20925
AG76: 21550
AG77: 22175
AG78: 22800
AG79: 23500
AG80: 24200
AG81: 24900
AG82: 25600
AG83: 26300
AG84: 27000
AG85: 27750
AG86: 28500
AG87: 29250
AG88: 30000
AG89: 30765

Sheet ADVANCE TAX
B2: Advance tax
A3: 2010-03-01 | B3: =IF(Code!$AB$96=1,A3,"Not Applicable ") -> Not Applicable
A4: 2010-04-01 | B4: =IF(Code!$AB$96=1,A4,"Not Applicable ") -> Not Applicable
A5: 2010-05-01 | B5: =IF(Code!$AB$96=1,A5,"Not Applicable ") -> Not Applicable
A6: 2010-06-01 | B6: =IF(Code!$AB$96=1,A6,"Not Applicable ") -> Not Applicable
A7: 2010-07-01 | B7: =IF(Code!$AB$96=1,A7,"Not Applicable ") -> Not Applicable | E7: If Advance Tax not Paid. Clear all cell values
A8: 2010-08-01 | B8: =IF(Code!$AB$96=1,A8,"Not Applicable ") -> Not Applicable
A9: 2010-09-01 | B9: =IF(Code!$AB$96=1,A9,"Not Applicable ") -> Not Applicable
A10: 2010-10-01 | B10: =IF(Code!$AB$96=1,A10,"Not Applicable ") -> Not Applicable
A11: 2010-11-01 | B11: =IF(Code!$AB$96=1,A11,"Not Applicable ") -> Not Applicable
A12: 2010-12-01 | B12: =IF(Code!$AB$96=1,A12,"Not Applicable ") -> Not Applicable
A13: 2011-01-01 | B13: =IF(Code!$AB$96=1,A13,"Not Applicable ") -> Not Applicable
A14: 2011-02-01 | B14: =IF(Code!$AB$96=1,A14,"Not Applicable ") -> Not Applicable
C15: =SUM(C3:C14) -> 0

Sheet ITR-I Page 1 (hidden)
A1: FORM | B1: SARAL-II (ITR-I) | E1: INDIAN INCOME TAX RETURN | Z1: Assessment Year
E2: [For Individual having Income from Salary/Pension/income from One House Property(Excluding loss brought forward from previous years)/Income from Other Sources (Excluding Winning from Lottery and income from Race Horses)] | AA2: 2 | AB2: 0 | AC2: 1 | AD2: 1 | AF2: - | AH2: 1 | AI2: 2
E3: (Please see Rule 12 of the Income-tax Rules, 1962)(Also see attached instuctions)
A5: PERSONAL INFORMATION | B5: First name | J5: Middle name | R5: Last name | Z5: Pan No
B6: ='[7]BIODATA FOR ITR-1'!$F$2 -> 0 | J6: ='[7]BIODATA FOR ITR-1'!$F$3 -> KUMAR | R6: ='[7]BIODATA FOR ITR-1'!$F$4 -> BANDYOPADHYAY | Z6: ='[7]BIODATA FOR ITR-1'!$F$6 -> AA55666D
B7: Flat /Door/Block No. | O7: Name Of Premises/Building/Village | Z7: Date of Birth (DD/MM/YYYY) | AA7: Date of Birth
B8: ='[7]BIODATA FOR ITR-1'!$F$10 -> 150 D | O8: ='[7]BIODATA FOR ITR-1'!$F$11 -> Kalisthanpara | Z8: ='[7]BIODATA FOR ITR-1'!$F$8 -> 1963-01-04
B10: Road/Street/Post Office | O10: Area/Locality | Z10: Employer Category (Tick) | AA10: Employer Category | AI10: √
B11: ='[7]BIODATA FOR ITR-1'!$F$12 -> Jiaganj | O11: ='[7]BIODATA FOR ITR-1'!$F$13 -> Jiaganj | AA11: √ | AB11: Govt. | AF11: PSU | AH11: Others
B12: Town/City/District | O12: State | U12: Pin code | Z12: Sex (Tick) | AA12: Employer Category
B13: ='[7]BIODATA FOR ITR-1'!$F$14 -> Murshidabad | O13: ='[7]BIODATA FOR ITR-1'!$F$16 -> West Bengal | U13: ='[7]BIODATA FOR ITR-1'!$F$15 -> 742123 | AA13: √ | AB13: ='[7]BIODATA FOR ITR-1'!$F$18 -> male | AD13: √ | AG13: ='[7]BIODATA FOR ITR-1'!$J$18 -> 0
B14: Email Addrs. | Q14: (STD Code) - Phone Number
A15: FILING STATUS | B15: Designation of Assessing Officer (Ward/Circle) | S15: Return Filed Under Section- | AD15: 1 | AF15: 1
B16: ='[7]BIODATA FOR ITR-1'!$F$5 -> U.D.C. | S16: [Please see instruction number-9(i)]
B17: Whether original or Revised return? (Tick) | O17: √ | T17: √ | U17: Original | AD17: Revised
B18: If revised, enter Receipt No and Date of filing original return (DD/MM/YYYY) | Q18: ORIGINAL
B19: Original return(DD/MM/YYYY) | L19: ='[7]BIODATA FOR ITR-1'!$F$17 -> 40823
B20: Residential Status (Tick) | J20: √ | L20: √ | M20: Resident | R20: Non-Resident | Y20: Resident but not ordinarily Resident
A21: INCOME & DEDUCTIONS | B21: 1 | C21: Income chargeable under the Head 'Salaries',Pension | AA21: 1 | AB21: ='[7]Auto Salary Statement'!$R$23 -> 467759
B22: 2 | C22: Income chargeable under the Head 'House Property'(enter-ve sign in case of loss, if any) | AA22: 2 | AB22: 0
B23: 3 | C23: Income chargeable under the Head 'Other Sources' (enter-ve sign in case of loss, if any) | AA23: 3 | AB23: 0
B24: 4 | C24: Gross Total Income (1+2+3) | AA24: 4 | AB24: =SUM(AB21:AG23) -> 467759
B25: 5 | C25: Deductions under chapter VIA (Section
C26: a | D26: 80C | F26: ='[7]BIODATA FOR ITR-1'!$F$43 -> 69080 | K26: e | L26: 80DD | N26: ='[7]BIODATA FOR ITR-1'!$F$49 -> 0 | R26: I | S26: 80GG | U26: 0
C27: b | D27: 80CCC | F27: 0 | K27: f | L27: 80DDB | N27: ='[7]BIODATA FOR ITR-1'!$F$50 -> 0 | R27: j | S27: 80GGA | U27: 0
C28: c | D28: 80CCD | F28: ='[7]BIODATA FOR ITR-1'!$F$52 -> 0 | K28: g | L28: 80E | N28: ='[7]BIODATA FOR ITR-1'!$F$48 -> 0 | R28: k | S28: 80GGC | U28: 0
C29: d | D29: 80D | F29: ='[7]BIODATA FOR ITR-1'!$F$47 -> 0 | K29: h | L29: 80G | N29: ='[7]BIODATA FOR ITR-1'!$F$46 -> 0 | R29: l | S29: 80U | U29: ='[7]BIODATA FOR ITR-1'!$F$53 -> 0
B30: 6 | C30: Deductions (Total of 5a to5i) | Z30: 6 | AB30: =SUM(F26:I29)+SUM(N26:Q29)+SUM(U26:Y29) -> 69080
B31: 7 | C31: Total Income (4-6) | Z31: 7 | AB31: =(AB24-AB30) -> 398679
B32: 6 | C32: Net Agricultural Income (Enter only if greater than Rs.5,000) | Z32: 6
B33: 7 | C33: Aggregate Income' (5+6) | Z33: 7 | AB33: =AB31+AB32 -> 398679
A34: TAX COMPUTATION | B34: 8 | C34: Tax Payable on 'Aggregate Income' | Z34: 8 | AB34: ='[7]AUTO FORM 16'!$I$47 -> 23868 | AJ34: =IF(AB33-160000<=0,"0",IF(AB33>=500000,"0",IF(AB33-160000>=0,ROUND(AB33-160000,)*10%,0))) -> 23867.9 | AK34: =IF(AB33-300000<=500000,"0",IF(AB33-300000>=500000,ROUND(AB33-300000,)*20%,0)) -> 0 | AL34: =IF(AB33>300000,14000) -> 14000
D35: Rebate in respect of Net Agricultural income | AB35: 0
B36: 9 | C36: a | D36: Tax Payable on total Income (8a - 8b) | R36: 9a | S36: =AB34-AB35 -> 23868
C37: b | D37: Surcharge on 9a | R37: 9b | S37: 0
B38: 9 | C38: Education Cess on (on 8) | Z38: 9 | AB38: =ROUND(AB34*3%,0) -> 716
B39: 10 | C39: Total Tax, Surcharge and Education cess payable (8+9) | Z39: 10 | AB39: =AB34+AB38 -> 24584
B40: 11 | C40: Relief under Section 89 | Z40: 11 | AB40: =IF(AB39=0,0,IF(AB39>0,AJ40,0)) -> 1617 | AJ40: ='[7]10 E Annex-I'!$G$12 -> 1617
B41: 12 | C41: Relief under Section 90/91 | Z41: 12 | AB41: 0
B42: 13 | C42: Balance Tax Payable (10-11-12) | Z42: 13 | AB42: =IF(AB39<=AB40,0,IF(AB39>=AB40,AB39-AB40-AB41)) -> 22967
B43: 14 | C43: Total interest payable u/s 234A/234B/234C | Z43: 14 | AB43: 0
B45: 15 | C45: Total Tax and Interest payable (12+13) | Z45: 15 | AB45: =AB41+AB42 -> 22967
R46: d | S46: Total Interest Payable | Z46: 13d | AB46: =AB43+AB44+AB45 -> 22967
S47: (13a+13b+13c)
Q48: 14 | R48: Total Tax and Interest Payable | Z48: 14 | AB48: =ROUND(AB42-AB46,0) -> 0
R49: (12+13d)
A50: Do not write or stamp in this areas for office use only | R50: Seal and signature of receiving official
A55: TAXES PAID | B55: 15 | C55: Taxes Paid
C56: a | D56: Advance Tax (from item 23) | R56: 15a | S56: ='[7]BIODATA FOR ITR-1'!#REF! -> 
C57: b | D57: TDS (column 7 of item21+column 7 of item 22) | R57: 15b | S57: =AF88 -> 0
C58: c | D58: Self Assessment Tax (from item 23) | R58: 15c
B59: d | C59: Total Taxes paid (15a+15b+15c) | Z59: 15d | AB59: =SUM(S56:S58) -> 
B60: 16 | C60: Tax payable(14-15d)(enter if 14 is greater than 15d, else leave blank) | Z60: 16 | AB60: =IF(AB48<=AB59,0,IF(AB48>=AB59,AB48-AB59)) -> 
A61: REFUND | B61: 17 | C61: Refund (15d-14) (enter if 15d is greater than 14, also give Bank account details below) | Z61: 17 | AB61: =IF(AB59<=AB48,0,IF(AB59>=AB48,AB59-AB48)) -> 
B62: 18 | C62: Enter your bank account number (mandatory in case of refund) | V62: ='[7]BIODATA FOR ITR-1'!#REF! -> 
B64: 19 | C64: Do you want your refund by | L64: Cheque, or | P64: deposited directly into your bank account? (tick as applicable | AE64: ) | AI64: √
B66: 20 | C66: In case of direct deposit to your bank account give additional details
B68: MICR Code | F68: ='[7]BIODATA FOR ITR-1'!#REF! ->  | N68: Type of Account (tick as applicable) | Y68: √ | AB68: Savings | AF68: Current
A69: 21 | B69: Details of Tax Deducted at Source from Salary [As per Form 16 issued by Employer(s)]
A70: TDS ON SALARY | B70: Sl No | C70: Tax Deduction Account Number(TAN) of the Employer | J70: Namee and address of the Employer | Q70: Income chargeable under the head salaries | U70: Deduction under Chapter VI-A | X70: Tax payable (incl. surch. And edn. Cess) | AB70: Total tax deposited | AF70: Tax payable/ refundable
B73: (1) | C73: (2) | J73: (3) | Q73: (4) | U73: (5) | X73: (6) | AB73: (7) | AF73: (8)
C74: ='[7]BIODATA FOR ITR-1'!#REF! -> 
A79: 22 | B79: Details of Tax Deducted at Source on Interest [As per Form 16 A issued by Deductor(s)]
A80: TDS ON INTEREST | B80: Sl No | C80: Tax Deduction Account Number(TAN) of the Deductor | J80: Namee and address of the Deductor | Q80: Amount paid/ credited | V80: Date of Payment /Credit | AA80: Total tax deposited | AF80: Amount out of (6) claim for this year
B83: (1) | C83: (2) | J83: (3) | Q83: (4) | V83: (5) | AA83: (6) | AF83: (7)
AF84: 0
AF85: 0
AF87: 0
B88: NOTE | E88: Enter the total of column (7) of 22 in Sl.No.15b of TAXES PAID | AF88: =SUM(AF84:AF87) -> 0
A89: 23 | B89: Details of Advance Tax and Self Assessment Tax Payments
A90: TAX PAYMENTS | B90: Sl No | C90: Name of Bank & Branch | L90: BSR Code | Q90: Date of Deposit (DD/MM/YYYY) | W90: Serial Number of Challan | AD90: Amount (Rs.)
B92: (i) | AD92: ='[7]BIODATA FOR ITR-1'!#REF! -> 
B93: (iii) | AD93: 0
B94: NOTE | E94: Enter the total of Advance tax and Self Assessmen tax in Sl.No.15a and 15c of TAXES PAID | AD94: =SUM(AD92:AD93) -> 
A95: 24 | B95: Other Information (Transactions reported through Annual Information Return) (Please see instruction number-9(ii) for code)
A96: Sl. | B96: Code | E96: Amount (Rs.) | L96: Sl. | M96: Code | P96: Amount (Rs.) | X96: Sl. | Y96: Code | AC96: Amount (Rs.)
A97: a | B97: 001 | L97: e | M97: 004 | X97: h | Y97: 007
A98: b | B98: 002 | L98: f | M98: 005 | X98: i | Y98: 008
A99: c | B99: 003 | L99: g | M99: 006 | X99: j
A101: 25 | B101: Tax-exempt interest income (for reporting purposes only)
A102: VERIFICATION
A104: I, | P104: son/ daughter of | AG104: solemnly
A105: declare that to the best of my knwledge and belief, the information given in the return thereto is correct and complete and that the amount of total income and other particulars shown therein are truly stated and in accordance with the provisions of the I
A107: Place | I107: Date | S107: Sign here
A109: 26 | B109: If the return has been prepared by a Tax Return Preparer (TRP) give further details as below :
A110: Identification No. of TRP | J110: Name of TRP | U110: Counter Signature of TRP
A112: If TRP is entitled for any reimbursement from the Government, amount thereof (to be filled by TRP) | AC112: 27
A113: Receipt No.
A115: Date
R121: Click Next ITR-2 Page 2 | AA121: ITR-1Page 2

Sheet ITR-IPage 2 (hidden)
A1: TAXES PAID | B1: 16 | C1: Taxes Paid | AK1: Acknowledgement
C2: a | D2: Advance Tax (from item 25) | Z2: 16a | AA2: ='[7]BIODATA FOR ITR-1'!$F$9303 -> 0
C3: b | D3: TDS (column 7 of item23+column 7 of item 24) | Z3: 16b | AA3: =$AF$29 -> 0
C4: c | D4: Self Assessment Tax (from item 25) | Z4: 16c | AA4: 0
B5: 17 | C5: Total Taxes paid (16a+16b+16c) | Z5: 17 | AA5: =SUM(AA2:AH4) -> 0
B6: 18 | C6: Tax payable(15-17)(enter if 15 is greater than 17, else leave blank) | Z6: 18 | AA6: =IF(AA5>=AJ6,0,IF(AA5<=AJ6,AJ6-AA5)) -> 22967 | AJ6: ='ITR-I Page 1'!$AB$45 -> 22967
A7: REFUND | B7: 19 | C7: Refund (18-17) (enter if 15d is greater than 14, also give Bank account details below) | Z7: 19 | AA7: =IF(AA5>=AJ6,AA5-AJ6,IF(AA5<=AJ6,0)) -> 0
B8: 20 | C8: Enter your bank account number (mandatory in case of refund) | V8: ='[7]BIODATA FOR ITR-1'!$F$29 -> 0
B10: 21 | C10: Do you want your refund by | M10: cheque | P10: or | Q10: deposited directly into your bank account? (tick as applicable | AI10: √
B11: 22 | C11: Give additional details of your bank account
B12: MICR Code | F12: ='[7]BIODATA FOR ITR-1'!$F$28 -> 0 | N12: Type of Account (tick as applicable) | Y12: √ | Z12: Savings | AC12: Current
A13: 23 | B13: Details of Tax Deducted at Source from Salary [As per Form 16 issued by Employer(s)]
A14: TDS ON SALARY | B14: Sl No | C14: Tax Deduction Account Number(TAN) of the Employer | J14: Name and address of the Employer | Q14: Income chargeable under the head salaries | U14: Deduction under Chapter VI-A | X14: Tax payable (incl. surch. And edn. Cess) | AB14: Total tax deposited | AF14: TAX
AF15: =IF(X18>=AB18,AK15,) -> Payble | AK15: Payble
AF16: =IF(X18<=AB18,AK16,) -> Refundable | AK16: Refundable
B17: (1) | C17: (2) | J17: (3) | Q17: (4) | U17: (5) | X17: (6) | AB17: (7) | AF17: (8)
C18: ='[7]BIODATA FOR ITR-1'!$K$22 -> 0 | J18: ='[7]BIODATA FOR ITR-1'!$F$22 -> 0 | Q18: ='ITR-I Page 1'!$AB$24 -> 467759 | U18: ='[7]BIODATA FOR ITR-1'!$F$54 -> 69080 | X18: ='ITR-I Page 1'!$AB$45 -> 22967 | AB18: =SUM(X18+AA7) -> 22967 | AF18: =$AA$7 -> 0
A22: 24 | B22: Details of Tax Deducted at Source other than salary
A23: TDS ON INTEREST | B23: Sl No | C23: Tax Deduction Account Number(TAN) of the Deductor | J23: Namee and address of the Deductor | Q23: Amount paid/ credited | V23: Date of Payment /Credit | AA23: Total tax deposited | AF23: Amount out of (6) claim for this year
B26: (1) | C26: (2) | J26: (3) | Q26: (4) | V26: (5) | AA26: (6) | AF26: (7)
AA27: =Q27 -> 0 | AF27: 0
AF28: 0
AF29: =SUM(AF27:AJ28) -> 0
B30: NOTE | E30: Enter the total of column (7) of 23and column (7) of 17 of TAXES PAID
A31: 25 | B31: Details of Advance Tax and Self Assessment Tax Payments
A32: TAX PAYMENTS | B32: Sl No | C32: Name of Bank & Branch | L32: BSR Code | Q32: Date of Deposit (DD/MM/YYYY) | W32: Serial Number of Challan | AD32: Amount (Rs.)
B34: (i) | C34: ='[7]BIODATA FOR ITR-1'!$F$26 -> 0 | L34: ='[7]BIODATA FOR ITR-1'!$F$23 -> 0 | Q34: ='[7]BIODATA FOR ITR-1'!$F$24 -> 00:00:00 | W34: ='[7]BIODATA FOR ITR-1'!$F$25 -> 0 | AD34: ='[7]BIODATA FOR ITR-1'!$F$9303 -> 0
B35: (iii) | AD35: 0
B36: NOTE | E36: Enter the total of Advance tax and Self Assessmen tax in Sl.No.17 of TAXES PAID | AD36: =SUM(AD34:AD35) -> 0
A37: 26 | B37: Other Information (Transactions reported through Annual Information Return) (Please see instruction number-9(ii) for code)
A38: Sl. | B38: Code | E38: Amount (Rs.) | L38: Sl. | M38: Code | P38: Amount (Rs.) | X38: Sl. | Y38: Code | AC38: Amount (Rs.)
A39: a | B39: 001 | L39: e | M39: 004 | X39: h | Y39: 007
A40: b | B40: 002 | L40: f | M40: 005 | X40: i | Y40: 008
A41: c | B41: 003 | L41: g | M41: 006 | X41: j
A43: 27 | B43: Exempt income only for reporting purposes(from Dividend, Capital gains etc) | X43: 27
A44: VERIFICATION
A45: I, | P45: son/ daughter of | AG45: solemnly
A46: declare that to the best of my knwledge and belief, the information given in the return thereto is correct and complete and that the amount of total income and other particulars shown therein are truly stated and in accordance with the provisions of the Income -tax Act, 1961, in respect of income chargeable to income-tax for the previous year relevant to the Assessment Year 2010-11
A47: Place | I47: Date | S47: Sign here
A48: 28 | B48: If the return has been prepared by a Tax Return Preparer (TRP) give further details as below :
A49: Identification No. of TRP | J49: Name of TRP | U49: Counter Signature of TRP
A51: 29 | B51: If TRP is entitled for any reimbursement from the Government, amount thereof (to be filled by TRP) | AD51: 29
R53: Click Next Acknowledgement | AB53: Acknowledgement

Sheet ITR I (hidden)
A1: FORM | B1: SARAL-II (ITR-I) | E1: INDIAN INCOME TAX RETURN | Z1: Assessment Year
E2: [For Individual having Income from Salary/Pension/income from One House Property(Excluding loss brought forward from previous years)/Income from Other Sources (Excluding Winning from Lottery and income from Race Horses)] | AD2: 1 | AF2: - | AH2: 1 | AI2: 2
E3: (Please see Rule 12 of the Income-tax Rules, 1962)(Also see attached instuctions)
A5: PERSONAL INFORMATION | B5: First name | J5: Middle name | R5: Last name | Z5: Pan No
B6: ='[7]BIODATA FOR ITR-1'!$F$2 -> 0 | J6: ='[7]BIODATA FOR ITR-1'!$F$3 -> KUMAR | R6: ='[7]BIODATA FOR ITR-1'!$F$4 -> BANDYOPADHYAY | Z6: ='[7]BIODATA FOR ITR-1'!$F$6 -> AA55666D
B7: Flat /Door/Block No. | O7: Name Of Premises/Building/Village | Z7: Date of Birth (DD/MM/YYYY) | AA7: Date of Birth
B8: ='[7]BIODATA FOR ITR-1'!$F$10 -> 150 D | O8: ='[7]BIODATA FOR ITR-1'!$F$11 -> Kalisthanpara | Z8: ='[7]BIODATA FOR ITR-1'!$F$8 -> 1963-01-04
B10: Road/Street/Post Office | O10: Area/Locality | Z10: Employer Category (Tick) | AA10: Employer Category | AI10: √
B11: ='[7]BIODATA FOR ITR-1'!$F$12 -> Jiaganj | O11: ='[7]BIODATA FOR ITR-1'!$F$13 -> Jiaganj | AA11: √ | AB11: Govt. | AF11: PSU | AH11: Others
B12: Town/City/District | O12: State | U12: Pin code | Z12: Sex (Tick) | AA12: Employer Category
B13: ='[7]BIODATA FOR ITR-1'!$F$14 -> Murshidabad | O13: ='[7]BIODATA FOR ITR-1'!$F$16 -> West Bengal | U13: ='[7]BIODATA FOR ITR-1'!$F$15 -> 742123 | AA13: √ | AB13: ='[7]BIODATA FOR ITR-1'!$F$18 -> male | AD13: √ | AG13: ='[7]BIODATA FOR ITR-1'!$J$18 -> 0
B14: Email Addrs. | Q14: (STD Code) - Phone Number
A15: FILING STATUS | B15: Designation of Assessing Officer (Ward/Circle) | S15: Return Filed Under Section- | AD15: 1 | AF15: 1
B16: ='[7]BIODATA FOR ITR-1'!$F$5 -> U.D.C. | S16: [Please see instruction number-9(i)]
B17: Whether original or Revised return? (Tick) | O17: √ | T17: √ | U17: Original | AD17: Revised
B18: If revised, enter Receipt No and Date of filing original return (DD/MM/YYYY) | Q18: ORIGINAL
B19: Original return(DD/MM/YYYY) | L19: ='[7]BIODATA FOR ITR-1'!$F$17 -> 40823
B20: Residential Status (Tick) | J20: √ | L20: √ | M20: Resident | R20: Non-Resident | Y20: Resident but not ordinarily Resident
A21: INCOME & DEDUCTIONS | B21: 1 | C21: Income chargeable under the Head 'Salaries',Pension | AA21: 1 | AB21: 467759
B22: 2 | C22: Income chargeable under the Head 'House Property'(enter-ve sign in case of loss, if any) | AA22: 2 | AB22: 0
B23: 3 | C23: Income chargeable under the Head 'Other Sources' (enter-ve sign in case of loss, if any) | AA23: 3 | AB23: 0
B24: 4 | C24: Gross Total Income (1+2+3) | AA24: 4 | AB24: 467759
B25: 5 | C25: Deductions under chapter VIA (Section
C26: a | D26: 80C | F26: ='[7]BIODATA FOR ITR-1'!$F$43 -> 69080 | K26: e | L26: 80DD | N26: ='[7]BIODATA FOR ITR-1'!$F$49 -> 0 | R26: I | S26: 80GG | U26: 0
C27: b | D27: 80CCC | F27: 0 | K27: f | L27: 80DDB | N27: ='[7]BIODATA FOR ITR-1'!$F$50 -> 0 | R27: j | S27: 80GGA | U27: 0
C28: c | D28: 80CCD | F28: ='[7]BIODATA FOR ITR-1'!$F$52 -> 0 | K28: g | L28: 80E | N28: ='[7]BIODATA FOR ITR-1'!$F$48 -> 0 | R28: k | S28: 80GGC | U28: 0
C29: d | D29: 80D | F29: ='[7]BIODATA FOR ITR-1'!$F$47 -> 0 | K29: h | L29: 80G | N29: ='[7]BIODATA FOR ITR-1'!$F$46 -> 0 | R29: l | S29: 80U | U29: ='[7]BIODATA FOR ITR-1'!$F$53 -> 0
B30: 6 | C30: Deductions (Total of 5a to5i) | Z30: 6 | AB30: 69080
B31: 7 | C31: Total Income (4-6) | Z31: 7 | AB31: 398679
B32: 6 | C32: Net Agricultural Income (Enter only if greater than Rs.5,000) | Z32: 6
B33: 7 | C33: Aggregate Income' (5+6) | Z33: 7 | AB33: 398679
A34: TAX COMPUTATION | B34: 8 | C34: Tax Payable on 'Aggregate Income' | Z34: 8 | AB34: 23868 | AJ34: =IF(AB33-160000<=0,"0",IF(AB33>=500000,"0",IF(AB33-160000>=0,ROUND(AB33-160000,)*10%,0))) -> 23867.9 | AK34: =IF(AB33-300000<=500000,"0",IF(AB33-300000>=500000,ROUND(AB33-300000,)*20%,0)) -> 0 | AL34: =IF(AB33>300000,14000) -> 14000
D35: Rebate in respect of Net Agricultural income | AB35: 0
B36: 9 | C36: a | D36: Tax Payable on total Income (8a - 8b) | R36: 9a | S36: =AB34-AB35 -> 23868
C37: b | D37: Surcharge on 9a | R37: 9b | S37: 0
B38: 9 | C38: Education Cess on (on 8) | Z38: 9 | AB38: 716
B39: 10 | C39: Total Tax, Surcharge and Education cess payable (8+9) | Z39: 10 | AB39: 24584
B40: 11 | C40: Relief under Section 89 | Z40: 11 | AB40: 1617 | AJ40: ='[7]10 E Annex-I'!$G$12 -> 1617
B41: 12 | C41: Relief under Section 90/91 | Z41: 12 | AB41: 0
B42: 13 | C42: Balance Tax Payable (10-11-12) | Z42: 13 | AB42: 22967
B43: 14 | C43: Total interest payable u/s 234A/234B/234C | Z43: 14 | AB43: 0
B45: 15 | C45: Total Tax and Interest payable (12+13) | Z45: 15 | AB45: 22967
R46: d | S46: Total Interest Payable | Z46: 13d | AB46: =AB43+AB44+AB45 -> 22967
S47: (13a+13b+13c)
Q48: 14 | R48: Total Tax and Interest Payable | Z48: 14 | AB48: =ROUND(AB42-AB46,0) -> 0
R49: (12+13d)
A50: Do not write or stamp in this areas for office use only | R50: Seal and signature of receiving official
A55: TAXES PAID | B55: 15 | C55: Taxes Paid
C56: a | D56: Advance Tax (from item 23) | R56: 15a | S56: ='[7]BIODATA FOR ITR-1'!#REF! -> 
C57: b | D57: TDS (column 7 of item21+column 7 of item 22) | R57: 15b | S57: =AF88 -> 0
C58: c | D58: Self Assessment Tax (from item 23) | R58: 15c
B59: d | C59: Total Taxes paid (15a+15b+15c) | Z59: 15d | AB59: =SUM(S56:S58) -> 
B60: 16 | C60: Tax payable(14-15d)(enter if 14 is greater than 15d, else leave blank) | Z60: 16 | AB60: =IF(AB48<=AB59,0,IF(AB48>=AB59,AB48-AB59)) -> 
A61: REFUND | B61: 17 | C61: Refund (15d-14) (enter if 15d is greater than 14, also give Bank account details below) | Z61: 17 | AB61: =IF(AB59<=AB48,0,IF(AB59>=AB48,AB59-AB48)) -> 
B62: 18 | C62: Enter your bank account number (mandatory in case of refund) | V62: ='[7]BIODATA FOR ITR-1'!#REF! -> 
B64: 19 | C64: Do you want your refund by | L64: Cheque, or | P64: deposited directly into your bank account? (tick as applicable | AE64: ) | AI64: √
B66: 20 | C66: In case of direct deposit to your bank account give additional details
B68: MICR Code | F68: ='[7]BIODATA FOR ITR-1'!#REF! ->  | N68: Type of Account (tick as applicable) | Y68: √ | AB68: Savings | AF68: Current
A69: 21 | B69: Details of Tax Deducted at Source from Salary [As per Form 16 issued by Employer(s)]
A70: TDS ON SALARY | B70: Sl No | C70: Tax Deduction Account Number(TAN) of the Employer | J70: Namee and address of the Employer | Q70: Income chargeable under the head salaries | U70: Deduction under Chapter VI-A | X70: Tax payable (incl. surch. And edn. Cess) | AB70: Total tax deposited | AF70: Tax payable/ refundable
B73: (1) | C73: (2) | J73: (3) | Q73: (4) | U73: (5) | X73: (6) | AB73: (7) | AF73: (8)
C74: ='[7]BIODATA FOR ITR-1'!#REF! -> 
A79: 22 | B79: Details of Tax Deducted at Source on Interest [As per Form 16 A issued by Deductor(s)]
A80: TDS ON INTEREST | B80: Sl No | C80: Tax Deduction Account Number(TAN) of the Deductor | J80: Namee and address of the Deductor | Q80: Amount paid/ credited | V80: Date of Payment /Credit | AA80: Total tax deposited | AF80: Amount out of (6) claim for this year
B83: (1) | C83: (2) | J83: (3) | Q83: (4) | V83: (5) | AA83: (6) | AF83: (7)
AF84: 0
AF85: 0
AF87: 0
B88: NOTE | E88: Enter the total of column (7) of 22 in Sl.No.15b of TAXES PAID | AF88: =SUM(AF84:AF87) -> 0
A89: 23 | B89: Details of Advance Tax and Self Assessment Tax Payments
A90: TAX PAYMENTS | B90: Sl No | C90: Name of Bank & Branch | L90: BSR Code | Q90: Date of Deposit (DD/MM/YYYY) | W90: Serial Number of Challan | AD90: Amount (Rs.)
B92: (i) | AD92: ='[7]BIODATA FOR ITR-1'!#REF! -> 
B93: (iii) | AD93: 0
B94: NOTE | E94: Enter the total of Advance tax and Self Assessmen tax in Sl.No.15a and 15c of TAXES PAID | AD94: =SUM(AD92:AD93) -> 
A95: 24 | B95: Other Information (Transactions reported through Annual Information Return) (Please see instruction number-9(ii) for code)
A96: Sl. | B96: Code | E96: Amount (Rs.) | L96: Sl. | M96: Code | P96: Amount (Rs.) | X96: Sl. | Y96: Code | AC96: Amount (Rs.)
A97: a | B97: 001 | L97: e | M97: 004 | X97: h | Y97: 007
A98: b | B98: 002 | L98: f | M98: 005 | X98: i | Y98: 008
A99: c | B99: 003 | L99: g | M99: 006 | X99: j
A101: 25 | B101: Tax-exempt interest income (for reporting purposes only)
A102: VERIFICATION
A104: I, | P104: son/ daughter of | AG104: solemnly
A105: declare that to the best of my knwledge and belief, the information given in the return thereto is correct and complete and that the amount of total income and other particulars shown therein are truly stated and in accordance with the provisions of the I
A107: Place | I107: Date | S107: Sign here
A109: 26 | B109: If the return has been prepared by a Tax Return Preparer (TRP) give further details as below :
A110: Identification No. of TRP | J110: Name of TRP | U110: Counter Signature of TRP
A112: If TRP is entitled for any reimbursement from the Government, amount thereof (to be filled by TRP) | AC112: 27
A113: Receipt No.
A115: Date
R121: Click Next ITR-2 Page 2 | AA121: ITR-1Page 2
